Workbook

Sheet 12.01.2026
B1: Согласовано Начальник МКУ "Управление образования" Муслюмовского района РТ ________________ /Л.Я. Хабибуллина/ | H1: Согласовано Директор ОУ ____________________________________________________________________________ | AA1: Утверждаю Индивидуальный предприниматель Ибрагимова Э.И. ______________ /Э.И. Ибрагимова/ | CD1: =IF(#REF!<>"",#REF!,"") -> 
A2: ЦИКЛИЧНОЕ ОЕННИЙ (ЗИМНИЙ) ДВУХНЕДЕЛЬНОЕ МЕНЮ ДЛЯ ОРГАНИЗАЦИИ ПИТАНИЯ ДЕТЕЙ В ВОЗРАСТЕ ОТ 3-х ЛЕТ, ПОСЕЩАЮЩИХ ДОШКОЛЬНЫЕ ОБРАЗОВАТЕЛЬНЫЕ УЧРЕЖДЕНИЯ И ДОШКОЛЬНЫЕ ГРУППЫ ОБРАЗОВАТЕЛЬНЫХ УЧРЕЖДЕНИЙ МУСЛЮМОВСКОГО МУНИЦИПАЛЬНОГО РАЙОНА РТ НА 2026 г.
AE4: с 01.03.2026г
A5: Но-мер рец. | B5: Прием пищи, наименование изделий (блюд) | C5: Вы-ход, г | D5: Белки, г | F5: Жиры, г | H5: Угле-воды, г | I5: ЭЦ, ккал | J5: НЖК | K5: ПНЖК | L5: МЖК | M5: Холестерин | N5: МД | O5: Крахмал | P5: ПВ | Q5: РПВ | R5: НПВ | S5: Органические кислоты | T5: Зола | U5: Na | V5: K | W5: Минеральные элементы, мг | AA5: Витамины, мг | AI5: Вита-мин С, мг | AJ5: Алкоголь, г | AK5: Валин | AL5: изолейцин | AM5: лейцин | AN5: лизин | AO5: метионин | AP5: треонин | AQ5: триптофан | AR5: фенилаланин | AS5: аланин | AT5: аргинин | AU5: аспарагиновая | AV5: гистидин | AW5: глицин | AX5: глутаминовая | AY5: оксипролин | AZ5: пролин | BA5: серин | BB5: тирозин | BC5: цистин | BD5: масляная | BE5: капроновая | BF5: каприловая | BG5: каприновая | BH5: лауриновая | BI5: миристиновая | BJ5: пентадекановая | BK5: пальмитиновая | BL5: маргариновая | BM5: стеариновая | BN5: арахиновая | BO5: бегеновая | BP5: лигноцериновая | BQ5: миристолеиновая | BR5: пальмитолеиновая | BS5: олеиновая | BT5: гадолеиновая | BU5: эруковая | BV5: линолевая | BW5: линоленовая | BX5: арахидоновая | BY5: Аденин | BZ5: Гуанин | CA5: Ph | CC5: Цена, руб | CD5: Доля, % | CG5: I (макс.), мкг | CH5: I (мин.), мкг | CI5: I (сред.), мкг | CJ5: Zn (макс.), мкг | CK5: Zn (мин.), мкг | CL5: Zn (сред.), мкг | CM5: Se (макс.), мкг | CN5: Se (мин.), мкг | CO5: Se (сред.), мкг | CP5: Вложен-ный сахар, г | CQ5: Вложен-ная соль, г
D6: всего | E6: в т.ч. жив. | F6: всего | G6: в т.ч. раст. | W6: Ca | X6: Mg | Y6: P | Z6: Fe | AA6: А | AB6: B | AC6: РЭ,мкг | AD6: ТЭ,мг | AE6: В1 | AF6: В2 | AG6: РР | AH6: НЭ
B7: 1 НЕДЕЛЯ
B8: 1 ДЕНЬ
B9: Завтрак
A10: ="-" -> - | B10: Батон | C10: 30 | D10: 2.3 | E10: 0.0 | F10: 1.5 | G10: 0.9 | H10: 11.2 | I10: 66 | J10: 0.2 | K10: 0.0 | L10: 0.0 | M10: 0.0 | N10: 1.0 | O10: 9.2 | P10: 1.0 | Q10: 0.0 | R10: 0.0 | S10: 0.1 | T10: 0.5 | U10: 128.7 | V10: 39.3 | W10: 6.6 | X10: 9.9 | Y10: 25.5 | Z10: 0.6 | AA10: 0.0 | AB10: 0.0 | AC10: 0.0 | AD10: 0.5 | AE10: 0.1 | AF10: 0.0 | AG10: 0.5 | AH10: 0.9 | AI10: 0.0 | AJ10: 0 | AK10: 111.6 | AL10: 115.8 | AM10: 177.3 | AN10: 59.7 | AO10: 35.1 | AP10: 70.2 | AQ10: 26.4 | AR10: 126 | AS10: 78.3 | AT10: 108.9 | AU10: 90.3 | AV10: 48.3 | AW10: 84 | AX10: 697.5 | AY10: 0 | AZ10: 227.1 | BA10: 99.3 | BB10: 66.6 | BC10: 51.9 | BD10: 0 | BE10: 0 | BF10: 0 | BG10: 0 | BH10: 0 | BI10: 0.01 | BJ10: 0 | BK10: 0.1 | BL10: 0 | BM10: 0.05 | BN10: 0 | BO10: 0 | BP10: 0 | BQ10: 0 | BR10: 0 | BS10: 0.35 | BT10: 0 | BU10: 0 | BV10: 0.26 | BW10: 0.01 | BX10: 0 | BY10: 0 | BZ10: 0 | CA10: 0 | CB10: 10.23 | CE10: 0 | CG10: 0 | CH10: 0 | CI10: 0 | CJ10: 570 | CK10: 219.6 | CL10: 394.8 | CM10: 4.56 | CN10: 4.56 | CO10: 4.56 | CP10: 0 | CQ10: 0
A11: ="4/13" -> 4/13 | B11: Сыр (порциями) | C11: 10 | D11: 1.5 | E11: 2.6 | F11: 2.7 | G11: 0.0 | H11: 0.0 | I11: 31 | J11: 1.5 | K11: 0.0 | L11: 0.0 | M11: 0.0 | N11: 0.0 | O11: 0.0 | P11: 0.0 | Q11: 0.0 | R11: 0.0 | S11: 0.2 | T11: 0.4 | U11: 110.0 | V11: 10.0 | W11: 100.0 | X11: 5.5 | Y11: 60.0 | Z11: 0.1 | AA11: 21.0 | AB11: 17.0 | AC11: 23.8 | AD11: 0.0 | AE11: 0.0 | AF11: 0.0 | AG11: 0.0 | AH11: 0.7 | AI11: 0.1 | AJ11: 0 | AK11: 157 | AL11: 117 | AM11: 230 | AN11: 158 | AO11: 56 | AP11: 95 | AQ11: 70 | AR11: 134 | AS11: 76 | AT11: 87 | AU11: 156 | AV11: 70 | AW11: 51 | AX11: 517 | AY11: 0 | AZ11: 273 | BA11: 129 | BB11: 139 | BC11: 21.5 | BD11: 0 | BE11: 0.01 | BF11: 0.04 | BG11: 0.11 | BH11: 0.13 | BI11: 0.33 | BJ11: 0.04 | BK11: 0.7 | BL11: 0.01 | BM11: 0.16 | BN11: 0.01 | BO11: 0 | BP11: 0 | BQ11: 0.05 | BR11: 0.07 | BS11: 0.52 | BT11: 0 | BU11: 0 | BV11: 0.07 | BW11: 0 | BX11: 0 | BY11: 0 | BZ11: 0 | CA11: 0 | CB11: 4.08 | CE11: 23.83 | CG11: 0 | CH11: 0 | CI11: 0 | CJ11: 500 | CK11: 370 | CL11: 435 | CM11: 1.53 | CN11: 0.97 | CO11: 1.25 | CP11: 0 | CQ11: 0
A12: ="31/10" -> 31/10 | B12: Чай с молоком (вариант 3) | C12: 180 | D12: 1.5 | E12: 1.3 | F12: 1.2 | G12: 0.0 | H12: 6.7 | I12: 41 | J12: 0.8 | K12: 0.0 | L12: 0.0 | M12: 0.0 | N12: 6.6 | O12: 0.0 | P12: 0.1 | Q12: 0.0 | R12: 0.0 | S12: 0.1 | T12: 0.4 | U12: 22.3 | V12: 65.2 | W12: 52.5 | X12: 6.0 | Y12: 37.7 | Z12: 0.1 | AA12: 9.0 | AB12: 4.1 | AC12: 9.9 | AD12: 0.0 | AE12: 0.0 | AF12: 0.1 | AG12: 0.0 | AH12: 0.4 | AI12: 0.2 | AJ12: 0 | AK12: 0 | AL12: 0 | AM12: 0 | AN12: 0 | AO12: 0 | CE12: 9.68 | CP12: 4.5 | CQ12: 0
A13: ="15/4" -> 15/4 | B13: Каша ячневая молочная с маслом сливочным | C13: 200 | D13: 6.0 | E13: 2.4 | F13: 4.8 | G13: 0.5 | H13: 33.8 | I13: 197 | J13: 3.4 | K13: 0.1 | L13: 0.0 | M13: 0.0 | N13: 7.6 | O13: 23.2 | P13: 3.0 | Q13: 0.0 | R13: 0.0 | S13: 0.1 | T13: 1.6 | U13: 240.2 | V13: 176.2 | W13: 115.2 | X13: 27.2 | Y13: 183.4 | Z13: 0.7 | AA13: 19.2 | AB13: 16.0 | AC13: 35.6 | AD13: 0.6 | AE13: 0.1 | AF13: 0.1 | AG13: 0.9 | AH13: 2.5 | AI13: 0.4 | AJ13: 0 | AK13: 182.06 | AL13: 176.38 | AM13: 194.62 | AN13: 133.29 | AO13: 60.8 | AP13: 95.77 | AQ13: 46.74 | AR13: 197.1 | AS13: 153.63 | AT13: 185.22 | AU13: 240.9 | AV13: 87.8 | AW13: 155.06 | AX13: 905.86 | AY13: 0 | AZ13: 494.36 | BA13: 148.67 | BB13: 114.38 | BC13: 75.58 | BD13: 0.09 | BE13: 0.04 | BF13: 0.02 | BG13: 0.05 | BH13: 0.06 | BI13: 0.28 | BJ13: 0 | BK13: 0.78 | BL13: 0 | BM13: 0.24 | BN13: 0 | BO13: 0 | BP13: 0 | BQ13: 0.05 | BR13: 0.08 | BS13: 0.63 | BT13: 0 | BU13: 0 | BV13: 0.04 | BW13: 0 | BX13: 0 | BY13: 0 | BZ13: 0 | CA13: 0 | CB13: 177.81 | CE13: 21.87 | CG13: 34.24 | CH13: 14.52 | CI13: 24.38 | CJ13: 2147.67 | CK13: 982.95 | CL13: 1565.31 | CM13: 45.21 | CN13: 23.88 | CO13: 34.54 | CP13: 4 | CQ13: 0.5
B14: Итого за 'Завтрак' | C14: =SUM(C10:C13) -> 420 | D14: =SUM(D10:D13) -> 11.2 | E14: 6.3 | F14: 10.1 | G14: 1.5 | H14: 51.6 | I14: 335 | J14: 5.9 | K14: 0.1 | L14: 0.0 | M14: 0.0 | N14: 15.1 | O14: 32.5 | P14: 4.0 | Q14: 0.0 | R14: 0.0 | S14: 0.4 | T14: 2.9 | U14: 501.2 | V14: 290.6 | W14: 274.3 | X14: 48.6 | Y14: 306.5 | Z14: 1.5 | AA14: 49.2 | AB14: 37.1 | AC14: 69.3 | AD14: 1.2 | AE14: 0.2 | AF14: 0.3 | AG14: 1.5 | AH14: 4.5 | AI14: 0.7 | AJ14: 0 | AK14: 450.66 | AL14: 409.18 | AM14: 601.92 | AN14: 350.99 | AO14: 151.9 | AP14: 260.97 | AQ14: 143.14 | AR14: 457.1 | AS14: 307.93 | AT14: 381.12 | AU14: 487.2 | AV14: 206.1 | AW14: 290.06 | AX14: 2120.36 | AY14: 0 | AZ14: 994.46 | BA14: 376.97 | BB14: 319.98 | BC14: 148.98 | BD14: 0.09 | BE14: 0.05 | BF14: 0.06 | BG14: 0.16 | BH14: 0.19 | BI14: 0.62 | BJ14: 0.04 | BK14: 1.57 | BL14: 0.01 | BM14: 0.44 | BN14: 0.01 | BO14: 0 | BP14: 0 | BQ14: 0.1 | BR14: 0.15 | BS14: 1.5 | BT14: 0 | BU14: 0 | BV14: 0.37 | BW14: 0.01 | BX14: 0 | BY14: 0 | BZ14: 0 | CA14: 0 | CB14: 367.25 | CD14: =$I$14/#REF!*100 ->  | CE14: 55.38 | CG14: 41.07 | CH14: 18.2 | CI14: 29.64 | CJ14: 3784.67 | CK14: 1786.75 | CL14: 2785.71 | CM14: 86.95 | CN14: 48.41 | CO14: 67.68 | CP14: 8.5 | CQ14: 0.5
B15: Второй завтрак
A16: ="-" -> - | B16: Яблоки | C16: 100 | D16: 0.4 | E16: 0.0 | F16: 0.4 | G16: 0.4 | H16: 11.6 | I16: 50 | J16: 0.1 | K16: 0.0 | L16: 0.0 | M16: 0.0 | N16: 10.0 | O16: 0.8 | P16: 0.8 | Q16: 0.0 | R16: 0.0 | S16: 0.8 | T16: 0.5 | U16: 26.0 | V16: 278.0 | W16: 16.0 | X16: 9.0 | Y16: 11.0 | Z16: 2.2 | AA16: 0.0 | AB16: 30.0 | AC16: 5.0 | AD16: 0.2 | AE16: 0.0 | AF16: 0.0 | AG16: 0.3 | AH16: 0.4 | AI16: 10.0 | AJ16: 0 | AK16: 12 | AL16: 13 | AM16: 19 | AN16: 18 | AO16: 3 | AP16: 11 | AQ16: 3 | AR16: 9 | AS16: 17 | AT16: 10 | AU16: 78 | AV16: 7 | AW16: 14 | AX16: 42 | AY16: 0 | AZ16: 13 | BA16: 16 | BB16: 6 | BC16: 5 | BD16: 0 | BE16: 0 | BF16: 0 | BG16: 0 | BH16: 0 | BI16: 0 | BJ16: 0 | BK16: 0 | BL16: 0 | BM16: 0 | BN16: 0 | BO16: 0 | BP16: 0 | BQ16: 0 | BR16: 0 | BS16: 0 | BT16: 0 | BU16: 0 | BV16: 0 | BW16: 0 | BX16: 0 | BY16: 0 | BZ16: 0 | CA16: 0 | CB16: 86.3 | CE16: 5 | CG16: 2 | CH16: 2 | CI16: 2 | CJ16: 150 | CK16: 150 | CL16: 150 | CM16: 0 | CN16: 0 | CO16: 0 | CP16: 0 | CQ16: 0
B17: Итого за 'Второй завтрак' | C17: =SUM(C16) -> 100 | D17: =SUM(D16) -> 0.4 | E17: 0.0 | F17: 0.4 | G17: 0.4 | H17: 11.6 | I17: 50 | J17: 0.1 | K17: 0.0 | L17: 0.0 | M17: 0.0 | N17: 10.0 | O17: 0.8 | P17: 0.8 | Q17: 0.0 | R17: 0.0 | S17: 0.8 | T17: 0.5 | U17: 26.0 | V17: 278.0 | W17: 16.0 | X17: 9.0 | Y17: 11.0 | Z17: 2.2 | AA17: 0.0 | AB17: 30.0 | AC17: 5.0 | AD17: 0.2 | AE17: 0.0 | AF17: 0.0 | AG17: 0.3 | AH17: 0.4 | AI17: 10.0 | AJ17: 0 | AK17: 12 | AL17: 13 | AM17: 19 | AN17: 18 | AO17: 3 | AP17: 11 | AQ17: 3 | AR17: 9 | AS17: 17 | AT17: 10 | AU17: 78 | AV17: 7 | AW17: 14 | AX17: 42 | AY17: 0 | AZ17: 13 | BA17: 16 | BB17: 6 | BC17: 5 | BD17: 0 | BE17: 0 | BF17: 0 | BG17: 0 | BH17: 0 | BI17: 0 | BJ17: 0 | BK17: 0 | BL17: 0 | BM17: 0 | BN17: 0 | BO17: 0 | BP17: 0 | BQ17: 0 | BR17: 0 | BS17: 0 | BT17: 0 | BU17: 0 | BV17: 0 | BW17: 0 | BX17: 0 | BY17: 0 | BZ17: 0 | CA17: 0 | CB17: 86.3 | CD17: =$I$17/#REF!*100 ->  | CE17: 5 | CG17: 2 | CH17: 2 | CI17: 2 | CJ17: 150 | CK17: 150 | CL17: 150 | CM17: 0 | CN17: 0 | CO17: 0 | CP17: 0 | CQ17: 0
B18: Обед
A19: ="-" -> - | B19: Хлеб пшеничный | C19: 20 | D19: 1.2 | E19: 0.0 | F19: 0.1 | G19: 0.1 | H19: 7.4 | I19: 36 | J19: 0.0 | K19: 0.0 | L19: 0.0 | M19: 0.0 | N19: 0.2 | O19: 7.1 | P19: 0.0 | Q19: 0.0 | R19: 0.0 | S19: 0.0 | T19: 0.4 | U19: 0.0 | V19: 0.0 | W19: 0.0 | X19: 0.0 | Y19: 0.0 | Z19: 0.0 | AA19: 0.0 | AB19: 0.0 | AC19: 0.0 | AD19: 0.0 | AE19: 0.0 | AF19: 0.0 | AG19: 0.0 | AH19: 0.0 | AI19: 0.0 | AJ19: 0 | AK19: 63.86 | AL19: 66.47 | AM19: 101.79 | AN19: 33.76 | AO19: 20.01 | AP19: 40.02 | AQ19: 15.14 | AR19: 72.38 | AS19: 44.89 | AT19: 62.64 | AU19: 51.68 | AV19: 27.14 | AW19: 48.02 | AX19: 401.59 | AY19: 0 | AZ19: 130.85 | BA19: 56.9 | BB19: 37.76 | BC19: 29.93 | BD19: 0 | BE19: 0 | BF19: 0 | BG19: 0 | BH19: 0 | BI19: 0 | BJ19: 0 | BK19: 0.02 | BL19: 0 | BM19: 0 | BN19: 0 | BO19: 0 | BP19: 0 | BQ19: 0 | BR19: 0 | BS19: 0.01 | BT19: 0 | BU19: 0 | BV19: 0.06 | BW19: 0 | BX19: 0 | BY19: 0 | BZ19: 0 | CA19: 0 | CB19: 7.82 | CE19: 0 | CG19: 0 | CH19: 0 | CI19: 0 | CJ19: 380 | CK19: 146.4 | CL19: 263.2 | CM19: 3.04 | CN19: 3.04 | CO19: 3.04 | CP19: 0 | CQ19: 0
A20: ="-" -> - | B20: Хлеб ржаной | C20: 30 | D20: 1.8 | E20: 0.0 | F20: 0.4 | G20: 0.4 | H20: 12.5 | I20: 57 | J20: 0.1 | K20: 0.0 | L20: 0.0 | M20: 0.0 | N20: 0.4 | O20: 9.7 | P20: 2.5 | Q20: 0.0 | R20: 0.0 | S20: 0.3 | T20: 0.8 | U20: 183.0 | V20: 73.5 | W20: 10.5 | X20: 14.1 | Y20: 47.4 | Z20: 1.2 | AA20: 0.0 | AB20: 1.5 | AC20: 0.3 | AD20: 0.4 | AE20: 0.1 | AF20: 0.0 | AG20: 0.2 | AH20: 0.6 | AI20: 0.0 | AJ20: 0 | AK20: 96.6 | AL20: 74.4 | AM20: 128.1 | AN20: 66.9 | AO20: 27.9 | AP20: 59.4 | AQ20: 24 | AR20: 111.3 | AS20: 89.1 | AT20: 87.3 | AU20: 139.2 | AV20: 37.2 | AW20: 93 | AX20: 467.7 | AY20: 0 | AZ20: 157.8 | BA20: 87.3 | BB20: 54 | BC20: 39 | BD20: 0 | BE20: 0 | BF20: 0 | BG20: 0 | BH20: 0 | BI20: 0 | BJ20: 0 | BK20: 0.04 | BL20: 0 | BM20: 0 | BN20: 0.01 | BO20: 0 | BP20: 0 | BQ20: 0 | BR20: 0 | BS20: 0.03 | BT20: 0 | BU20: 0 | BV20: 0.14 | BW20: 0.02 | BX20: 0 | BY20: 0 | BZ20: 0 | CA20: 0 | CB20: 14.1 | CE20: 0.25 | CG20: 3 | CH20: 3 | CI20: 3 | CJ20: 570 | CK20: 219.6 | CL20: 394.8 | CM20: 5.7 | CN20: 4.74 | CO20: 5.22 | CP20: 0 | CQ20: 0
A21: ="6/10" -> 6/10 | B21: Компот из сухофруктов | C21: 180 | D21: 0.9 | E21: 0.0 | F21: 0.1 | G21: 0.1 | H21: 20.9 | I21: 79 | J21: 0.0 | K21: 0.0 | L21: 0.0 | M21: 0.0 | N21: 17.3 | O21: 0.5 | P21: 3.1 | Q21: 0.0 | R21: 0.0 | S21: 0.3 | T21: 0.7 | U21: 3.1 | V21: 306.2 | W21: 28.2 | X21: 18.0 | Y21: 24.4 | Z21: 0.6 | AA21: 0.0 | AB21: 567.0 | AC21: 104.9 | AD21: 1.0 | AE21: 0.0 | AF21: 0.1 | AG21: 0.5 | AH21: 0.7 | AI21: 0.4 | AJ21: 0 | AK21: 0.01 | AL21: 0.01 | AM21: 0.01 | AN21: 0.02 | AO21: 0 | AP21: 0.01 | AQ21: 0 | AR21: 0.01 | AS21: 0.01 | AT21: 0.01 | AU21: 0.05 | AV21: 0 | AW21: 0.01 | AX21: 0.02 | AY21: 0 | AZ21: 0.01 | BA21: 0.01 | BB21: 0.01 | BC21: 0 | BD21: 0 | BE21: 0 | BF21: 0 | BG21: 0 | BH21: 0 | BI21: 0 | BJ21: 0 | BK21: 0 | BL21: 0 | BM21: 0 | BN21: 0 | BO21: 0 | BP21: 0 | BQ21: 0 | BR21: 0 | BS21: 0.01 | BT21: 0 | BU21: 0 | BV21: 0.01 | BW21: 0 | BX21: 0 | BY21: 0 | BZ21: 0 | CA21: 0 | CB21: 192.61 | CE21: 94.5 | CG21: 3.95 | CH21: 3.95 | CI21: 3.95 | CJ21: 454.5 | CK21: 172.98 | CL21: 313.74 | CM21: 41.94 | CN21: 24.93 | CO21: 33.44 | CP21: 9 | CQ21: 0
A22: ="6/1" -> 6/1 | B22: Салат из белокочанной капусты с морковью и растительным маслом | C22: 50 | D22: 0.8 | E22: 0.0 | F22: 3.0 | G22: 3.0 | H22: 4.7 | I22: 46 | J22: 0.4 | K22: 2.0 | L22: 0.0 | M22: 0.0 | N22: 3.7 | O22: 0.1 | P22: 0.9 | Q22: 0.0 | R22: 0.0 | S22: 0.1 | T22: 0.6 | U22: 101.3 | V22: 126.0 | W22: 20.7 | X22: 8.9 | Y22: 16.0 | Z22: 0.3 | AA22: 0.0 | AB22: 948.2 | AC22: 161.1 | AD22: 1.4 | AE22: 0.0 | AF22: 0.0 | AG22: 0.3 | AH22: 0.4 | AI22: 16.9 | AJ22: 0 | AK22: 24.69 | AL22: 21.12 | AM22: 26.97 | AN22: 25.4 | AO22: 8.79 | AP22: 19.05 | AQ22: 4.3 | AR22: 23.01 | AS22: 29.86 | AT22: 34.45 | AU22: 73.79 | AV22: 11.39 | AW22: 19.55 | AX22: 119.49 | AY22: 0 | AZ22: 24.03 | BA22: 24.27 | BB22: 19.79 | BC22: 8.29 | BD22: 0 | BE22: 0 | BF22: 0 | BG22: 0 | BH22: 0 | BI22: 0 | BJ22: 0 | BK22: 0.18 | BL22: 0 | BM22: 0.12 | BN22: 0.01 | BO22: 0.02 | BP22: 0 | BQ22: 0 | BR22: 0 | BS22: 0.7 | BT22: 0 | BU22: 0 | BV22: 1.73 | BW22: 0 | BX22: 0 | BY22: 0 | BZ22: 0 | CA22: 0 | CB22: 40.95 | CE22: 158.03 | CG22: 13.55 | CH22: 6.21 | CI22: 9.88 | CJ22: 406.33 | CK22: 97.29 | CL22: 251.81 | CM22: 6.53 | CN22: 6.16 | CO22: 6.34 | CP22: 1.5 | CQ22: 0.25
A23: ="18/2" -> 18/2 | B23: Суп картофельный с макаронными изделиями на говяжьем бульоне | C23: 180 | D23: 2.9 | E23: 5.7 | F23: 6.4 | G23: 1.7 | H23: 14.6 | I23: 126 | J23: 1.6 | K23: 0.9 | L23: 0.0 | M23: 0.0 | N23: 1.8 | O23: 11.6 | P23: 1.3 | Q23: 0.0 | R23: 0.0 | S23: 0.1 | T23: 1.8 | U23: 418.6 | V23: 318.0 | W23: 13.8 | X23: 16.1 | Y23: 40.5 | Z23: 0.7 | AA23: 0.0 | AB23: 942.2 | AC23: 174.3 | AD23: 0.8 | AE23: 0.1 | AF23: 0.1 | AG23: 0.7 | AH23: 1.2 | AI23: 4.4 | AJ23: 0 | AK23: 48.91 | AL23: 52.8 | AM23: 84.78 | AN23: 50.35 | AO23: 16.42 | AP23: 44.18 | AQ23: 17.54 | AR23: 57.87 | AS23: 55.81 | AT23: 110.44 | AU23: 69.8 | AV23: 22.08 | AW23: 47.19 | AX23: 343.9 | AY23: 0 | AZ23: 85.19 | BA23: 51.12 | BB23: 33.84 | BC23: 21.41 | BD23: 0 | BE23: 0 | BF23: 0 | BG23: 0 | BH23: 0 | BI23: 0 | BJ23: 0 | BK23: 0.14 | BL23: 0 | BM23: 0.07 | BN23: 0 | BO23: 0.01 | BP23: 0 | BQ23: 0 | BR23: 0 | BS23: 0.42 | BT23: 0 | BU23: 0 | BV23: 0.9 | BW23: 0 | BX23: 0 | BY23: 0 | BZ23: 0 | CA23: 0 | CB23: 187.49 | CE23: 157.03 | CG23: 49.17 | CH23: 27.53 | CI23: 38.35 | CJ23: 625.17 | CK23: 375.25 | CL23: 500.21 | CM23: 38.79 | CN23: 19.02 | CO23: 28.9 | CP23: 0 | CQ23: 1.08
A24: ="4/9" -> 4/9 | B24: Плов из мяса цыплят-бройлеров | C24: 180 | D24: 16.2 | E24: 13.3 | F24: 17.6 | G24: 6.4 | H24: 33.8 | I24: 358 | J24: 4.7 | K24: 5.3 | L24: 0.0 | M24: 0.0 | N24: 1.6 | O24: 30.5 | P24: 1.7 | Q24: 0.0 | R24: 0.0 | S24: 0.1 | T24: 1.5 | U24: 122.2 | V24: 128.5 | W24: 18.3 | X24: 30.4 | Y24: 145.2 | Z24: 1.5 | AA24: 28.5 | AB24: 1196.1 | AC24: 256.6 | AD24: 4.2 | AE24: 0.1 | AF24: 0.1 | AG24: 5.6 | AH24: 11.7 | AI24: 0.8 | AJ24: 0 | AK24: 803.86 | AL24: 634.59 | AM24: 1270.87 | AN24: 1258.78 | AO24: 405.82 | AP24: 719.12 | AQ24: 252.84 | AR24: 686.61 | AS24: 995.86 | AT24: 1092.34 | AU24: 1409.27 | AV24: 421.02 | AW24: 1128.95 | AX24: 2361.87 | AY24: 110.57 | AZ24: 768.88 | BA24: 755.96 | BB24: 579.97 | BC24: 216.58 | BD24: 0 | BE24: 0 | BF24: 0 | BG24: 0 | BH24: 0 | BI24: 0 | BJ24: 0 | BK24: 0.43 | BL24: 0 | BM24: 0.26 | BN24: 0.02 | BO24: 0.04 | BP24: 0 | BQ24: 0 | BR24: 0 | BS24: 1.54 | BT24: 0 | BU24: 0 | BV24: 3.65 | BW24: 0 | BX24: 0 | BY24: 0 | BZ24: 0 | CA24: 0 | CB24: 158.86 | CE24: 227.83 | CG24: 21.96 | CH24: 11.1 | CI24: 16.53 | CJ24: 4297.8 | CK24: 2473.03 | CL24: 3385.41 | CM24: 22.31 | CN24: 14.18 | CO24: 18.24 | CP24: 0 | CQ24: 0.72
B25: Итого за 'Обед' | C25: =SUM(C19:C24) -> 640 | D25: =SUM(D19:D24) -> 23.7 | E25: 19.1 | F25: 27.5 | G25: 11.6 | H25: 93.8 | I25: 702 | J25: 6.8 | K25: 8.2 | L25: 0.0 | M25: 0.0 | N25: 24.9 | O25: 59.4 | P25: 9.5 | Q25: 0.0 | R25: 0.0 | S25: 0.9 | T25: 5.7 | U25: 828.2 | V25: 952.2 | W25: 91.5 | X25: 87.4 | Y25: 273.5 | Z25: 4.2 | AA25: 28.5 | AB25: 3655.0 | AC25: 697.3 | AD25: 7.8 | AE25: 0.3 | AF25: 0.3 | AG25: 7.4 | AH25: 14.7 | AI25: 22.6 | AJ25: 0 | AK25: 1037.92 | AL25: 849.39 | AM25: 1612.52 | AN25: 1435.2 | AO25: 478.94 | AP25: 881.78 | AQ25: 313.83 | AR25: 951.18 | AS25: 1215.53 | AT25: 1387.18 | AU25: 1743.79 | AV25: 518.84 | AW25: 1336.72 | AX25: 3694.57 | AY25: 110.57 | AZ25: 1166.77 | BA25: 975.57 | BB25: 725.35 | BC25: 315.21 | BD25: 0 | BE25: 0 | BF25: 0 | BG25: 0 | BH25: 0 | BI25: 0 | BJ25: 0 | BK25: 0.81 | BL25: 0 | BM25: 0.45 | BN25: 0.04 | BO25: 0.07 | BP25: 0 | BQ25: 0 | BR25: 0.01 | BS25: 2.71 | BT25: 0 | BU25: 0 | BV25: 6.49 | BW25: 0.03 | BX25: 0 | BY25: 0 | BZ25: 0 | CA25: 0 | CB25: 601.83 | CD25: =$I$25/#REF!*100 ->  | CE25: 637.64 | CG25: 91.62 | CH25: 51.78 | CI25: 71.7 | CJ25: 6733.8 | CK25: 3484.56 | CL25: 5109.18 | CM25: 118.3 | CN25: 72.06 | CO25: 95.18 | CP25: 10.5 | CQ25: 2.05
B26: Уплотненный полдник
A27: ="-" -> - | B27: Хлеб ржаной | C27: 10 | D27: 0.6 | E27: 0.0 | F27: 0.1 | G27: 0.1 | H27: 4.2 | I27: 19 | J27: 0.0 | K27: 0.0 | L27: 0.0 | M27: 0.0 | N27: 0.1 | O27: 3.2 | P27: 0.8 | Q27: 0.0 | R27: 0.0 | S27: 0.1 | T27: 0.3 | U27: 61.0 | V27: 24.5 | W27: 3.5 | X27: 4.7 | Y27: 15.8 | Z27: 0.4 | AA27: 0.0 | AB27: 0.5 | AC27: 0.1 | AD27: 0.1 | AE27: 0.0 | AF27: 0.0 | AG27: 0.1 | AH27: 0.2 | AI27: 0.0 | AJ27: 0 | AK27: 32.2 | AL27: 24.8 | AM27: 42.7 | AN27: 22.3 | AO27: 9.3 | AP27: 19.8 | AQ27: 8 | AR27: 37.1 | AS27: 29.7 | AT27: 29.1 | AU27: 46.4 | AV27: 12.4 | AW27: 31 | AX27: 155.9 | AY27: 0 | AZ27: 52.6 | BA27: 29.1 | BB27: 18 | BC27: 13 | BD27: 0 | BE27: 0 | BF27: 0 | BG27: 0 | BH27: 0 | BI27: 0 | BJ27: 0 | BK27: 0.01 | BL27: 0 | BM27: 0 | BN27: 0 | BO27: 0 | BP27: 0 | BQ27: 0 | BR27: 0 | BS27: 0.01 | BT27: 0 | BU27: 0 | BV27: 0.05 | BW27: 0.01 | BX27: 0 | BY27: 0 | BZ27: 0 | CA27: 0 | CB27: 4.7 | CE27: 0.08 | CG27: 3 | CH27: 3 | CI27: 3 | CJ27: 570 | CK27: 219.6 | CL27: 394.8 | CM27: 5.7 | CN27: 4.74 | CO27: 5.22 | CP27: 0 | CQ27: 0
A28: ="27/12" -> 27/12 | B28: Оладьи | C28: 70 | D28: 3.8 | E28: 0.4 | F28: 4.3 | G28: 4.6 | H28: 23.3 | I28: 147 | J28: 0.7 | K28: 2.7 | L28: 0.0 | M28: 0.0 | N28: 1.4 | O28: 20.8 | P28: 1.1 | Q28: 0.0 | R28: 0.0 | S28: 0.0 | T28: 0.8 | U28: 247.8 | V28: 41.2 | W28: 8.4 | X28: 5.2 | Y28: 30.2 | Z28: 0.4 | AA28: 2.7 | AB28: 0.8 | AC28: 4.7 | AD28: 2.4 | AE28: 0.0 | AF28: 0.0 | AG28: 0.4 | AH28: 1.2 | AI28: 0.0 | AJ28: 0 | AK28: 172.68 | AL28: 154.06 | AM28: 287.43 | AN28: 108.79 | AO28: 59.86 | AP28: 115.98 | AQ28: 36.97 | AR28: 175.94 | AS28: 126.28 | AT28: 149 | AU28: 144.56 | AV28: 75.28 | AW28: 126.43 | AX28: 1033.3 | AY28: 3.45 | AZ28: 321.17 | BA28: 181.03 | BB28: 93.08 | BC28: 70.65 | BD28: 0 | BE28: 0 | BF28: 0 | BG28: 0 | BH28: 0 | BI28: 0 | BJ28: 0 | BK28: 0.27 | BL28: 0 | BM28: 0.15 | BN28: 0.01 | BO28: 0.03 | BP28: 0 | BQ28: 0 | BR28: 0 | BS28: 0.91 | BT28: 0 | BU28: 0 | BV28: 2.64 | BW28: 0.01 | BX28: 0 | BY28: 0 | BZ28: 0 | CA28: 0 | CB28: 40.34 | CE28: 2.83 | CG28: 7.46 | CH28: 3.85 | CI28: 5.66 | CJ28: 196.44 | CK28: 71.38 | CL28: 133.91 | CM28: 1.09 | CN28: 0.61 | CO28: 0.95 | CP28: 1.19 | CQ28: 0.63
A29: ="27/10" -> 27/10 | B29: Чай полусладкий | C29: 180 | D29: 0.2 | E29: 0.0 | F29: 0.0 | G29: 0.0 | H29: 4.5 | I29: 18 | J29: 0.0 | K29: 0.0 | L29: 0.0 | M29: 0.0 | N29: 4.4 | O29: 0.0 | P29: 0.1 | Q29: 0.0 | R29: 0.0 | S29: 0.0 | T29: 0.1 | U29: 0.0 | V29: 0.1 | W29: 0.1 | X29: 0.0 | Y29: 0.0 | Z29: 0.0 | AA29: 0.0 | AB29: 0.0 | AC29: 0.0 | AD29: 0.0 | AE29: 0.0 | AF29: 0.0 | AG29: 0.0 | AH29: 0.0 | AI29: 0.0 | AJ29: 0 | AK29: 0 | AL29: 0 | AM29: 0 | AN29: 0 | AO29: 0 | AP29: 0 | AQ29: 0 | AR29: 0 | AS29: 0 | AT29: 0 | AU29: 0 | AV29: 0 | AW29: 0 | AX29: 0 | AY29: 0 | AZ29: 0 | BA29: 0 | BB29: 0 | BC29: 0 | BD29: 0 | BE29: 0 | BF29: 0 | BG29: 0 | BH29: 0 | BI29: 0 | BJ29: 0 | BK29: 0 | BL29: 0 | BM29: 0 | BN29: 0 | BO29: 0 | BP29: 0 | BQ29: 0 | BR29: 0 | BS29: 0 | BT29: 0 | BU29: 0 | BV29: 0 | BW29: 0 | BX29: 0 | BY29: 0 | BZ29: 0 | CA29: 0 | CB29: 180.08 | CE29: 0 | CG29: 3.69 | CH29: 3.69 | CI29: 3.69 | CJ29: 398.25 | CK29: 156.6 | CL29: 277.43 | CM29: 39.61 | CN29: 23.41 | CO29: 31.51 | CP29: 4.5 | CQ29: 0
A30: ="2/4" -> 2/4 | B30: Каша гречневая молочная с маслом сливочным | C30: 180 | D30: 7.1 | E30: 2.6 | F30: 6.6 | G30: 1.2 | H30: 31.0 | I30: 205 | J30: 3.9 | K30: 0.1 | L30: 0.0 | M30: 0.0 | N30: 8.2 | O30: 19.0 | P30: 3.9 | Q30: 0.0 | R30: 0.0 | S30: 0.1 | T30: 1.8 | U30: 218.8 | V30: 267.0 | W30: 114.5 | X30: 80.5 | Y30: 176.7 | Z30: 2.5 | AA30: 36.0 | AB30: 23.5 | AC30: 40.8 | AD30: 0.3 | AE30: 0.2 | AF30: 0.2 | AG30: 1.4 | AH30: 3.3 | AI30: 0.5 | AJ30: 0 | AK30: 210 | AL30: 164.1 | AM30: 266.19 | AN30: 188.97 | AO30: 113.65 | AP30: 143.19 | AQ30: 65.4 | AR30: 210.71 | AS30: 206.21 | AT30: 396.28 | AU30: 391.3 | AV30: 107.38 | AW30: 255.07 | AX30: 803.59 | AY30: 0 | AZ30: 178.52 | BA30: 216.18 | BB30: 153.56 | BC30: 116.87 | BD30: 0.12 | BE30: 0.05 | BF30: 0.03 | BG30: 0.07 | BH30: 0.08 | BI30: 0.35 | BJ30: 0 | BK30: 1.16 | BL30: 0 | BM30: 0.31 | BN30: 0 | BO30: 0 | BP30: 0 | BQ30: 0.07 | BR30: 0.11 | BS30: 1.17 | BT30: 0.01 | BU30: 0 | BV30: 0.41 | BW30: 0.04 | BX30: 0 | BY30: 0 | BZ30: 0 | CA30: 0 | CB30: 149.27 | CE30: 39.92 | CG30: 28.8 | CH30: 13.36 | CI30: 21.08 | CJ30: 1984.2 | CK30: 901.05 | CL30: 1442.62 | CM30: 35.28 | CN30: 18.22 | CO30: 26.75 | CP30: 3.6 | CQ30: 0.45
B31: Итого за 'Уплотненный полдник' | C31: =SUM(C27:C30) -> 440 | D31: =SUM(D27:D30) -> 11.7 | E31: 3.0 | F31: 11.0 | G31: 6.0 | H31: 63.0 | I31: 388 | J31: 4.5 | K31: 2.8 | L31: 0.0 | M31: 0.0 | N31: 14.2 | O31: 43.0 | P31: 5.9 | Q31: 0.0 | R31: 0.0 | S31: 0.2 | T31: 2.9 | U31: 527.7 | V31: 332.8 | W31: 126.5 | X31: 90.4 | Y31: 222.7 | Z31: 3.3 | AA31: 38.7 | AB31: 24.8 | AC31: 45.5 | AD31: 2.9 | AE31: 0.2 | AF31: 0.2 | AG31: 1.8 | AH31: 4.7 | AI31: 0.5 | AJ31: 0 | AK31: 414.88 | AL31: 342.96 | AM31: 596.32 | AN31: 320.06 | AO31: 182.81 | AP31: 278.97 | AQ31: 110.37 | AR31: 423.75 | AS31: 362.19 | AT31: 574.39 | AU31: 582.26 | AV31: 195.07 | AW31: 412.5 | AX31: 1992.79 | AY31: 3.45 | AZ31: 552.29 | BA31: 426.31 | BB31: 264.64 | BC31: 200.52 | BD31: 0.12 | BE31: 0.05 | BF31: 0.03 | BG31: 0.07 | BH31: 0.08 | BI31: 0.35 | BJ31: 0 | BK31: 1.44 | BL31: 0 | BM31: 0.47 | BN31: 0.02 | BO31: 0.03 | BP31: 0 | BQ31: 0.07 | BR31: 0.11 | BS31: 2.09 | BT31: 0.01 | BU31: 0 | BV31: 3.1 | BW31: 0.06 | BX31: 0 | BY31: 0 | BZ31: 0 | CA31: 0 | CB31: 374.39 | CD31: =$I$31/#REF!*100 ->  | CE31: 42.83 | CG31: 42.95 | CH31: 23.89 | CI31: 33.42 | CJ31: 3148.89 | CK31: 1348.63 | CL31: 2248.76 | CM31: 81.68 | CN31: 46.98 | CO31: 64.43 | CP31: 9.29 | CQ31: 1.08
B32: Итого за день | C32: =C14+C17+C25+C31 -> 1600 | D32: =D14+D17+D25+D31 -> 47.0 | E32: 28.3 | F32: 49.0 | G32: 19.5 | H32: 220.0 | I32: 1476 | J32: 17.3 | K32: 11.1 | L32: 0.0 | M32: 0.0 | N32: 64.2 | O32: 135.6 | P32: 20.2 | Q32: 0.0 | R32: 0.0 | S32: 2.3 | T32: 12.0 | U32: 1883.1 | V32: 1853.7 | W32: 508.3 | X32: 235.5 | Y32: 813.7 | Z32: 11.1 | AA32: 116.4 | AB32: 3746.8 | AC32: 817.1 | AD32: 12.1 | AE32: 0.7 | AF32: 0.7 | AG32: 10.9 | AH32: 24.2 | AI32: 33.8 | AJ32: 0 | AK32: 1915.46 | AL32: 1614.53 | AM32: 2829.76 | AN32: 2124.25 | AO32: 816.65 | AP32: 1432.71 | AQ32: 570.34 | AR32: 1841.03 | AS32: 1902.65 | AT32: 2352.68 | AU32: 2891.25 | AV32: 927 | AW32: 2053.28 | AX32: 7849.73 | AY32: 114.01 | AZ32: 2726.52 | BA32: 1794.84 | BB32: 1315.97 | BC32: 669.7 | BD32: 0.21 | BE32: 0.11 | BF32: 0.09 | BG32: 0.23 | BH32: 0.27 | BI32: 0.98 | BJ32: 0.04 | BK32: 3.83 | BL32: 0.01 | BM32: 1.37 | BN32: 0.07 | BO32: 0.1 | BP32: 0 | BQ32: 0.17 | BR32: 0.27 | BS32: 6.31 | BT32: 0.01 | BU32: 0 | BV32: 9.96 | BW32: 0.09 | BX32: 0 | BY32: 0 | BZ32: 0 | CA32: 0 | CB32: 1429.77 | CE32: 740.84 | CG32: 177.64 | CH32: 95.88 | CI32: 136.76 | CJ32: 13817.36 | CK32: 6769.93 | CL32: 10293.65 | CM32: 286.93 | CN32: 167.45 | CO32: 227.29 | CP32: 28.29 | CQ32: 3.63
B34: 2 ДЕНЬ
B35: Завтрак
A36: ="-" -> - | B36: Хлеб пшеничный | C36: 30 | D36: 1.8 | E36: 0.0 | F36: 0.2 | G36: 0.2 | H36: 11.1 | I36: 54 | J36: 0.0 | K36: 0.0 | L36: 0.0 | M36: 0.0 | N36: 0.3 | O36: 10.7 | P36: 0.1 | Q36: 0.0 | R36: 0.0 | S36: 0.0 | T36: 0.5 | U36: 0.0 | V36: 0.0 | W36: 0.0 | X36: 0.0 | Y36: 0.0 | Z36: 0.0 | AA36: 0.0 | AB36: 0.0 | AC36: 0.0 | AD36: 0.0 | AE36: 0.0 | AF36: 0.0 | AG36: 0.0 | AH36: 0.0 | AI36: 0.0 | AJ36: 0 | AK36: 95.79 | AL36: 99.7 | AM36: 152.69 | AN36: 50.63 | AO36: 30.02 | AP36: 60.03 | AQ36: 22.71 | AR36: 108.58 | AS36: 67.34 | AT36: 93.96 | AU36: 77.52 | AV36: 40.72 | AW36: 72.04 | AX36: 602.39 | AY36: 0 | AZ36: 196.27 | BA36: 85.35 | BB36: 56.64 | BC36: 44.89 | BD36: 0 | BE36: 0 | BF36: 0 | BG36: 0 | BH36: 0 | BI36: 0 | BJ36: 0 | BK36: 0.02 | BL36: 0 | BM36: 0 | BN36: 0 | BO36: 0 | BP36: 0 | BQ36: 0 | BR36: 0 | BS36: 0.02 | BT36: 0 | BU36: 0 | BV36: 0.08 | BW36: 0 | BX36: 0 | BY36: 0 | BZ36: 0 | CA36: 0 | CB36: 11.73 | CE36: 0 | CG36: 0 | CH36: 0 | CI36: 0 | CJ36: 570 | CK36: 219.6 | CL36: 394.8 | CM36: 4.56 | CN36: 4.56 | CO36: 4.56 | CP36: 0 | CQ36: 0
A37: ="-" -> - | B37: Масло сливочное | C37: 5 | D37: 0.0 | E37: 0.0 | F37: 3.6 | G37: 0.0 | H37: 0.1 | I37: 33 | J37: 2.4 | K37: 0.1 | L37: 0.0 | M37: 0.0 | N37: 0.1 | O37: 0.0 | P37: 0.0 | Q37: 0.0 | R37: 0.0 | S37: 0.0 | T37: 0.1 | U37: 0.8 | V37: 1.5 | W37: 1.2 | X37: 0.0 | Y37: 1.5 | Z37: 0.0 | AA37: 20.0 | AB37: 15.0 | AC37: 22.5 | AD37: 0.1 | AE37: 0.0 | AF37: 0.0 | AG37: 0.0 | AH37: 0.0 | AI37: 0.0 | AJ37: 0 | AK37: 2.1 | AL37: 2.05 | AM37: 3.8 | AN37: 2.25 | AO37: 0.85 | AP37: 2.35 | AQ37: 2.15 | AR37: 2.1 | AS37: 1.8 | AT37: 1.3 | AU37: 2.85 | AV37: 1.75 | AW37: 1.2 | AX37: 7.1 | AY37: 0 | AZ37: 2.4 | BA37: 2.7 | BB37: 2.1 | BC37: 0.5 | BD37: 0.13 | BE37: 0.06 | BF37: 0.03 | BG37: 0.08 | BH37: 0.09 | BI37: 0.4 | BJ37: 0 | BK37: 1.1 | BL37: 0 | BM37: 0.34 | BN37: 0 | BO37: 0 | BP37: 0 | BQ37: 0.08 | BR37: 0.12 | BS37: 0.9 | BT37: 0 | BU37: 0 | BV37: 0.05 | BW37: 0 | BX37: 0 | BY37: 0 | BZ37: 0 | CA37: 0 | CB37: 1.25 | CE37: 22.5 | CG37: 0.2 | CH37: 0.05 | CI37: 0.13 | CJ37: 10 | CK37: 4.1 | CL37: 7.05 | CM37: 0.86 | CN37: 0.44 | CO37: 0.65 | CP37: 0 | CQ37: 0
A38: ="29/10" -> 29/10 | B38: Чай с лимоном | C38: 180 | D38: 0.2 | E38: 0.0 | F38: 0.1 | G38: 0.1 | H38: 8.9 | I38: 36 | J38: 0.0 | K38: 0.0 | L38: 0.0 | M38: 0.0 | N38: 8.8 | O38: 0.0 | P38: 0.2 | Q38: 0.0 | R38: 0.0 | S38: 0.3 | T38: 0.1 | U38: 0.6 | V38: 7.4 | W38: 2.0 | X38: 0.5 | Y38: 0.9 | Z38: 0.1 | AA38: 0.0 | AB38: 0.4 | AC38: 0.1 | AD38: 0.0 | AE38: 0.0 | AF38: 0.0 | AG38: 0.0 | AH38: 0.0 | AI38: 0.7 | AJ38: 0 | AK38: 0.6 | AL38: 0.69 | AM38: 0.56 | AN38: 1.03 | AO38: 0.26 | AP38: 1.08 | AQ38: 0 | AR38: 1.38 | AS38: 0 | AT38: 0 | AU38: 0 | AV38: 0.77 | AW38: 0 | AX38: 0 | AY38: 0 | AZ38: 0 | BA38: 0 | BB38: 0 | BC38: 0 | BD38: 0 | BE38: 0 | BF38: 0 | BG38: 0 | BH38: 0 | BI38: 0 | BJ38: 0 | BK38: 0 | BL38: 0 | BM38: 0 | BN38: 0 | BO38: 0 | BP38: 0 | BQ38: 0 | BR38: 0 | BS38: 0 | BT38: 0 | BU38: 0 | BV38: 0 | BW38: 0 | BX38: 0 | BY38: 0 | BZ38: 0 | CA38: 0 | CB38: 179.55 | CE38: 0.07 | CG38: 3.85 | CH38: 3.72 | CI38: 3.79 | CJ38: 434.63 | CK38: 165.16 | CL38: 299.9 | CM38: 39.92 | CN38: 23.87 | CO38: 31.9 | CP38: 8.78 | CQ38: 0
A39: ="11/4" -> 11/4 | B39: Каша пшенная молочная с маслом сливочным | C39: 200 | D39: 6.5 | E39: 2.4 | F39: 6.1 | G39: 1.3 | H39: 32.6 | I39: 210 | J39: 3.8 | K39: 0.1 | L39: 0.0 | M39: 0.0 | N39: 7.8 | O39: 23.5 | P39: 1.3 | Q39: 0.0 | R39: 0.0 | S39: 0.1 | T39: 1.6 | U39: 238.3 | V39: 178.5 | W39: 96.8 | X39: 38.7 | Y39: 145.4 | Z39: 1.0 | AA39: 21.6 | AB39: 24.8 | AC39: 41.3 | AD39: 0.2 | AE39: 0.1 | AF39: 0.1 | AG39: 0.6 | AH39: 2.5 | AI39: 0.4 | AJ39: 0 | AK39: 178.69 | AL39: 163.61 | AM39: 580.36 | AN39: 110.4 | AO39: 112.1 | AP39: 152.61 | AQ39: 69.7 | AR39: 220.05 | AS39: 405.89 | AT39: 161.02 | AU39: 247.08 | AV39: 99.41 | AW39: 113.93 | AX39: 841.39 | AY39: 0 | AZ39: 306.82 | BA39: 265.74 | BB39: 156.13 | BC39: 68.15 | BD39: 0.12 | BE39: 0.05 | BF39: 0.03 | BG39: 0.07 | BH39: 0.08 | BI39: 0.35 | BJ39: 0 | BK39: 1.06 | BL39: 0 | BM39: 0.32 | BN39: 0.01 | BO39: 0 | BP39: 0 | BQ39: 0.07 | BR39: 0.11 | BS39: 0.98 | BT39: 0 | BU39: 0 | BV39: 0.78 | BW39: 0.01 | BX39: 0 | BY39: 0 | BZ39: 0 | CA39: 0 | CB39: 166.06 | CE39: 25.73 | CG39: 31.04 | CH39: 15.29 | CI39: 23.16 | CJ39: 2125.67 | CK39: 973.93 | CL39: 1549.8 | CM39: 36.73 | CN39: 18.95 | CO39: 27.84 | CP39: 4 | CQ39: 0.5
B40: Итого за 'Завтрак' | C40: =SUM(C36:C39) -> 415 | D40: =SUM(D36:D39) -> 8.6 | E40: 2.4 | F40: 10.0 | G40: 1.6 | H40: 52.7 | I40: 333 | J40: 6.2 | K40: 0.2 | L40: 0.0 | M40: 0.0 | N40: 17.0 | O40: 34.2 | P40: 1.6 | Q40: 0.0 | R40: 0.0 | S40: 0.3 | T40: 2.3 | U40: 239.7 | V40: 187.4 | W40: 99.9 | X40: 39.2 | Y40: 147.8 | Z40: 1.1 | AA40: 41.6 | AB40: 40.2 | AC40: 63.9 | AD40: 0.2 | AE40: 0.1 | AF40: 0.1 | AG40: 0.6 | AH40: 2.5 | AI40: 1.1 | AJ40: 0 | AK40: 277.18 | AL40: 266.05 | AM40: 737.4 | AN40: 164.32 | AO40: 143.22 | AP40: 216.06 | AQ40: 94.56 | AR40: 332.11 | AS40: 475.03 | AT40: 256.28 | AU40: 327.45 | AV40: 142.65 | AW40: 187.16 | AX40: 1450.88 | AY40: 0 | AZ40: 505.49 | BA40: 353.79 | BB40: 214.87 | BC40: 113.54 | BD40: 0.25 | BE40: 0.12 | BF40: 0.06 | BG40: 0.14 | BH40: 0.16 | BI40: 0.75 | BJ40: 0 | BK40: 2.18 | BL40: 0 | BM40: 0.66 | BN40: 0.01 | BO40: 0 | BP40: 0 | BQ40: 0.14 | BR40: 0.22 | BS40: 1.9 | BT40: 0 | BU40: 0 | BV40: 0.91 | BW40: 0.02 | BX40: 0 | BY40: 0 | BZ40: 0 | CA40: 0 | CB40: 358.58 | CD40: =$I$40/#REF!*100 ->  | CE40: 48.3 | CG40: 35.09 | CH40: 19.06 | CI40: 27.07 | CJ40: 3140.3 | CK40: 1362.79 | CL40: 2251.54 | CM40: 82.06 | CN40: 47.81 | CO40: 64.94 | CP40: 12.78 | CQ40: 0.5
B41: Второй завтрак
A42: ="-" -> - | B42: Ряженка | C42: 100 | D42: 3.0 | E42: 0.0 | F42: 2.5 | G42: 0.3 | H42: 4.2 | I42: 51 | J42: 0.1 | K42: 0.0 | L42: 0.0 | M42: 0.0 | N42: 4.2 | O42: 0.0 | P42: 0.0 | Q42: 0.0 | R42: 0.0 | S42: 0.1 | T42: 0.4 | U42: 2.0 | V42: 238.0 | W42: 15.0 | X42: 9.0 | Y42: 12.0 | Z42: 0.4 | AA42: 0.0 | AB42: 30.0 | AC42: 5.0 | AD42: 0.1 | AE42: 0.0 | AF42: 0.0 | AG42: 0.6 | AH42: 0.7 | AI42: 15.0 | AJ42: 0 | AK42: 0 | AL42: 0 | AM42: 450 | AN42: 387 | AO42: 115 | AP42: 216 | AQ42: 72 | AR42: 225 | AS42: 160 | AT42: 174 | AU42: 344 | AV42: 156 | AW42: 93 | AX42: 897 | AY42: 0 | AZ42: 518 | BA42: 278 | BB42: 242 | BC42: 50 | BD42: 0.1 | BE42: 0.07 | BF42: 0.04 | BG42: 0.08 | BH42: 0.09 | BI42: 0.45 | BJ42: 0.03 | BK42: 0.56 | BL42: 0.02 | BM42: 0.31 | BN42: 0.04 | BO42: 0 | BP42: 0 | BQ42: 0.04 | BR42: 0.08 | BS42: 0.69 | BT42: 0.01 | BU42: 0 | BV42: 0.02 | BW42: 0.03 | BX42: 0.08 | BY42: 0 | BZ42: 0 | CA42: 0 | CB42: 93 | CE42: 5 | CG42: 0 | CH42: 0 | CI42: 0 | CJ42: 0 | CK42: 0 | CL42: 0 | CM42: 0 | CN42: 0 | CO42: 0 | CP42: 0 | CQ42: 0
A43: ="-" -> - | B43: Печенье | C43: 20 | D43: 0.4 | E43: 0.0 | F43: 2.6 | G43: 0.0 | H43: 11.5 | I43: 70 | J43: 0.4 | K43: 0.0 | L43: 0.0 | M43: 0.0 | N43: 5.0 | O43: 6.0 | P43: 0.5 | Q43: 0.0 | R43: 0.0 | S43: 0.1 | T43: 0.2 | U43: 66.0 | V43: 22.0 | W43: 5.8 | X43: 4.0 | Y43: 18.0 | Z43: 0.4 | AA43: 2.0 | AB43: 1.6 | AC43: 2.2 | AD43: 0.7 | AE43: 0.0 | AF43: 0.0 | AG43: 0.1 | AH43: 0.4 | AI43: 0.0 | AJ43: 0 | AK43: 0 | AL43: 0 | AM43: 0 | AN43: 0 | AO43: 0 | AP43: 0 | AQ43: 0 | AR43: 0 | AS43: 0 | AT43: 0 | AU43: 0 | AV43: 0 | AW43: 0 | AX43: 0 | AY43: 0 | AZ43: 0 | BA43: 0 | BB43: 0 | BC43: 0 | BD43: 0 | BE43: 0 | BF43: 0 | BG43: 0 | BH43: 0 | BI43: 0 | BJ43: 0 | BK43: 0 | BL43: 0 | BM43: 0 | BN43: 0 | BO43: 0 | BP43: 0 | BQ43: 0 | BR43: 0 | BS43: 0 | BT43: 0 | BU43: 0 | BV43: 0 | BW43: 0 | BX43: 0 | BY43: 0 | BZ43: 0 | CA43: 0 | CB43: 0.9 | CE43: 2.27 | CG43: 0 | CH43: 0 | CI43: 0 | CJ43: 0 | CK43: 0 | CL43: 0 | CM43: 0 | CN43: 0 | CO43: 0 | CP43: 0 | CQ43: 0
B44: Итого за 'Второй завтрак' | C44: =SUM(C42:C43) -> 120 | D44: =SUM(D42:D43) -> 3.4 | E44: 0.0 | F44: 5.1 | G44: 0.3 | H44: 15.7 | I44: 121 | J44: 0.5 | K44: 0.0 | L44: 0.0 | M44: 0.0 | N44: 9.2 | O44: 6.0 | P44: 0.5 | Q44: 0.0 | R44: 0.0 | S44: 0.2 | T44: 0.6 | U44: 68.0 | V44: 260.0 | W44: 20.8 | X44: 13.0 | Y44: 30.0 | Z44: 0.8 | AA44: 2.0 | AB44: 31.6 | AC44: 7.2 | AD44: 0.8 | AE44: 0.1 | AF44: 0.0 | AG44: 0.7 | AH44: 1.1 | AI44: 15.0 | AJ44: 0 | AK44: 0 | AL44: 0 | AM44: 450 | AN44: 387 | AO44: 115 | AP44: 216 | AQ44: 72 | AR44: 225 | AS44: 160 | AT44: 174 | AU44: 344 | AV44: 156 | AW44: 93 | AX44: 897 | AY44: 0 | AZ44: 518 | BA44: 278 | BB44: 242 | BC44: 50 | BD44: 0.1 | BE44: 0.07 | BF44: 0.04 | BG44: 0.08 | BH44: 0.09 | BI44: 0.45 | BJ44: 0.03 | BK44: 0.56 | BL44: 0.02 | BM44: 0.31 | BN44: 0.04 | BO44: 0 | BP44: 0 | BQ44: 0.04 | BR44: 0.08 | BS44: 0.69 | BT44: 0.01 | BU44: 0 | BV44: 0.02 | BW44: 0.03 | BX44: 0.08 | BY44: 0 | BZ44: 0 | CA44: 0 | CB44: 93.9 | CD44: =$I$44/#REF!*100 ->  | CE44: 7.27 | CG44: 0 | CH44: 0 | CI44: 0 | CJ44: 0 | CK44: 0 | CL44: 0 | CM44: 0 | CN44: 0 | CO44: 0 | CP44: 0 | CQ44: 0
B45: Обед
A46: ="-" -> - | B46: Хлеб пшеничный | C46: 20 | D46: 1.2 | E46: 0.0 | F46: 0.1 | G46: 0.1 | H46: 7.4 | I46: 36 | J46: 0.0 | K46: 0.0 | L46: 0.0 | M46: 0.0 | N46: 0.2 | O46: 7.1 | P46: 0.0 | Q46: 0.0 | R46: 0.0 | S46: 0.0 | T46: 0.4 | U46: 0.0 | V46: 0.0 | W46: 0.0 | X46: 0.0 | Y46: 0.0 | Z46: 0.0 | AA46: 0.0 | AB46: 0.0 | AC46: 0.0 | AD46: 0.0 | AE46: 0.0 | AF46: 0.0 | AG46: 0.0 | AH46: 0.0 | AI46: 0.0 | AJ46: 0 | AK46: 63.86 | AL46: 66.47 | AM46: 101.79 | AN46: 33.76 | AO46: 20.01 | AP46: 40.02 | AQ46: 15.14 | AR46: 72.38 | AS46: 44.89 | AT46: 62.64 | AU46: 51.68 | AV46: 27.14 | AW46: 48.02 | AX46: 401.59 | AY46: 0 | AZ46: 130.85 | BA46: 56.9 | BB46: 37.76 | BC46: 29.93 | BD46: 0 | BE46: 0 | BF46: 0 | BG46: 0 | BH46: 0 | BI46: 0 | BJ46: 0 | BK46: 0.02 | BL46: 0 | BM46: 0 | BN46: 0 | BO46: 0 | BP46: 0 | BQ46: 0 | BR46: 0 | BS46: 0.01 | BT46: 0 | BU46: 0 | BV46: 0.06 | BW46: 0 | BX46: 0 | BY46: 0 | BZ46: 0 | CA46: 0 | CB46: 7.82 | CE46: 0 | CG46: 0 | CH46: 0 | CI46: 0 | CJ46: 380 | CK46: 146.4 | CL46: 263.2 | CM46: 3.04 | CN46: 3.04 | CO46: 3.04 | CP46: 0 | CQ46: 0
A47: ="-" -> - | B47: Хлеб ржаной | C47: 30 | D47: 1.8 | E47: 0.0 | F47: 0.4 | G47: 0.4 | H47: 12.5 | I47: 57 | J47: 0.1 | K47: 0.0 | L47: 0.0 | M47: 0.0 | N47: 0.4 | O47: 9.7 | P47: 2.5 | Q47: 0.0 | R47: 0.0 | S47: 0.3 | T47: 0.8 | U47: 183.0 | V47: 73.5 | W47: 10.5 | X47: 14.1 | Y47: 47.4 | Z47: 1.2 | AA47: 0.0 | AB47: 1.5 | AC47: 0.3 | AD47: 0.4 | AE47: 0.1 | AF47: 0.0 | AG47: 0.2 | AH47: 0.6 | AI47: 0.0 | AJ47: 0 | AK47: 96.6 | AL47: 74.4 | AM47: 128.1 | AN47: 66.9 | AO47: 27.9 | AP47: 59.4 | AQ47: 24 | AR47: 111.3 | AS47: 89.1 | AT47: 87.3 | AU47: 139.2 | AV47: 37.2 | AW47: 93 | AX47: 467.7 | AY47: 0 | AZ47: 157.8 | BA47: 87.3 | BB47: 54 | BC47: 39 | BD47: 0 | BE47: 0 | BF47: 0 | BG47: 0 | BH47: 0 | BI47: 0 | BJ47: 0 | BK47: 0.04 | BL47: 0 | BM47: 0 | BN47: 0.01 | BO47: 0 | BP47: 0 | BQ47: 0 | BR47: 0 | BS47: 0.03 | BT47: 0 | BU47: 0 | BV47: 0.14 | BW47: 0.02 | BX47: 0 | BY47: 0 | BZ47: 0 | CA47: 0 | CB47: 14.1 | CE47: 0.25 | CG47: 4 | CH47: 4 | CI47: 4 | CJ47: 760 | CK47: 292.8 | CL47: 526.4 | CM47: 7.6 | CN47: 6.32 | CO47: 6.96 | CP47: 0 | CQ47: 0
A48: ="3/10" -> 3/10 | B48: Компот из яблок | C48: 180 | D48: 0.1 | E48: 0.0 | F48: 0.1 | G48: 0.1 | H48: 17.3 | I48: 67 | J48: 0.0 | K48: 0.0 | L48: 0.0 | M48: 0.0 | N48: 16.4 | O48: 0.3 | P48: 0.6 | Q48: 0.0 | R48: 0.0 | S48: 0.3 | T48: 0.2 | U48: 9.4 | V48: 99.5 | W48: 6.0 | X48: 3.1 | Y48: 3.7 | Z48: 0.8 | AA48: 0.0 | AB48: 9.7 | AC48: 1.8 | AD48: 0.1 | AE48: 0.0 | AF48: 0.0 | AG48: 0.1 | AH48: 0.1 | AI48: 1.4 | AJ48: 0 | AK48: 4.23 | AL48: 4.59 | AM48: 6.7 | AN48: 6.35 | AO48: 1.06 | AP48: 3.88 | AQ48: 1.06 | AR48: 3.18 | AS48: 6 | AT48: 3.53 | AU48: 27.52 | AV48: 2.47 | AW48: 4.94 | AX48: 14.82 | AY48: 0 | AZ48: 4.59 | BA48: 5.64 | BB48: 2.12 | BC48: 1.76 | BD48: 0 | BE48: 0 | BF48: 0 | BG48: 0 | BH48: 0 | BI48: 0 | BJ48: 0 | BK48: 0 | BL48: 0 | BM48: 0 | BN48: 0 | BO48: 0 | BP48: 0 | BQ48: 0 | BR48: 0 | BS48: 0 | BT48: 0 | BU48: 0 | BV48: 0 | BW48: 0 | BX48: 0 | BY48: 0 | BZ48: 0 | CA48: 0 | CB48: 220.08 | CE48: 1.62 | CG48: 4.5 | CH48: 4.5 | CI48: 4.5 | CJ48: 432 | CK48: 208.98 | CL48: 320.49 | CM48: 41.2 | CN48: 24.19 | CO48: 32.7 | CP48: 13.5 | CQ48: 0
A49: ="32/1" -> 32/1 | B49: Салат из отварной свеклы с растительным маслом | C49: 50 | D49: 0.7 | E49: 0.0 | F49: 3.0 | G49: 3.0 | H49: 4.5 | I49: 45 | J49: 0.4 | K49: 2.0 | L49: 0.0 | M49: 0.0 | N49: 3.4 | O49: 0.0 | P49: 1.1 | Q49: 0.0 | R49: 0.0 | S49: 0.1 | T49: 0.7 | U49: 111.6 | V49: 111.7 | W49: 17.0 | X49: 9.7 | Y49: 19.0 | Z49: 0.6 | AA49: 0.0 | AB49: 4.1 | AC49: 1.0 | AD49: 1.4 | AE49: 0.0 | AF49: 0.0 | AG49: 0.1 | AH49: 0.2 | AI49: 1.0 | AJ49: 0 | AK49: 24.4 | AL49: 27.62 | AM49: 30.85 | AN49: 42.35 | AO49: 9.21 | AP49: 24.4 | AQ49: 5.98 | AR49: 20.72 | AS49: 18.42 | AT49: 33.61 | AU49: 151 | AV49: 6.45 | AW49: 17.49 | AX49: 126.14 | AY49: 0 | AZ49: 21.64 | BA49: 29 | BB49: 23.02 | BC49: 6.91 | BD49: 0 | BE49: 0 | BF49: 0 | BG49: 0 | BH49: 0 | BI49: 0 | BJ49: 0 | BK49: 0.18 | BL49: 0 | BM49: 0.12 | BN49: 0.01 | BO49: 0.02 | BP49: 0 | BQ49: 0 | BR49: 0 | BS49: 0.7 | BT49: 0 | BU49: 0 | BV49: 1.73 | BW49: 0 | BX49: 0 | BY49: 0 | BZ49: 0 | CA49: 0 | CB49: 42.53 | CE49: 0.69 | CG49: 13.58 | CH49: 8.49 | CI49: 11.04 | CJ49: 427.16 | CK49: 102.19 | CL49: 264.68 | CM49: 2.05 | CN49: 1.3 | CO49: 1.67 | CP49: 0 | CQ49: 0.25
A50: ="11/2" -> 11/2 | B50: Рассольник с крупой на говяжьем бульоне | C50: 180 | D50: 2.4 | E50: 5.9 | F50: 7.6 | G50: 3.9 | H50: 12.4 | I50: 126 | J50: 1.9 | K50: 2.3 | L50: 0.0 | M50: 0.0 | N50: 1.5 | O50: 9.6 | P50: 1.3 | Q50: 0.0 | R50: 0.0 | S50: 0.2 | T50: 2.2 | U50: 542.8 | V50: 307.1 | W50: 14.3 | X50: 16.4 | Y50: 45.7 | Z50: 0.6 | AA50: 0.0 | AB50: 702.4 | AC50: 146.2 | AD50: 1.7 | AE50: 0.1 | AF50: 0.1 | AG50: 0.7 | AH50: 1.2 | AI50: 4.8 | AJ50: 0 | AK50: 30.86 | AL50: 35.97 | AM50: 47.99 | AN50: 45.82 | AO50: 10.36 | AP50: 31.71 | AQ50: 14.59 | AR50: 40.2 | AS50: 43.52 | AT50: 93.47 | AU50: 64.64 | AV50: 13.14 | AW50: 32.59 | AX50: 235.97 | AY50: 0 | AZ50: 49.75 | BA50: 29.81 | BB50: 23.89 | BC50: 13.16 | BD50: 0 | BE50: 0 | BF50: 0 | BG50: 0 | BH50: 0 | BI50: 0 | BJ50: 0 | BK50: 0.24 | BL50: 0 | BM50: 0.14 | BN50: 0.01 | BO50: 0.02 | BP50: 0 | BQ50: 0 | BR50: 0 | BS50: 0.83 | BT50: 0 | BU50: 0 | BV50: 2.18 | BW50: 0 | BX50: 0 | BY50: 0 | BZ50: 0 | CA50: 0 | CB50: 197.32 | CE50: 117.07 | CG50: 49.97 | CH50: 27.9 | CI50: 38.93 | CJ50: 788.76 | CK50: 419.65 | CL50: 604.2 | CM50: 40.53 | CN50: 19.87 | CO50: 30.2 | CP50: 0 | CQ50: 1.08
A51: ="3/3" -> 3/3 | B51: Картофельное пюре с маслом сливочным | C51: 150 | D51: 3.1 | E51: 0.6 | F51: 3.5 | G51: 0.5 | H51: 22.1 | I51: 132 | J51: 2.2 | K51: 0.1 | L51: 0.0 | M51: 0.0 | N51: 2.2 | O51: 18.2 | P51: 1.7 | Q51: 0.0 | R51: 0.0 | S51: 0.3 | T51: 1.9 | U51: 77.8 | V51: 636.3 | W51: 34.0 | X51: 30.4 | Y51: 86.8 | Z51: 1.1 | AA51: 18.8 | AB51: 34.1 | AC51: 25.1 | AD51: 0.2 | AE51: 0.1 | AF51: 0.1 | AG51: 1.3 | AH51: 2.6 | AI51: 5.5 | AJ51: 0 | AK51: 33.56 | AL51: 52.76 | AM51: 66.83 | AN51: 78.55 | AO51: 13.43 | AP51: 52.97 | AQ51: 27.18 | AR51: 54.08 | AS51: 75.67 | AT51: 206.13 | AU51: 91.81 | AV51: 19.2 | AW51: 53.44 | AX51: 287.21 | AY51: 0 | AZ51: 40.19 | BA51: 36.55 | BB51: 39.97 | BC51: 17.03 | BD51: 0.1 | BE51: 0.04 | BF51: 0.02 | BG51: 0.05 | BH51: 0.06 | BI51: 0.29 | BJ51: 0 | BK51: 0.88 | BL51: 0 | BM51: 0.26 | BN51: 0 | BO51: 0 | BP51: 0 | BQ51: 0.05 | BR51: 0.09 | BS51: 0.85 | BT51: 0 | BU51: 0 | BV51: 0.14 | BW51: 0 | BX51: 0 | BY51: 0 | BZ51: 0 | CA51: 0 | CB51: 123.74 | CE51: 24.43 | CG51: 14.07 | CH51: 9.33 | CI51: 11.7 | CJ51: 481.65 | CK51: 423.36 | CL51: 452.5 | CM51: 19.53 | CN51: 2.87 | CO51: 11.2 | CP51: 0 | CQ51: 0.23
A52: ="36/8" -> 36/8 | B52: Тефтели из мяса говядины с рисом | C52: 70 | D52: 7.5 | E52: 7.5 | F52: 7.5 | G52: 135 | H52: 10 | I52: 135 | J52: 0 | K52: 0 | L52: 1.77 | M52: 6.42 | N52: 1.83 | O52: 0 | P52: 0 | Q52: 0.05 | R52: 1.08 | S52: 155.71 | T52: 146.44 | U52: 13.1 | V52: 16.1 | W52: 13.1 | X52: 16.1 | Y52: 105.2 | Z52: 1.5 | AA52: 0.0 | AB52: 1.8 | AC52: 0.0 | AD52: 0.1 | AE52: 2.2 | AF52: 4.1 | AG52: 2.1 | AH52: 0 | AI52: 2.1 | AJ52: 370.07 | AK52: 698.94 | AL52: 1141.9 | AM52: 206.29 | AN52: 370.4 | AO52: 99.59 | AP52: 380.03 | AQ52: 502 | AR52: 492.55 | AS52: 807.25 | AT52: 322.81 | AU52: 434.09 | AV52: 1488.66 | AW52: 125.35 | AX52: 343.74 | AY52: 371.2 | AZ52: 308.9 | BA52: 125.86 | BB52: 0 | BC52: 0 | BD52: 0 | BE52: 0 | BF52: 0 | BG52: 0 | BH52: 0 | BI52: 0.21 | BJ52: 0 | BK52: 0.13 | BL52: 0.01 | BM52: 0.02 | BN52: 0 | BO52: 0 | BP52: 0 | BQ52: 0.79 | BR52: 0 | BS52: 0 | BT52: 1.94 | BU52: 0 | BV52: 0 | BW52: 0 | BX52: 0 | BY52: 0 | BZ52: 63.88 | CC52: 0 | CE52: 18.33 | CF52: 11.33 | CG52: 14.83 | CH52: 1989.1 | CI52: 1140.64 | CJ52: 1564.87 | CK52: 17.74 | CL52: 10.21 | CM52: 13.98 | CN52: 0 | CO52: 0.35
B53: Итого за 'Обед' | C53: =SUM(C46:C52) -> 680 | D53: =SUM(D46:D52) -> 16.9 | E53: 13.9 | F53: 22.2 | G53: 142.6 | H53: 86.1 | I53: 598 | J53: 4.6 | K53: 4.4 | L53: 1.8 | M53: 6.4 | N53: 25.9 | O53: 44.9 | P53: 7.2 | Q53: 0.1 | R53: 1.1 | S53: 156.9 | T53: 152.6 | U53: 937.7 | V53: 1244.1 | W53: 94.9 | X53: 89.7 | Y53: 307.8 | Z53: 5.9 | AA53: 18.8 | AB53: 753.7 | AC53: 174.3 | AD53: 3.8 | AE53: 2.5 | AF53: 4.4 | AG53: 4.5 | AH53: 4.8 | AI53: 14.8 | AJ53: 0 | AK53: 604.1 | AL53: 530.1 | AM53: 874.89 | AN53: 1079.42 | AO53: 230.49 | AP53: 480.92 | AQ53: 158.85 | AR53: 578.42 | AS53: 648.16 | AT53: 855.91 | AU53: 1152.64 | AV53: 335.81 | AW53: 561.86 | AX53: 2620.64 | AY53: 85.87 | AZ53: 648.59 | BA53: 517.13 | BB53: 410.72 | BC53: 199.38 | BD53: 0.1 | BE53: 0.04 | BF53: 0.02 | BG53: 0.05 | BH53: 0.06 | BI53: 0.29 | BJ53: 0 | BK53: 1.41 | BL53: 0 | BM53: 0.56 | BN53: 0.03 | BO53: 0.05 | BP53: 0 | BQ53: 0.05 | BR53: 0.1 | BS53: 2.62 | BT53: 0 | BU53: 0 | BV53: 4.78 | BW53: 0.03 | BX53: 0 | BY53: 0 | BZ53: 0 | CA53: 0 | CB53: 685.43 | CD53: =$I$53/#REF!*100 ->  | CE53: 145.25 | CG53: 93.16 | CH53: 58.08 | CI53: 75.62 | CJ53: 5027.88 | CK53: 2509.88 | CL53: 3768.88 | CM53: 131.98 | CN53: 71.28 | CO53: 101.63 | CP53: 13.5 | CQ53: 1.56
B54: Уплотненный полдник
A55: ="-" -> - | B55: Батон | C55: 20 | D55: 1.5 | E55: 0.0 | F55: 1.0 | G55: 0.6 | H55: 7.5 | I55: 44 | J55: 0.1 | K55: 0.0 | L55: 0.0 | M55: 0.0 | N55: 0.7 | O55: 6.2 | P55: 0.6 | Q55: 0.0 | R55: 0.0 | S55: 0.1 | T55: 0.3 | U55: 85.8 | V55: 26.2 | W55: 4.4 | X55: 6.6 | Y55: 17.0 | Z55: 0.4 | AA55: 0.0 | AB55: 0.0 | AC55: 0.0 | AD55: 0.3 | AE55: 0.0 | AF55: 0.0 | AG55: 0.3 | AH55: 0.6 | AI55: 0.0 | AJ55: 0 | AK55: 74.4 | AL55: 77.2 | AM55: 118.2 | AN55: 39.8 | AO55: 23.4 | AP55: 46.8 | AQ55: 17.6 | AR55: 84 | AS55: 52.2 | AT55: 72.6 | AU55: 60.2 | AV55: 32.2 | AW55: 56 | AX55: 465 | AY55: 0 | AZ55: 151.4 | BA55: 66.2 | BB55: 44.4 | BC55: 34.6 | BD55: 0 | BE55: 0 | BF55: 0 | BG55: 0 | BH55: 0 | BI55: 0 | BJ55: 0 | BK55: 0.07 | BL55: 0 | BM55: 0.03 | BN55: 0 | BO55: 0 | BP55: 0 | BQ55: 0 | BR55: 0 | BS55: 0.23 | BT55: 0 | BU55: 0 | BV55: 0.18 | BW55: 0 | BX55: 0 | BY55: 0 | BZ55: 0 | CA55: 0 | CB55: 6.82 | CE55: 0 | CG55: 0 | CH55: 0 | CI55: 0 | CJ55: 1330 | CK55: 512.4 | CL55: 921.2 | CM55: 10.64 | CN55: 10.64 | CO55: 10.64 | CP55: 0 | CQ55: 0
A56: ="-" -> - | B56: Сок в ассортименте | C56: 180 | D56: 0.9 | E56: 0.0 | F56: 0.2 | G56: 0.0 | H56: 18.5 | I56: 78 | J56: 0.0 | K56: 0.0 | L56: 0.0 | M56: 0.0 | N56: 17.8 | O56: 0.4 | P56: 0.4 | Q56: 0.0 | R56: 0.0 | S56: 0.9 | T56: 0.5 | U56: 10.8 | V56: 216.0 | W56: 12.6 | X56: 7.2 | Y56: 12.6 | Z56: 2.5 | AA56: 0.0 | AB56: 0.0 | AC56: 0.0 | AD56: 0.2 | AE56: 0.0 | AF56: 0.0 | AG56: 0.2 | AH56: 0.4 | AI56: 3.6 | AJ56: 0.36 | AK56: 14.4 | AL56: 18 | AM56: 25.2 | AN56: 25.2 | AO56: 3.6 | AP56: 14.4 | AQ56: 3.6 | AR56: 12.6 | AS56: 23.4 | AT56: 14.4 | AU56: 104.4 | AV56: 9 | AW56: 19.8 | AX56: 57.6 | AY56: 0 | AZ56: 18 | BA56: 21.6 | BB56: 9 | BC56: 7.2 | BD56: 0 | BE56: 0 | BF56: 0 | BG56: 0 | BH56: 0 | BI56: 0 | BJ56: 0 | BK56: 0 | BL56: 0 | BM56: 0 | BN56: 0 | BO56: 0 | BP56: 0 | BQ56: 0 | BR56: 0 | BS56: 0 | BT56: 0 | BU56: 0 | BV56: 0 | BW56: 0 | BX56: 0 | BY56: 0 | BZ56: 0 | CA56: 0 | CB56: 158.58 | CE56: 0 | CG56: 3.6 | CH56: 3.6 | CI56: 3.6 | CJ56: 360 | CK56: 163.8 | CL56: 261.9 | CM56: 0.54 | CN56: 0.54 | CO56: 0.54 | CP56: 0 | CQ56: 0
A57: ="8/5" -> 8/5 | B57: Запеканка (сырники) из творога | C57: 130 | D57: 22.0 | E57: 21.1 | F57: 12.5 | G57: 1.3 | H57: 17.5 | I57: 272 | J57: 6.8 | K57: 0.9 | L57: 0.0 | M57: 0.0 | N57: 11.7 | O57: 5.5 | P57: 0.3 | Q57: 0.0 | R57: 0.0 | S57: 1.5 | T57: 1.3 | U57: 51.6 | V57: 139.9 | W57: 182.9 | X57: 26.9 | Y57: 239.6 | Z57: 0.7 | AA57: 71.6 | AB57: 36.0 | AC57: 82.1 | AD57: 1.0 | AE57: 0.1 | AF57: 0.3 | AG57: 0.5 | AH57: 5.1 | AI57: 0.3 | AJ57: 0 | AK57: 1055.17 | AL57: 868.91 | AM57: 1615.96 | AN57: 1251.67 | AO57: 482.41 | AP57: 814.03 | AQ57: 265.41 | AR57: 961.18 | AS57: 90.85 | AT57: 103.36 | AU57: 138.25 | AV57: 559.27 | AW57: 74.2 | AX57: 426.22 | AY57: 0.69 | AZ57: 124.27 | BA57: 110.17 | BB57: 1056.63 | BC57: 116.71 | BD57: 0 | BE57: 0 | BF57: 0 | BG57: 0 | BH57: 0 | BI57: 0 | BJ57: 0 | BK57: 0.08 | BL57: 0 | BM57: 0.05 | BN57: 0 | BO57: 0.01 | BP57: 0 | BQ57: 0 | BR57: 0 | BS57: 0.29 | BT57: 0 | BU57: 0 | BV57: 0.73 | BW57: 0 | BX57: 0 | BY57: 0 | BZ57: 0 | CA57: 0 | CB57: 95.95 | CE57: 77.64 | CG57: 10.63 | CH57: 9.56 | CI57: 10.1 | CJ57: 1004.09 | CK57: 721.58 | CL57: 862.84 | CM57: 22.06 | CN57: 16.19 | CO57: 19.12 | CP57: 5.2 | CQ57: 0
B58: Итого за 'Уплотненный полдник' | C58: =SUM(C55:C57) -> 330 | D58: 24.4 | E58: 21.1 | F58: 13.7 | G58: 1.9 | H58: 43.5 | I58: 394 | J58: 6.9 | K58: 0.9 | L58: 0.0 | M58: 0.0 | N58: 30.2 | O58: 12.0 | P58: 1.3 | Q58: 0.0 | R58: 0.0 | S58: 2.4 | T58: 2.2 | U58: 148.2 | V58: 382.1 | W58: 199.9 | X58: 40.7 | Y58: 269.2 | Z58: 3.6 | AA58: 71.6 | AB58: 36.0 | AC58: 82.1 | AD58: 1.5 | AE58: 0.1 | AF58: 0.3 | AG58: 1.0 | AH58: 6.1 | AI58: 3.9 | AJ58: 0.36 | AK58: 253.65 | AL58: 225.07 | AM58: 387.36 | AN58: 167.89 | AO58: 89.84 | AP58: 156.41 | AQ58: 61.9 | AR58: 242.04 | AS58: 228.54 | AT58: 286.07 | AU58: 376.68 | AV58: 108.72 | AW58: 201.04 | AX58: 994.56 | AY58: 0 | AZ58: 299.58 | BA58: 218.25 | BB58: 167.8 | BC58: 95.41 | BD58: 0.12 | BE58: 0.05 | BF58: 0.03 | BG58: 0.07 | BH58: 0.08 | BI58: 0.36 | BJ58: 0 | BK58: 1.11 | BL58: 0 | BM58: 0.35 | BN58: 0 | BO58: 0 | BP58: 0 | BQ58: 0.07 | BR58: 0.1 | BS58: 1.15 | BT58: 0 | BU58: 0 | BV58: 0.29 | BW58: 0.01 | BX58: 0 | BY58: 0 | BZ58: 0 | CA58: 0 | CB58: 299.65 | CD58: =$I$58/#REF!*100 ->  | CE58: 34.54 | CG58: 30.2 | CH58: 16.34 | CI58: 23.27 | CJ58: 3691.43 | CK58: 1600.29 | CL58: 2645.86 | CM58: 39.21 | CN58: 23.4 | CO58: 31.31 | CP58: 4.5 | CQ58: 0.45
B59: Итого за день | C59: =C40+C44+C53+C58 -> 1545 | D59: 53.3 | E59: 37.4 | F59: 51.0 | G59: 146.3 | H59: 197.9 | I59: 1446 | J59: 18.2 | K59: 5.4 | L59: 1.8 | M59: 6.4 | N59: 82.2 | O59: 97.1 | P59: 10.5 | Q59: 0.1 | R59: 1.1 | S59: 159.8 | T59: 157.6 | U59: 1393.6 | V59: 2073.6 | W59: 415.5 | X59: 182.6 | Y59: 754.7 | Z59: 11.3 | AA59: 134.0 | AB59: 861.6 | AC59: 327.5 | AD59: 6.4 | AE59: 2.8 | AF59: 4.8 | AG59: 6.9 | AH59: 14.4 | AI59: 34.8 | AJ59: 0.36 | AK59: 1134.92 | AL59: 1021.22 | AM59: 2449.65 | AN59: 1798.62 | AO59: 578.55 | AP59: 1069.4 | AQ59: 387.31 | AR59: 1377.57 | AS59: 1511.73 | AT59: 1572.26 | AU59: 2200.76 | AV59: 743.17 | AW59: 1043.07 | AX59: 5963.08 | AY59: 85.87 | AZ59: 1971.66 | BA59: 1367.16 | BB59: 1035.39 | BC59: 458.33 | BD59: 0.57 | BE59: 0.28 | BF59: 0.15 | BG59: 0.34 | BH59: 0.39 | BI59: 1.84 | BJ59: 0.03 | BK59: 5.27 | BL59: 0.02 | BM59: 1.88 | BN59: 0.08 | BO59: 0.05 | BP59: 0 | BQ59: 0.31 | BR59: 0.5 | BS59: 6.35 | BT59: 0.01 | BU59: 0 | BV59: 6 | BW59: 0.09 | BX59: 0.08 | BY59: 0 | BZ59: 0 | CA59: 0 | CB59: 1437.56 | CE59: 235.36 | CG59: 158.45 | CH59: 93.48 | CI59: 125.97 | CJ59: 11859.61 | CK59: 5472.96 | CL59: 8666.28 | CM59: 253.26 | CN59: 142.49 | CO59: 197.88 | CP59: 30.78 | CQ59: 2.51
B61: 3 ДЕНЬ
B62: Завтрак
A63: ="-" -> - | B63: Батон | C63: 30 | D63: 2.3 | E63: 0.0 | F63: 1.5 | G63: 0.9 | H63: 11.2 | I63: 66 | J63: 0.2 | K63: 0.0 | L63: 0.0 | M63: 0.0 | N63: 1.0 | O63: 9.2 | P63: 1.0 | Q63: 0.0 | R63: 0.0 | S63: 0.1 | T63: 0.5 | U63: 128.7 | V63: 39.3 | W63: 6.6 | X63: 9.9 | Y63: 25.5 | Z63: 0.6 | AA63: 0.0 | AB63: 0.0 | AC63: 0.0 | AD63: 0.5 | AE63: 0.1 | AF63: 0.0 | AG63: 0.5 | AH63: 0.9 | AI63: 0.0 | AJ63: 0 | AK63: 111.6 | AL63: 115.8 | AM63: 177.3 | AN63: 59.7 | AO63: 35.1 | AP63: 70.2 | AQ63: 26.4 | AR63: 126 | AS63: 78.3 | AT63: 108.9 | AU63: 90.3 | AV63: 48.3 | AW63: 84 | AX63: 697.5 | AY63: 0 | AZ63: 227.1 | BA63: 99.3 | BB63: 66.6 | BC63: 51.9 | BD63: 0 | BE63: 0 | BF63: 0 | BG63: 0 | BH63: 0 | BI63: 0.01 | BJ63: 0 | BK63: 0.1 | BL63: 0 | BM63: 0.05 | BN63: 0 | BO63: 0 | BP63: 0 | BQ63: 0 | BR63: 0 | BS63: 0.35 | BT63: 0 | BU63: 0 | BV63: 0.26 | BW63: 0.01 | BX63: 0 | BY63: 0 | BZ63: 0 | CA63: 0 | CB63: 10.23 | CE63: 0 | CG63: 0 | CH63: 0 | CI63: 0 | CJ63: 570 | CK63: 219.6 | CL63: 394.8 | CM63: 4.56 | CN63: 4.56 | CO63: 4.56 | CP63: 0 | CQ63: 0
A64: ="-" -> - | B64: Масло сливочное | C64: 5 | D64: 0.0 | E64: 0.0 | F64: 3.6 | G64: 0.0 | H64: 0.1 | I64: 33 | J64: 2.4 | K64: 0.1 | L64: 0.0 | M64: 0.0 | N64: 0.1 | O64: 0.0 | P64: 0.0 | Q64: 0.0 | R64: 0.0 | S64: 0.0 | T64: 0.1 | U64: 0.8 | V64: 1.5 | W64: 1.2 | X64: 0.0 | Y64: 1.5 | Z64: 0.0 | AA64: 20.0 | AB64: 15.0 | AC64: 22.5 | AD64: 0.1 | AE64: 0.0 | AF64: 0.0 | AG64: 0.0 | AH64: 0.0 | AI64: 0.0 | AJ64: 0 | AK64: 2.1 | AL64: 2.05 | AM64: 3.8 | AN64: 2.25 | AO64: 0.85 | AP64: 2.35 | AQ64: 2.15 | AR64: 2.1 | AS64: 1.8 | AT64: 1.3 | AU64: 2.85 | AV64: 1.75 | AW64: 1.2 | AX64: 7.1 | AY64: 0 | AZ64: 2.4 | BA64: 2.7 | BB64: 2.1 | BC64: 0.5 | BD64: 0.13 | BE64: 0.06 | BF64: 0.03 | BG64: 0.08 | BH64: 0.09 | BI64: 0.4 | BJ64: 0 | BK64: 1.1 | BL64: 0 | BM64: 0.34 | BN64: 0 | BO64: 0 | BP64: 0 | BQ64: 0.08 | BR64: 0.12 | BS64: 0.9 | BT64: 0 | BU64: 0 | BV64: 0.05 | BW64: 0 | BX64: 0 | BY64: 0 | BZ64: 0 | CA64: 0 | CB64: 1.25 | CE64: 22.5 | CG64: 0.2 | CH64: 0.05 | CI64: 0.13 | CJ64: 10 | CK64: 4.1 | CL64: 7.05 | CM64: 0.86 | CN64: 0.44 | CO64: 0.65 | CP64: 0 | CQ64: 0
A65: ="31/10" -> 31/10 | B65: Чай с молоком (вариант 3) | C65: 180 | D65: 1.5 | E65: 1.3 | F65: 1.2 | G65: 0.0 | H65: 6.7 | I65: 41 | J65: 0.8 | K65: 0.0 | L65: 0.0 | M65: 0.0 | N65: 6.6 | O65: 0.0 | P65: 0.1 | Q65: 0.0 | R65: 0.0 | S65: 0.1 | T65: 0.4 | U65: 22.3 | V65: 65.2 | W65: 52.5 | X65: 6.0 | Y65: 37.7 | Z65: 0.1 | AA65: 9.0 | AB65: 4.1 | AC65: 9.9 | AD65: 0.0 | AE65: 0.0 | AF65: 0.1 | AG65: 0.0 | AH65: 0.4 | AI65: 0.2 | AJ65: 0 | AK65: 0 | AL65: 0 | AM65: 0 | AN65: 0 | AO65: 0 | AP65: 0 | AQ65: 0 | AR65: 0 | AS65: 0 | AT65: 0 | AU65: 0 | AV65: 0 | AW65: 0 | AX65: 0 | AY65: 0 | AZ65: 0 | BA65: 0 | BB65: 0 | BC65: 0 | BD65: 0 | BE65: 0 | BF65: 0 | BG65: 0 | BH65: 0 | BI65: 0 | BJ65: 0 | BK65: 0 | BL65: 0 | BM65: 0 | BN65: 0 | BO65: 0 | BP65: 0 | BQ65: 0 | BR65: 0 | BS65: 0 | BT65: 0 | BU65: 0 | BV65: 0 | BW65: 0 | BX65: 0 | BY65: 0 | BZ65: 0 | CA65: 0 | CB65: 175.13 | CE65: 9.68 | CG65: 6.84 | CH65: 3.69 | CI65: 5.26 | CJ65: 567 | CK65: 214.2 | CL65: 390.6 | CM65: 35.65 | CN65: 19 | CO65: 27.32 | CP65: 4.5 | CQ65: 0
A66: ="5/4" -> 5/4 | B66: Каша манная молочная с маслом сливочным | C66: 200 | D66: 5.3 | E66: 2.4 | F66: 4.6 | G66: 0.3 | H66: 29.5 | I66: 179 | J66: 3.3 | K66: 0.1 | L66: 0.0 | M66: 0.0 | N66: 8.6 | O66: 20.0 | P66: 1.1 | Q66: 0.0 | R66: 0.0 | S66: 0.1 | T66: 1.3 | U66: 235.2 | V66: 140.6 | W66: 92.7 | X66: 14.9 | Y66: 87.7 | Z66: 0.4 | AA66: 19.2 | AB66: 16.0 | AC66: 35.6 | AD66: 0.5 | AE66: 0.1 | AF66: 0.1 | AG66: 0.4 | AH66: 1.6 | AI66: 0.4 | AJ66: 0 | AK66: 148.97 | AL66: 136.9 | AM66: 246.51 | AN66: 78.4 | AO66: 47.26 | AP66: 96.52 | AQ66: 34.7 | AR66: 164.01 | AS66: 103.63 | AT66: 142.35 | AU66: 116.45 | AV66: 64.48 | AW66: 110.69 | AX66: 967.9 | AY66: 0 | AZ66: 314.64 | BA66: 161.45 | BB66: 82.8 | BC66: 66.55 | BD66: 0.09 | BE66: 0.04 | BF66: 0.02 | BG66: 0.05 | BH66: 0.06 | BI66: 0.28 | BJ66: 0 | BK66: 0.78 | BL66: 0 | BM66: 0.24 | BN66: 0 | BO66: 0 | BP66: 0 | BQ66: 0.05 | BR66: 0.08 | BS66: 0.63 | BT66: 0 | BU66: 0 | BV66: 0.04 | BW66: 0 | BX66: 0 | BY66: 0 | BZ66: 0 | CA66: 0 | CB66: 180.69 | CE66: 21.87 | CG66: 33.38 | CH66: 14.46 | CI66: 23.92 | CJ66: 1875.37 | CK66: 844.23 | CL66: 1359.8 | CM66: 43.77 | CN66: 22.87 | CO66: 33.32 | CP66: 5 | CQ66: 0.5
B67: Итого за 'Завтрак' | C67: =SUM(C63:C66) -> 415 | D67: =SUM(D63:D66) -> 9.1 | E67: 3.7 | F67: 10.9 | G67: 1.3 | H67: 47.5 | I67: 320 | J67: 6.6 | K67: 0.2 | L67: 0.0 | M67: 0.0 | N67: 16.2 | O67: 29.2 | P67: 2.1 | Q67: 0.0 | R67: 0.0 | S67: 0.2 | T67: 2.2 | U67: 386.9 | V67: 246.6 | W67: 153.0 | X67: 30.7 | Y67: 152.3 | Z67: 1.1 | AA67: 48.2 | AB67: 35.1 | AC67: 68.0 | AD67: 1.1 | AE67: 0.1 | AF67: 0.2 | AG67: 0.9 | AH67: 2.9 | AI67: 0.7 | AJ67: 0 | AK67: 262.67 | AL67: 254.75 | AM67: 427.61 | AN67: 140.35 | AO67: 83.21 | AP67: 169.07 | AQ67: 63.25 | AR67: 292.11 | AS67: 183.73 | AT67: 252.55 | AU67: 209.6 | AV67: 114.53 | AW67: 195.89 | AX67: 1672.5 | AY67: 0 | AZ67: 544.14 | BA67: 263.45 | BB67: 151.5 | BC67: 118.95 | BD67: 0.23 | BE67: 0.1 | BF67: 0.06 | BG67: 0.13 | BH67: 0.15 | BI67: 0.68 | BJ67: 0 | BK67: 1.98 | BL67: 0 | BM67: 0.63 | BN67: 0 | BO67: 0 | BP67: 0 | BQ67: 0.13 | BR67: 0.2 | BS67: 1.89 | BT67: 0 | BU67: 0 | BV67: 0.35 | BW67: 0.01 | BX67: 0 | BY67: 0 | BZ67: 0 | CA67: 0 | CB67: 367.3 | CD67: =$I$67/#REF!*100 ->  | CE67: 54.04 | CG67: 40.41 | CH67: 18.19 | CI67: 29.3 | CJ67: 3022.37 | CK67: 1282.13 | CL67: 2152.25 | CM67: 84.83 | CN67: 46.86 | CO67: 65.85 | CP67: 9.5 | CQ67: 0.5
B68: Второй завтрак
A69: ="-" -> - | B69: Яблоки | C69: 100 | D69: 0.4 | E69: 0.0 | F69: 0.4 | G69: 0.4 | H69: 11.6 | I69: 50 | J69: 0.1 | K69: 0.0 | L69: 0.0 | M69: 0.0 | N69: 10.0 | O69: 0.8 | P69: 0.8 | Q69: 0.0 | R69: 0.0 | S69: 0.8 | T69: 0.5 | U69: 26.0 | V69: 278.0 | W69: 16.0 | X69: 9.0 | Y69: 11.0 | Z69: 2.2 | AA69: 0.0 | AB69: 30.0 | AC69: 5.0 | AD69: 0.2 | AE69: 0.0 | AF69: 0.0 | AG69: 0.3 | AH69: 0.4 | AI69: 10.0 | AJ69: 0 | AK69: 12 | AL69: 13 | AM69: 19 | AN69: 18 | AO69: 3 | AP69: 11 | AQ69: 3 | AR69: 9 | AS69: 17 | AT69: 10 | AU69: 78 | AV69: 7 | AW69: 14 | AX69: 42 | AY69: 0 | AZ69: 13 | BA69: 16 | BB69: 6 | BC69: 5 | BD69: 0 | BE69: 0 | BF69: 0 | BG69: 0 | BH69: 0 | BI69: 0 | BJ69: 0 | BK69: 0 | BL69: 0 | BM69: 0 | BN69: 0 | BO69: 0 | BP69: 0 | BQ69: 0 | BR69: 0 | BS69: 0 | BT69: 0 | BU69: 0 | BV69: 0 | BW69: 0 | BX69: 0 | BY69: 0 | BZ69: 0 | CA69: 0 | CB69: 86.3 | CE69: 5 | CG69: 2 | CH69: 2 | CI69: 2 | CJ69: 150 | CK69: 150 | CL69: 150 | CM69: 0 | CN69: 0 | CO69: 0 | CP69: 0 | CQ69: 0
B70: Итого за 'Второй завтрак' | C70: =SUM(C69) -> 100 | D70: =SUM(D69) -> 0.4 | E70: 0.0 | F70: 0.4 | G70: 0.4 | H70: 11.6 | I70: 50 | J70: 0.1 | K70: 0.0 | L70: 0.0 | M70: 0.0 | N70: 10.0 | O70: 0.8 | P70: 0.8 | Q70: 0.0 | R70: 0.0 | S70: 0.8 | T70: 0.5 | U70: 26.0 | V70: 278.0 | W70: 16.0 | X70: 9.0 | Y70: 11.0 | Z70: 2.2 | AA70: 0.0 | AB70: 30.0 | AC70: 5.0 | AD70: 0.2 | AE70: 0.0 | AF70: 0.0 | AG70: 0.3 | AH70: 0.4 | AI70: 10.0 | AJ70: 0 | AK70: 12 | AL70: 13 | AM70: 19 | AN70: 18 | AO70: 3 | AP70: 11 | AQ70: 3 | AR70: 9 | AS70: 17 | AT70: 10 | AU70: 78 | AV70: 7 | AW70: 14 | AX70: 42 | AY70: 0 | AZ70: 13 | BA70: 16 | BB70: 6 | BC70: 5 | BD70: 0 | BE70: 0 | BF70: 0 | BG70: 0 | BH70: 0 | BI70: 0 | BJ70: 0 | BK70: 0 | BL70: 0 | BM70: 0 | BN70: 0 | BO70: 0 | BP70: 0 | BQ70: 0 | BR70: 0 | BS70: 0 | BT70: 0 | BU70: 0 | BV70: 0 | BW70: 0 | BX70: 0 | BY70: 0 | BZ70: 0 | CA70: 0 | CB70: 86.3 | CD70: =$I$70/#REF!*100 ->  | CE70: 5 | CG70: 2 | CH70: 2 | CI70: 2 | CJ70: 150 | CK70: 150 | CL70: 150 | CM70: 0 | CN70: 0 | CO70: 0 | CP70: 0 | CQ70: 0
B71: Обед
A72: ="-" -> - | B72: Хлеб пшеничный | C72: 20 | D72: 1.2 | E72: 0.0 | F72: 0.1 | G72: 0.1 | H72: 7.4 | I72: 36 | J72: 0.0 | K72: 0.0 | L72: 0.0 | M72: 0.0 | N72: 0.2 | O72: 7.1 | P72: 0.0 | Q72: 0.0 | R72: 0.0 | S72: 0.0 | T72: 0.4 | U72: 0.0 | V72: 0.0 | W72: 0.0 | X72: 0.0 | Y72: 0.0 | Z72: 0.0 | AA72: 0.0 | AB72: 0.0 | AC72: 0.0 | AD72: 0.0 | AE72: 0.0 | AF72: 0.0 | AG72: 0.0 | AH72: 0.0 | AI72: 0.0 | AJ72: 0 | AK72: 63.86 | AL72: 66.47 | AM72: 101.79 | AN72: 33.76 | AO72: 20.01 | AP72: 40.02 | AQ72: 15.14 | AR72: 72.38 | AS72: 44.89 | AT72: 62.64 | AU72: 51.68 | AV72: 27.14 | AW72: 48.02 | AX72: 401.59 | AY72: 0 | AZ72: 130.85 | BA72: 56.9 | BB72: 37.76 | BC72: 29.93 | BD72: 0 | BE72: 0 | BF72: 0 | BG72: 0 | BH72: 0 | BI72: 0 | BJ72: 0 | BK72: 0.02 | BL72: 0 | BM72: 0 | BN72: 0 | BO72: 0 | BP72: 0 | BQ72: 0 | BR72: 0 | BS72: 0.01 | BT72: 0 | BU72: 0 | BV72: 0.06 | BW72: 0 | BX72: 0 | BY72: 0 | BZ72: 0 | CA72: 0 | CB72: 7.82 | CE72: 0 | CG72: 0 | CH72: 0 | CI72: 0 | CJ72: 380 | CK72: 146.4 | CL72: 263.2 | CM72: 3.04 | CN72: 3.04 | CO72: 3.04 | CP72: 0 | CQ72: 0
A73: ="-" -> - | B73: Хлеб ржаной | C73: 30 | D73: 1.8 | E73: 0.0 | F73: 0.4 | G73: 0.4 | H73: 12.5 | I73: 57 | J73: 0.1 | K73: 0.0 | L73: 0.0 | M73: 0.0 | N73: 0.4 | O73: 9.7 | P73: 2.5 | Q73: 0.0 | R73: 0.0 | S73: 0.3 | T73: 0.8 | U73: 183.0 | V73: 73.5 | W73: 10.5 | X73: 14.1 | Y73: 47.4 | Z73: 1.2 | AA73: 0.0 | AB73: 1.5 | AC73: 0.3 | AD73: 0.4 | AE73: 0.1 | AF73: 0.0 | AG73: 0.2 | AH73: 0.6 | AI73: 0.0 | AJ73: 0 | AK73: 96.6 | AL73: 74.4 | AM73: 128.1 | AN73: 66.9 | AO73: 27.9 | AP73: 59.4 | AQ73: 24 | AR73: 111.3 | AS73: 89.1 | AT73: 87.3 | AU73: 139.2 | AV73: 37.2 | AW73: 93 | AX73: 467.7 | AY73: 0 | AZ73: 157.8 | BA73: 87.3 | BB73: 54 | BC73: 39 | BD73: 0 | BE73: 0 | BF73: 0 | BG73: 0 | BH73: 0 | BI73: 0 | BJ73: 0 | BK73: 0.04 | BL73: 0 | BM73: 0 | BN73: 0.01 | BO73: 0 | BP73: 0 | BQ73: 0 | BR73: 0 | BS73: 0.03 | BT73: 0 | BU73: 0 | BV73: 0.14 | BW73: 0.02 | BX73: 0 | BY73: 0 | BZ73: 0 | CA73: 0 | CB73: 14.1 | CE73: 0.25 | CG73: 4 | CH73: 4 | CI73: 4 | CJ73: 760 | CK73: 292.8 | CL73: 526.4 | CM73: 7.6 | CN73: 6.32 | CO73: 6.96 | CP73: 0 | CQ73: 0
A74: ="6/10" -> 6/10 | B74: Компот из сухофруктов | C74: 180 | D74: 0.9 | E74: 0.0 | F74: 0.1 | G74: 0.1 | H74: 20.9 | I74: 79 | J74: 0.0 | K74: 0.0 | L74: 0.0 | M74: 0.0 | N74: 17.3 | O74: 0.5 | P74: 3.1 | Q74: 0.0 | R74: 0.0 | S74: 0.3 | T74: 0.7 | U74: 3.1 | V74: 306.2 | W74: 28.2 | X74: 18.0 | Y74: 24.4 | Z74: 0.6 | AA74: 0.0 | AB74: 567.0 | AC74: 104.9 | AD74: 1.0 | AE74: 0.0 | AF74: 0.1 | AG74: 0.5 | AH74: 0.7 | AI74: 0.4 | AJ74: 0 | AK74: 0.01 | AL74: 0.01 | AM74: 0.01 | AN74: 0.02 | AO74: 0 | AP74: 0.01 | AQ74: 0 | AR74: 0.01 | AS74: 0.01 | AT74: 0.01 | AU74: 0.05 | AV74: 0 | AW74: 0.01 | AX74: 0.02 | AY74: 0 | AZ74: 0.01 | BA74: 0.01 | BB74: 0.01 | BC74: 0 | BD74: 0 | BE74: 0 | BF74: 0 | BG74: 0 | BH74: 0 | BI74: 0 | BJ74: 0 | BK74: 0 | BL74: 0 | BM74: 0 | BN74: 0 | BO74: 0 | BP74: 0 | BQ74: 0 | BR74: 0 | BS74: 0.01 | BT74: 0 | BU74: 0 | BV74: 0.01 | BW74: 0 | BX74: 0 | BY74: 0 | BZ74: 0 | CA74: 0 | CB74: 192.61 | CE74: 94.5 | CG74: 3.95 | CH74: 3.95 | CI74: 3.95 | CJ74: 454.5 | CK74: 172.98 | CL74: 313.74 | CM74: 41.94 | CN74: 24.93 | CO74: 33.44 | CP74: 9 | CQ74: 0
A75: ="16/2" -> 16/2 | B75: Суп картофельный с бобовыми на говяжьем бульоне | C75: 180 | D75: 3.2 | E75: 5.7 | F75: 6.8 | G75: 2.2 | H75: 16.6 | I75: 137 | J75: 1.6 | K75: 1.2 | L75: 0.0 | M75: 0.0 | N75: 2.9 | O75: 11.3 | P75: 2.4 | Q75: 0.0 | R75: 0.0 | S75: 0.1 | T75: 2.0 | U75: 422.2 | V75: 353.7 | W75: 27.5 | X75: 26.3 | Y75: 71.8 | Z75: 1.4 | AA75: 0.0 | AB75: 785.4 | AC75: 145.4 | AD75: 1.0 | AE75: 0.2 | AF75: 0.1 | AG75: 0.7 | AH75: 1.7 | AI75: 3.3 | AJ75: 0 | AK75: 154.39 | AL75: 170.41 | AM75: 253.6 | AN75: 242.59 | AO75: 33.09 | AP75: 134.91 | AQ75: 44.31 | AR75: 159.19 | AS75: 152.27 | AT75: 287.4 | AU75: 348.5 | AV75: 70.86 | AW75: 150.58 | AX75: 541.98 | AY75: 0 | AZ75: 105.84 | BA75: 129.97 | BB75: 109.23 | BC75: 40.71 | BD75: 0 | BE75: 0 | BF75: 0 | BG75: 0 | BH75: 0 | BI75: 0 | BJ75: 0 | BK75: 0.16 | BL75: 0 | BM75: 0.08 | BN75: 0.01 | BO75: 0.01 | BP75: 0 | BQ75: 0 | BR75: 0 | BS75: 0.53 | BT75: 0 | BU75: 0 | BV75: 1.2 | BW75: 0.02 | BX75: 0 | BY75: 0 | BZ75: 0 | CA75: 0 | CB75: 165.24 | CE75: 130.9 | CG75: 48.76 | CH75: 27.16 | CI75: 37.96 | CJ75: 500.4 | CK75: 262.36 | CL75: 381.38 | CM75: 36.16 | CN75: 19.04 | CO75: 27.6 | CP75: 0 | CQ75: 1.08
A76: ="3/4" -> 3/4 | B76: Каша гречневая вязкая | C76: 150 | D76: 4.6 | E76: 0.0 | F76: 3.9 | G76: 1.2 | H76: 23.8 | I76: 142 | J76: 2.0 | K76: 0.1 | L76: 0.0 | M76: 0.0 | N76: 0.6 | O76: 19.3 | P76: 4.0 | Q76: 0.0 | R76: 0.0 | S76: 0.0 | T76: 1.1 | U76: 145.4 | V76: 139.4 | W76: 9.3 | X76: 69.9 | Y76: 103.2 | Z76: 2.4 | AA76: 15.0 | AB76: 13.4 | AC76: 17.6 | AD76: 0.3 | AE76: 0.1 | AF76: 0.1 | AG76: 1.3 | AH76: 2.7 | AI76: 0.0 | AJ76: 0 | AK76: 214.03 | AL76: 167.18 | AM76: 271.1 | AN76: 192.53 | AO76: 115.87 | AP76: 145.79 | AQ76: 66.41 | AR76: 214.75 | AS76: 210.21 | AT76: 404.32 | AU76: 398.98 | AV76: 109.33 | AW76: 260.19 | AX76: 819.16 | AY76: 0 | AZ76: 181.84 | BA76: 220.24 | BB76: 156.41 | BC76: 119.22 | BD76: 0.1 | BE76: 0.05 | BF76: 0.02 | BG76: 0.06 | BH76: 0.06 | BI76: 0.3 | BJ76: 0 | BK76: 1 | BL76: 0 | BM76: 0.27 | BN76: 0 | BO76: 0 | BP76: 0 | BQ76: 0.06 | BR76: 0.09 | BS76: 1.05 | BT76: 0.01 | BU76: 0 | BV76: 0.41 | BW76: 0.04 | BX76: 0 | BY76: 0 | BZ76: 0 | CA76: 0 | CB76: 126.08 | CE76: 17.24 | CG76: 18.76 | CH76: 11.15 | CI76: 14.96 | CJ76: 1575.42 | CK76: 764.22 | CL76: 1169.82 | CM76: 35.77 | CN76: 22.6 | CO76: 29.18 | CP76: 0 | CQ76: 0.38
A77: ="2/9" -> 2/9 | B77: Мясо птицы отварное в соусе | C77: 70 | D77: 8.2 | E77: 7.9 | F77: 7.8 | G77: 0.0 | H77: 1.7 | I77: 110 | J77: 3.1 | K77: 0.1 | L77: 0.0 | M77: 0.0 | N77: 0.2 | O77: 1.4 | P77: 0.1 | Q77: 0.0 | R77: 0.0 | S77: 0.0 | T77: 0.8 | U77: 101.8 | V77: 54.7 | W77: 8.3 | X77: 7.0 | Y77: 58.2 | Z77: 0.7 | AA77: 21.1 | AB77: 11.1 | AC77: 44.2 | AD77: 0.3 | AE77: 0.0 | AF77: 0.1 | AG77: 3.0 | AH77: 6.1 | AI77: 0.3 | AJ77: 0 | AK77: 390.93 | AL77: 310.15 | AM77: 630.47 | AN77: 692.84 | AO77: 207.96 | AP77: 378.44 | AQ77: 130.07 | AR77: 333.66 | AS77: 508.56 | AT77: 540.56 | AU77: 716.5 | AV77: 215.71 | AW77: 604.35 | AX77: 1182.86 | AY77: 65.64 | AZ77: 400.47 | BA77: 383.88 | BB77: 284.16 | BC77: 101.34 | BD77: 0.04 | BE77: 0.02 | BF77: 0.01 | BG77: 0.02 | BH77: 0.03 | BI77: 0.13 | BJ77: 0 | BK77: 0.35 | BL77: 0 | BM77: 0.11 | BN77: 0 | BO77: 0 | BP77: 0 | BQ77: 0.02 | BR77: 0.04 | BS77: 0.29 | BT77: 0 | BU77: 0 | BV77: 0.02 | BW77: 0 | BX77: 0 | BY77: 0 | BZ77: 0 | CA77: 0 | CB77: 70.76 | CE77: 22.96 | CG77: 18.41 | CH77: 9.17 | CI77: 13.79 | CJ77: 1701.19 | CK77: 1051.77 | CL77: 1376.48 | CM77: 19.31 | CN77: 12.75 | CO77: 16.05 | CP77: 0 | CQ77: 0.35
B78: Итого за 'Обед' | C78: =SUM(C72:C77) -> 630 | D78: =SUM(D72:D77) -> 19.9 | E78: 13.7 | F78: 19.1 | G78: 4.0 | H78: 82.9 | I78: 561 | J78: 6.8 | K78: 1.3 | L78: 0.0 | M78: 0.0 | N78: 21.5 | O78: 49.4 | P78: 12.1 | Q78: 0.0 | R78: 0.0 | S78: 0.7 | T78: 5.7 | U78: 855.5 | V78: 927.5 | W78: 83.8 | X78: 135.2 | Y78: 305.1 | Z78: 6.2 | AA78: 36.1 | AB78: 1378.4 | AC78: 312.5 | AD78: 3.0 | AE78: 0.4 | AF78: 0.3 | AG78: 5.7 | AH78: 11.8 | AI78: 4.0 | AJ78: 0 | AK78: 1073.45 | AL78: 922.9 | AM78: 1703.77 | AN78: 1708.9 | AO78: 482.59 | AP78: 980.41 | AQ78: 342.02 | AR78: 996.59 | AS78: 1296.91 | AT78: 1565.37 | AU78: 1978.93 | AV78: 553.04 | AW78: 1470.8 | AX78: 3759.28 | AY78: 126.08 | AZ78: 1152.52 | BA78: 1016.22 | BB78: 758.71 | BC78: 307.57 | BD78: 0 | BE78: 0 | BF78: 0 | BG78: 0 | BH78: 0 | BI78: 0 | BJ78: 0 | BK78: 0.71 | BL78: 0 | BM78: 0.39 | BN78: 0.03 | BO78: 0.06 | BP78: 0 | BQ78: 0 | BR78: 0.01 | BS78: 2.36 | BT78: 0 | BU78: 0 | BV78: 5.63 | BW78: 0.04 | BX78: 0 | BY78: 0 | BZ78: 0 | CA78: 0 | CB78: 522.18 | CD78: =$I$78/#REF!*100 ->  | CE78: 801.36 | CG78: 70.31 | CH78: 42.56 | CI78: 56.43 | CJ78: 3395.99 | CK78: 1678.78 | CL78: 2537.39 | CM78: 100.74 | CN78: 59.6 | CO78: 80.17 | CP78: 9 | CQ78: 1.68
B79: Уплотненный полдник
A80: ="-" -> - | B80: Хлеб ржаной | C80: 20 | D80: 1.2 | E80: 0.0 | F80: 0.2 | G80: 0.2 | H80: 8.3 | I80: 38 | J80: 0.0 | K80: 0.0 | L80: 0.0 | M80: 0.0 | N80: 0.2 | O80: 6.4 | P80: 1.7 | Q80: 0.0 | R80: 0.0 | S80: 0.2 | T80: 0.5 | U80: 122.0 | V80: 49.0 | W80: 7.0 | X80: 9.4 | Y80: 31.6 | Z80: 0.8 | AA80: 0.0 | AB80: 1.0 | AC80: 0.2 | AD80: 0.3 | AE80: 0.0 | AF80: 0.0 | AG80: 0.1 | AH80: 0.4 | AI80: 0.0 | AJ80: 0 | AK80: 64.4 | AL80: 49.6 | AM80: 85.4 | AN80: 44.6 | AO80: 18.6 | AP80: 39.6 | AQ80: 16 | AR80: 74.2 | AS80: 59.4 | AT80: 58.2 | AU80: 92.8 | AV80: 24.8 | AW80: 62 | AX80: 311.8 | AY80: 0 | AZ80: 105.2 | BA80: 58.2 | BB80: 36 | BC80: 26 | BD80: 0 | BE80: 0 | BF80: 0 | BG80: 0 | BH80: 0 | BI80: 0 | BJ80: 0 | BK80: 0.03 | BL80: 0 | BM80: 0 | BN80: 0 | BO80: 0 | BP80: 0 | BQ80: 0 | BR80: 0 | BS80: 0.02 | BT80: 0 | BU80: 0 | BV80: 0.1 | BW80: 0.02 | BX80: 0 | BY80: 0 | BZ80: 0 | CA80: 0 | CB80: 9.4 | CE80: 0.17 | CG80: 3 | CH80: 3 | CI80: 3 | CJ80: 570 | CK80: 219.6 | CL80: 394.8 | CM80: 5.7 | CN80: 4.74 | CO80: 5.22 | CP80: 0 | CQ80: 0
A81: ="27/10" -> 27/10 | B81: Чай полусладкий | C81: 180 | D81: 0.2 | E81: 0.0 | F81: 0.0 | G81: 0.0 | H81: 4.5 | I81: 18 | J81: 0.0 | K81: 0.0 | L81: 0.0 | M81: 0.0 | N81: 4.4 | O81: 0.0 | P81: 0.1 | Q81: 0.0 | R81: 0.0 | S81: 0.0 | T81: 0.1 | U81: 0.0 | V81: 0.1 | W81: 0.1 | X81: 0.0 | Y81: 0.0 | Z81: 0.0 | AA81: 0.0 | AB81: 0.0 | AC81: 0.0 | AD81: 0.0 | AE81: 0.0 | AF81: 0.0 | AG81: 0.0 | AH81: 0.0 | AI81: 0.0 | AJ81: 0 | AK81: 0 | AL81: 0 | AM81: 0 | AN81: 0 | AO81: 0 | AP81: 0 | AQ81: 0 | AR81: 0 | AS81: 0 | AT81: 0 | AU81: 0 | AV81: 0 | AW81: 0 | AX81: 0 | AY81: 0 | AZ81: 0 | BA81: 0 | BB81: 0 | BC81: 0 | BD81: 0 | BE81: 0 | BF81: 0 | BG81: 0 | BH81: 0 | BI81: 0 | BJ81: 0 | BK81: 0 | BL81: 0 | BM81: 0 | BN81: 0 | BO81: 0 | BP81: 0 | BQ81: 0 | BR81: 0 | BS81: 0 | BT81: 0 | BU81: 0 | BV81: 0 | BW81: 0 | BX81: 0 | BY81: 0 | BZ81: 0 | CA81: 0 | CB81: 180.08 | CE81: 0 | CG81: 3.69 | CH81: 3.69 | CI81: 3.69 | CJ81: 398.25 | CK81: 156.6 | CL81: 277.43 | CM81: 39.61 | CN81: 23.41 | CO81: 31.51 | CP81: 4.5 | CQ81: 0
A82: ="24/2" -> 24/2 | B82: Суп молочный с вермишелью | C82: 180 | D82: 5.3 | E82: 3.6 | F82: 4.7 | G82: 0.2 | H82: 16.9 | I82: 130 | J82: 3.1 | K82: 0.1 | L82: 0.0 | M82: 0.0 | N82: 7.2 | O82: 9.3 | P82: 0.5 | Q82: 0.0 | R82: 0.0 | S82: 0.1 | T82: 1.3 | U82: 200.9 | V82: 200.0 | W82: 150.8 | X82: 19.0 | Y82: 117.7 | Z82: 0.4 | AA82: 35.8 | AB82: 17.5 | AC82: 39.5 | AD82: 0.2 | AE82: 0.1 | AF82: 0.2 | AG82: 0.3 | AH82: 1.4 | AI82: 0.7 | AJ82: 0 | AK82: 67.63 | AL82: 61.83 | AM82: 115.84 | AN82: 36.2 | AO82: 22.07 | AP82: 44.84 | AQ82: 14.73 | AR82: 71.87 | AS82: 47.52 | AT82: 57.29 | AU82: 49.18 | AV82: 28.89 | AW82: 50.22 | AX82: 441.02 | AY82: 0 | AZ82: 138.97 | BA82: 72.01 | BB82: 36.16 | BC82: 28.61 | BD82: 0.07 | BE82: 0.01 | BF82: 0.01 | BG82: 0.03 | BH82: 0.04 | BI82: 0.14 | BJ82: 0 | BK82: 0.46 | BL82: 0 | BM82: 0.13 | BN82: 0 | BO82: 0 | BP82: 0 | BQ82: 0.01 | BR82: 0.05 | BS82: 0.4 | BT82: 0 | BU82: 0 | BV82: 0.07 | BW82: 0 | BX82: 0 | BY82: 0 | BZ82: 0 | CA82: 0 | CB82: 150.66 | CE82: 38.74 | CG82: 1.44 | CH82: 0.55 | CI82: 1 | CJ82: 46.49 | CK82: 20.55 | CL82: 33.52 | CM82: 0.91 | CN82: 0.21 | CO82: 0.56 | CP82: 1.08 | CQ82: 0.36
B83: Итого за 'Уплотненный полдник' | C83: =SUM(C80:C82) -> 380 | D83: =SUM(D80:D82) -> 6.7 | E83: 3.6 | F83: 5.0 | G83: 0.5 | H83: 29.8 | I83: 187 | J83: 3.2 | K83: 0.1 | L83: 0.0 | M83: 0.0 | N83: 11.8 | O83: 15.7 | P83: 2.3 | Q83: 0.0 | R83: 0.0 | S83: 0.3 | T83: 1.9 | U83: 322.9 | V83: 249.1 | W83: 158.0 | X83: 28.4 | Y83: 149.3 | Z83: 1.2 | AA83: 35.8 | AB83: 18.5 | AC83: 39.7 | AD83: 0.5 | AE83: 0.1 | AF83: 0.2 | AG83: 0.4 | AH83: 1.8 | AI83: 0.7 | AJ83: 0 | AK83: 1119.57 | AL83: 918.51 | AM83: 1701.36 | AN83: 1296.27 | AO83: 501.01 | AP83: 853.63 | AQ83: 281.41 | AR83: 1035.38 | AS83: 150.25 | AT83: 161.56 | AU83: 231.05 | AV83: 584.07 | AW83: 136.2 | AX83: 738.02 | AY83: 0.69 | AZ83: 229.47 | BA83: 168.37 | BB83: 1092.63 | BC83: 142.71 | BD83: 0 | BE83: 0 | BF83: 0 | BG83: 0 | BH83: 0 | BI83: 0 | BJ83: 0 | BK83: 0.11 | BL83: 0 | BM83: 0.05 | BN83: 0.01 | BO83: 0.01 | BP83: 0 | BQ83: 0 | BR83: 0 | BS83: 0.32 | BT83: 0 | BU83: 0 | BV83: 0.83 | BW83: 0.02 | BX83: 0 | BY83: 0 | BZ83: 0 | CA83: 0 | CB83: 285.43 | CD83: =$I$83/#REF!*100 ->  | CE83: 77.8 | CG83: 17.32 | CH83: 16.25 | CI83: 16.78 | CJ83: 1972.34 | CK83: 1097.78 | CL83: 1535.06 | CM83: 67.37 | CN83: 44.33 | CO83: 55.85 | CP83: 9.7 | CQ83: 0
B84: Итого за день | C84: =C67+C70+C78+C83 -> 1525 | D84: =D67+D70+D78+D83 -> 36.0 | E84: 21.0 | F84: 35.3 | G84: 6.1 | H84: 171.7 | I84: 1118 | J84: 16.7 | K84: 1.6 | L84: 0.0 | M84: 0.0 | N84: 59.5 | O84: 95.0 | P84: 17.2 | Q84: 0.0 | R84: 0.0 | S84: 2.0 | T84: 10.3 | U84: 1591.4 | V84: 1701.2 | W84: 410.8 | X84: 203.4 | Y84: 617.7 | Z84: 10.6 | AA84: 120.1 | AB84: 1462.0 | AC84: 425.1 | AD84: 4.8 | AE84: 0.7 | AF84: 0.7 | AG84: 7.3 | AH84: 16.9 | AI84: 15.4 | AJ84: 0 | AK84: 2467.69 | AL84: 2109.16 | AM84: 3851.74 | AN84: 3163.51 | AO84: 1069.81 | AP84: 2014.11 | AQ84: 689.69 | AR84: 2333.07 | AS84: 1647.88 | AT84: 1989.48 | AU84: 2497.58 | AV84: 1258.65 | AW84: 1816.9 | AX84: 6211.81 | AY84: 126.77 | AZ84: 1939.13 | BA84: 1464.05 | BB84: 2008.84 | BC84: 574.23 | BD84: 0.23 | BE84: 0.1 | BF84: 0.06 | BG84: 0.13 | BH84: 0.15 | BI84: 0.68 | BJ84: 0 | BK84: 2.79 | BL84: 0 | BM84: 1.07 | BN84: 0.04 | BO84: 0.07 | BP84: 0 | BQ84: 0.13 | BR84: 0.21 | BS84: 4.56 | BT84: 0 | BU84: 0 | BV84: 6.8 | BW84: 0.07 | BX84: 0 | BY84: 0 | BZ84: 0 | CA84: 0 | CB84: 1261.21 | CE84: 938.21 | CG84: 130.04 | CH84: 78.99 | CI84: 104.52 | CJ84: 8540.7 | CK84: 4208.68 | CL84: 6374.69 | CM84: 252.95 | CN84: 150.79 | CO84: 201.87 | CP84: 28.2 | CQ84: 2.18
B85: 4 ДЕНЬ
B86: Завтрак
A87: ="-" -> - | B87: Хлеб пшеничный | C87: 25 | D87: 1.5 | E87: 0.0 | F87: 0.2 | G87: 0.2 | H87: 9.2 | I87: 45 | J87: 0.0 | K87: 0.0 | L87: 0.0 | M87: 0.0 | N87: 0.3 | O87: 8.9 | P87: 0.1 | Q87: 0.0 | R87: 0.0 | S87: 0.0 | T87: 0.5 | U87: 0.0 | V87: 0.0 | W87: 0.0 | X87: 0.0 | Y87: 0.0 | Z87: 0.0 | AA87: 0.0 | AB87: 0.0 | AC87: 0.0 | AD87: 0.0 | AE87: 0.0 | AF87: 0.0 | AG87: 0.0 | AH87: 0.0 | AI87: 0.0 | AJ87: 0 | AK87: 79.82 | AL87: 83.09 | AM87: 127.24 | AN87: 42.2 | AO87: 25.01 | AP87: 50.03 | AQ87: 18.92 | AR87: 90.48 | AS87: 56.12 | AT87: 78.3 | AU87: 64.6 | AV87: 33.93 | AW87: 60.03 | AX87: 501.99 | AY87: 0 | AZ87: 163.56 | BA87: 71.12 | BB87: 47.2 | BC87: 37.41 | BD87: 0 | BE87: 0 | BF87: 0 | BG87: 0 | BH87: 0 | BI87: 0 | BJ87: 0 | BK87: 0.02 | BL87: 0 | BM87: 0 | BN87: 0 | BO87: 0 | BP87: 0 | BQ87: 0 | BR87: 0 | BS87: 0.02 | BT87: 0 | BU87: 0 | BV87: 0.07 | BW87: 0 | BX87: 0 | BY87: 0 | BZ87: 0 | CA87: 0 | CB87: 9.78 | CE87: 0 | CG87: 0 | CH87: 0 | CI87: 0 | CJ87: 570 | CK87: 219.6 | CL87: 394.8 | CM87: 4.56 | CN87: 4.56 | CO87: 4.56 | CP87: 0 | CQ87: 0
A88: ="4/13" -> 4/13 | B88: Сыр (порциями) | C88: 10 | D88: 1.5 | E88: 2.6 | F88: 2.7 | G88: 0.0 | H88: 0.0 | I88: 31 | J88: 1.5 | K88: 0.0 | L88: 0.0 | M88: 0.0 | N88: 0.0 | O88: 0.0 | P88: 0.0 | Q88: 0.0 | R88: 0.0 | S88: 0.2 | T88: 0.4 | U88: 110.0 | V88: 10.0 | W88: 100.0 | X88: 5.5 | Y88: 60.0 | Z88: 0.1 | AA88: 21.0 | AB88: 17.0 | AC88: 23.8 | AD88: 0.0 | AE88: 0.0 | AF88: 0.0 | AG88: 0.0 | AH88: 0.7 | AI88: 0.1 | AJ88: 0 | AK88: 157 | AL88: 117 | AM88: 230 | AN88: 158 | AO88: 56 | AP88: 95 | AQ88: 70 | AR88: 134 | AS88: 76 | AT88: 87 | AU88: 156 | AV88: 70 | AW88: 51 | AX88: 517 | AY88: 0 | AZ88: 273 | BA88: 129 | BB88: 139 | BC88: 21.5 | BD88: 0 | BE88: 0.01 | BF88: 0.04 | BG88: 0.11 | BH88: 0.13 | BI88: 0.33 | BJ88: 0.04 | BK88: 0.7 | BL88: 0.01 | BM88: 0.16 | BN88: 0.01 | BO88: 0 | BP88: 0 | BQ88: 0.05 | BR88: 0.07 | BS88: 0.52 | BT88: 0 | BU88: 0 | BV88: 0.07 | BW88: 0 | BX88: 0 | BY88: 0 | BZ88: 0 | CA88: 0 | CB88: 4.08 | CE88: 23.83 | CG88: 0 | CH88: 0 | CI88: 0 | CJ88: 500 | CK88: 370 | CL88: 435 | CM88: 1.53 | CN88: 0.97 | CO88: 1.25 | CP88: 0 | CQ88: 0
A89: ="32/10" -> 32/10 | B89: Кофейный напиток с молоком | C89: 180 | D89: 3.5 | E89: 2.6 | F89: 3.1 | G89: 0.2 | H89: 13.0 | I89: 91 | J89: 1.5 | K89: 0.0 | L89: 0.0 | M89: 0.0 | N89: 13.0 | O89: 0.0 | P89: 0.0 | Q89: 0.0 | R89: 0.0 | S89: 0.1 | T89: 0.6 | U89: 44.6 | V89: 130.4 | W89: 105.0 | X89: 12.0 | Y89: 75.3 | Z89: 0.1 | AA89: 18.0 | AB89: 8.1 | AC89: 19.8 | AD89: 0.0 | AE89: 0.0 | AF89: 0.1 | AG89: 0.1 | AH89: 0.7 | AI89: 0.5 | AJ89: 0 | AK89: 0 | AL89: 0 | AM89: 0 | AN89: 0 | AO89: 0 | AP89: 0 | AQ89: 0 | AR89: 0 | AS89: 0 | AT89: 0 | AU89: 0 | AV89: 0 | AW89: 0 | AX89: 0 | AY89: 0 | AZ89: 0 | BA89: 0 | BB89: 0 | BC89: 0 | BD89: 0 | BE89: 0 | BF89: 0 | BG89: 0 | BH89: 0 | BI89: 0 | BJ89: 0 | BK89: 0 | BL89: 0 | BM89: 0 | BN89: 0 | BO89: 0 | BP89: 0 | BQ89: 0 | BR89: 0 | BS89: 0 | BT89: 0 | BU89: 0 | BV89: 0 | BW89: 0 | BX89: 0 | BY89: 0 | BZ89: 0 | CA89: 0 | CB89: 179.43 | CE89: 19.35 | CG89: 10.25 | CH89: 3.95 | CI89: 7.1 | CJ89: 792 | CK89: 288.18 | CL89: 540.09 | CM89: 34.02 | CN89: 16.11 | CO89: 25.07 | CP89: 9 | CQ89: 0
A90: ="16/4" -> 16/4 | B90: Каша пшеничная молочная с маслом сливочным | C90: 200 | D90: 6.5 | E90: 2.4 | F90: 5.5 | G90: 1.3 | H90: 32.6 | I90: 204 | J90: 3.4 | K90: 0.1 | L90: 0.0 | M90: 0.0 | N90: 7.8 | O90: 23.5 | P90: 1.3 | Q90: 0.0 | R90: 0.0 | S90: 0.1 | T90: 1.6 | U90: 238.2 | V90: 178.3 | W90: 96.6 | X90: 38.7 | Y90: 145.1 | Z90: 1.0 | AA90: 19.2 | AB90: 22.4 | AC90: 36.8 | AD90: 0.2 | AE90: 0.1 | AF90: 0.1 | AG90: 0.6 | AH90: 2.5 | AI90: 0.4 | AJ90: 0 | AK90: 178.3 | AL90: 163.22 | AM90: 579.64 | AN90: 109.98 | AO90: 111.94 | AP90: 152.17 | AQ90: 69.3 | AR90: 219.66 | AS90: 405.55 | AT90: 160.78 | AU90: 246.54 | AV90: 99.08 | AW90: 113.7 | AX90: 840.06 | AY90: 0 | AZ90: 306.36 | BA90: 265.23 | BB90: 155.74 | BC90: 68.06 | BD90: 0.09 | BE90: 0.04 | BF90: 0.02 | BG90: 0.05 | BH90: 0.06 | BI90: 0.28 | BJ90: 0 | BK90: 0.86 | BL90: 0 | BM90: 0.26 | BN90: 0.01 | BO90: 0 | BP90: 0 | BQ90: 0.05 | BR90: 0.09 | BS90: 0.82 | BT90: 0 | BU90: 0 | BV90: 0.77 | BW90: 0.01 | BX90: 0 | BY90: 0 | BZ90: 0 | CA90: 0 | CB90: 165.81 | CE90: 22.93 | CG90: 31 | CH90: 15.28 | CI90: 23.14 | CJ90: 2123.67 | CK90: 973.11 | CL90: 1548.39 | CM90: 36.56 | CN90: 18.86 | CO90: 27.71 | CP90: 4 | CQ90: 0.5
B91: Итого за 'Завтрак' | C91: =SUM(C87:C90) -> 415 | D91: =SUM(D87:D90) -> 13.1 | E91: 7.5 | F91: 11.4 | G91: 1.6 | H91: 54.8 | I91: 371 | J91: 6.4 | K91: 0.1 | L91: 0.0 | M91: 0.0 | N91: 21.0 | O91: 32.4 | P91: 1.4 | Q91: 0.0 | R91: 0.0 | S91: 0.4 | T91: 3.1 | U91: 392.8 | V91: 318.6 | W91: 301.6 | X91: 56.2 | Y91: 280.4 | Z91: 1.2 | AA91: 58.2 | AB91: 47.5 | AC91: 80.4 | AD91: 0.2 | AE91: 0.2 | AF91: 0.3 | AG91: 0.7 | AH91: 3.9 | AI91: 1.0 | AJ91: 0 | AK91: 415.12 | AL91: 363.31 | AM91: 936.88 | AN91: 310.18 | AO91: 192.95 | AP91: 297.19 | AQ91: 158.22 | AR91: 444.14 | AS91: 537.67 | AT91: 326.08 | AU91: 467.14 | AV91: 203.01 | AW91: 224.73 | AX91: 1859.05 | AY91: 0 | AZ91: 742.92 | BA91: 465.35 | BB91: 341.94 | BC91: 126.97 | BD91: 0.09 | BE91: 0.05 | BF91: 0.06 | BG91: 0.16 | BH91: 0.19 | BI91: 0.62 | BJ91: 0.04 | BK91: 1.58 | BL91: 0.01 | BM91: 0.42 | BN91: 0.02 | BO91: 0 | BP91: 0 | BQ91: 0.1 | BR91: 0.16 | BS91: 1.35 | BT91: 0 | BU91: 0 | BV91: 0.91 | BW91: 0.02 | BX91: 0 | BY91: 0 | BZ91: 0 | CA91: 0 | CB91: 359.09 | CD91: =$I$91/#REF!*100 ->  | CE91: 66.12 | CG91: 41.25 | CH91: 19.23 | CI91: 30.24 | CJ91: 3985.67 | CK91: 1850.89 | CL91: 2918.28 | CM91: 76.67 | CN91: 40.5 | CO91: 58.58 | CP91: 13 | CQ91: 0.5
B92: Второй завтрак
A93: ="-" -> - | B93: Йогурт | C93: 100 | D93: 4.8 | E93: 4.1 | F93: 2.5 | G93: 0.0 | H93: 11.0 | I93: 87 | J93: 0.9 | K93: 0.0 | L93: 0.0 | M93: 0.0 | N93: 11.0 | O93: 0.0 | P93: 0.0 | Q93: 0.0 | R93: 0.0 | S93: 1.1 | T93: 0.9 | U93: 50.0 | V93: 152.0 | W93: 124.0 | X93: 15.0 | Y93: 95.0 | Z93: 0.1 | AA93: 10.0 | AB93: 0.0 | AC93: 10.0 | AD93: 0.0 | AE93: 0.0 | AF93: 0.2 | AG93: 0.2 | AH93: 1.2 | AI93: 0.6 | AJ93: 0 | AK93: 323 | AL93: 300 | AM93: 450 | AN93: 387 | AO93: 115 | AP93: 216 | AQ93: 72 | AR93: 225 | AS93: 160 | AT93: 174 | AU93: 344 | AV93: 156 | AW93: 93 | AX93: 897 | AY93: 0 | AZ93: 518 | BA93: 278 | BB93: 242 | BC93: 50 | BD93: 0.1 | BE93: 0.07 | BF93: 0.04 | BG93: 0.08 | BH93: 0.09 | BI93: 0.45 | BJ93: 0.03 | BK93: 0.56 | BL93: 0.02 | BM93: 0.31 | BN93: 0.04 | BO93: 0 | BP93: 0 | BQ93: 0.04 | BR93: 0.08 | BS93: 0.69 | BT93: 0.01 | BU93: 0 | BV93: 0.02 | BW93: 0.03 | BX93: 0.08 | BY93: 0 | BZ93: 0 | CA93: 0 | CB93: 86.5 | CE93: 10 | CG93: 9 | CH93: 9 | CI93: 9 | CJ93: 0 | CK93: 0 | CL93: 0 | CM93: 2 | CN93: 2 | CO93: 2 | CP93: 0 | CQ93: 0
B94: Итого за 'Второй завтрак' | C94: =SUM(C93) -> 100 | D94: =SUM(D93) -> 4.8 | E94: 4.1 | F94: 2.5 | G94: 0.0 | H94: 11.0 | I94: 87 | J94: 0.9 | K94: 0.0 | L94: 0.0 | M94: 0.0 | N94: 11.0 | O94: 0.0 | P94: 0.0 | Q94: 0.0 | R94: 0.0 | S94: 1.1 | T94: 0.9 | U94: 50.0 | V94: 152.0 | W94: 124.0 | X94: 15.0 | Y94: 95.0 | Z94: 0.1 | AA94: 10.0 | AB94: 0.0 | AC94: 10.0 | AD94: 0.0 | AE94: 0.0 | AF94: 0.2 | AG94: 0.2 | AH94: 1.2 | AI94: 0.6 | AJ94: 0 | AK94: 323 | AL94: 300 | AM94: 450 | AN94: 387 | AO94: 115 | AP94: 216 | AQ94: 72 | AR94: 225 | AS94: 160 | AT94: 174 | AU94: 344 | AV94: 156 | AW94: 93 | AX94: 897 | AY94: 0 | AZ94: 518 | BA94: 278 | BB94: 242 | BC94: 50 | BD94: 0.1 | BE94: 0.07 | BF94: 0.04 | BG94: 0.08 | BH94: 0.09 | BI94: 0.45 | BJ94: 0.03 | BK94: 0.56 | BL94: 0.02 | BM94: 0.31 | BN94: 0.04 | BO94: 0 | BP94: 0 | BQ94: 0.04 | BR94: 0.08 | BS94: 0.69 | BT94: 0.01 | BU94: 0 | BV94: 0.02 | BW94: 0.03 | BX94: 0.08 | BY94: 0 | BZ94: 0 | CA94: 0 | CB94: 86.5 | CD94: =$I$94/#REF!*100 ->  | CE94: 10 | CG94: 9 | CH94: 9 | CI94: 9 | CJ94: 0 | CK94: 0 | CL94: 0 | CM94: 2 | CN94: 2 | CO94: 2 | CP94: 0 | CQ94: 0
B95: Обед
A96: ="-" -> - | B96: Хлеб пшеничный | C96: 20 | D96: 1.2 | E96: 0.0 | F96: 0.1 | G96: 0.1 | H96: 7.4 | I96: 36 | J96: 0.0 | K96: 0.0 | L96: 0.0 | M96: 0.0 | N96: 0.2 | O96: 7.1 | P96: 0.0 | Q96: 0.0 | R96: 0.0 | S96: 0.0 | T96: 0.4 | U96: 0.0 | V96: 0.0 | W96: 0.0 | X96: 0.0 | Y96: 0.0 | Z96: 0.0 | AA96: 0.0 | AB96: 0.0 | AC96: 0.0 | AD96: 0.0 | AE96: 0.0 | AF96: 0.0 | AG96: 0.0 | AH96: 0.0 | AI96: 0.0 | AJ96: 0 | AK96: 63.86 | AL96: 66.47 | AM96: 101.79 | AN96: 33.76 | AO96: 20.01 | AP96: 40.02 | AQ96: 15.14 | AR96: 72.38 | AS96: 44.89 | AT96: 62.64 | AU96: 51.68 | AV96: 27.14 | AW96: 48.02 | AX96: 401.59 | AY96: 0 | AZ96: 130.85 | BA96: 56.9 | BB96: 37.76 | BC96: 29.93 | BD96: 0 | BE96: 0 | BF96: 0 | BG96: 0 | BH96: 0 | BI96: 0 | BJ96: 0 | BK96: 0.02 | BL96: 0 | BM96: 0 | BN96: 0 | BO96: 0 | BP96: 0 | BQ96: 0 | BR96: 0 | BS96: 0.01 | BT96: 0 | BU96: 0 | BV96: 0.06 | BW96: 0 | BX96: 0 | BY96: 0 | BZ96: 0 | CA96: 0 | CB96: 7.82 | CE96: 0 | CG96: 0 | CH96: 0 | CI96: 0 | CJ96: 380 | CK96: 146.4 | CL96: 263.2 | CM96: 3.04 | CN96: 3.04 | CO96: 3.04 | CP96: 0 | CQ96: 0
A97: ="-" -> - | B97: Хлеб ржаной | C97: 30 | D97: 1.8 | E97: 0.0 | F97: 0.4 | G97: 0.4 | H97: 12.5 | I97: 57 | J97: 0.1 | K97: 0.0 | L97: 0.0 | M97: 0.0 | N97: 0.4 | O97: 9.7 | P97: 2.5 | Q97: 0.0 | R97: 0.0 | S97: 0.3 | T97: 0.8 | U97: 183.0 | V97: 73.5 | W97: 10.5 | X97: 14.1 | Y97: 47.4 | Z97: 1.2 | AA97: 0.0 | AB97: 1.5 | AC97: 0.3 | AD97: 0.4 | AE97: 0.1 | AF97: 0.0 | AG97: 0.2 | AH97: 0.6 | AI97: 0.0 | AJ97: 0 | AK97: 96.6 | AL97: 74.4 | AM97: 128.1 | AN97: 66.9 | AO97: 27.9 | AP97: 59.4 | AQ97: 24 | AR97: 111.3 | AS97: 89.1 | AT97: 87.3 | AU97: 139.2 | AV97: 37.2 | AW97: 93 | AX97: 467.7 | AY97: 0 | AZ97: 157.8 | BA97: 87.3 | BB97: 54 | BC97: 39 | BD97: 0 | BE97: 0 | BF97: 0 | BG97: 0 | BH97: 0 | BI97: 0 | BJ97: 0 | BK97: 0.04 | BL97: 0 | BM97: 0 | BN97: 0.01 | BO97: 0 | BP97: 0 | BQ97: 0 | BR97: 0 | BS97: 0.03 | BT97: 0 | BU97: 0 | BV97: 0.14 | BW97: 0.02 | BX97: 0 | BY97: 0 | BZ97: 0 | CA97: 0 | CB97: 14.1 | CE97: 0.25 | CG97: 3 | CH97: 3 | CI97: 3 | CJ97: 570 | CK97: 219.6 | CL97: 394.8 | CM97: 5.7 | CN97: 4.74 | CO97: 5.22 | CP97: 0 | CQ97: 0
A98: ="3/10" -> 3/10 | B98: Компот из яблок | C98: 180 | D98: 0.1 | E98: 0.0 | F98: 0.1 | G98: 0.1 | H98: 17.3 | I98: 67 | J98: 0.0 | K98: 0.0 | L98: 0.0 | M98: 0.0 | N98: 16.4 | O98: 0.3 | P98: 0.6 | Q98: 0.0 | R98: 0.0 | S98: 0.3 | T98: 0.2 | U98: 9.4 | V98: 99.5 | W98: 6.0 | X98: 3.1 | Y98: 3.7 | Z98: 0.8 | AA98: 0.0 | AB98: 9.7 | AC98: 1.8 | AD98: 0.1 | AE98: 0.0 | AF98: 0.0 | AG98: 0.1 | AH98: 0.1 | AI98: 1.4 | AJ98: 0 | AK98: 4.23 | AL98: 4.59 | AM98: 6.7 | AN98: 6.35 | AO98: 1.06 | AP98: 3.88 | AQ98: 1.06 | AR98: 3.18 | AS98: 6 | AT98: 3.53 | AU98: 27.52 | AV98: 2.47 | AW98: 4.94 | AX98: 14.82 | AY98: 0 | AZ98: 4.59 | BA98: 5.64 | BB98: 2.12 | BC98: 1.76 | BD98: 0 | BE98: 0 | BF98: 0 | BG98: 0 | BH98: 0 | BI98: 0 | BJ98: 0 | BK98: 0 | BL98: 0 | BM98: 0 | BN98: 0 | BO98: 0 | BP98: 0 | BQ98: 0 | BR98: 0 | BS98: 0 | BT98: 0 | BU98: 0 | BV98: 0 | BW98: 0 | BX98: 0 | BY98: 0 | BZ98: 0 | CA98: 0 | CB98: 220.08 | CE98: 1.62 | CG98: 4.5 | CH98: 4.5 | CI98: 4.5 | CJ98: 432 | CK98: 208.98 | CL98: 320.49 | CM98: 41.2 | CN98: 24.19 | CO98: 32.7 | CP98: 13.5 | CQ98: 0
A99: ="49/1" -> 49/1 | B99: Салат "Винегрет" с растительным маслом | C99: 50 | D99: 0.7 | E99: 0.0 | F99: 3.0 | G99: 3.0 | H99: 5.3 | I99: 50 | J99: 0.4 | K99: 2.0 | L99: 0.0 | M99: 0.0 | N99: 1.8 | O99: 2.7 | P99: 0.8 | Q99: 0.0 | R99: 0.0 | S99: 0.1 | T99: 0.9 | U99: 176.4 | V99: 141.0 | W99: 10.7 | X99: 9.5 | Y99: 21.9 | Z99: 0.4 | AA99: 0.0 | AB99: 461.1 | AC99: 92.2 | AD99: 1.4 | AE99: 0.0 | AF99: 0.0 | AG99: 0.3 | AH99: 0.5 | AI99: 2.0 | AJ99: 0 | AK99: 13.68 | AL99: 16.44 | AM99: 20.02 | AN99: 23.87 | AO99: 4.68 | AP99: 15.61 | AQ99: 5.73 | AR99: 14.68 | AS99: 16.91 | AT99: 39.03 | AU99: 51.8 | AV99: 4.63 | AW99: 12.72 | AX99: 78.68 | AY99: 0 | AZ99: 11.61 | BA99: 12.79 | BB99: 11.41 | BC99: 4.45 | BD99: 0 | BE99: 0 | BF99: 0 | BG99: 0 | BH99: 0 | BI99: 0 | BJ99: 0 | BK99: 0.2 | BL99: 0 | BM99: 0.12 | BN99: 0.01 | BO99: 0.02 | BP99: 0 | BQ99: 0 | BR99: 0 | BS99: 0.73 | BT99: 0 | BU99: 0 | BV99: 1.75 | BW99: 0 | BX99: 0 | BY99: 0 | BZ99: 0 | CA99: 0 | CB99: 40.69 | CE99: 76.85 | CG99: 12.5 | CH99: 7.41 | CI99: 9.95 | CJ99: 320.17 | CK99: 132.35 | CL99: 226.26 | CM99: 5.21 | CN99: 1.51 | CO99: 3.36 | CP99: 0 | CQ99: 0.25
A100: ="14/2" -> 14/2 | B100: Суп картофельный с пшенной крупой на говяжьем бульоне | C100: 180 | D100: 2.5 | E100: 5.9 | F100: 7.6 | G100: 4.0 | H100: 12.2 | I100: 126 | J100: 1.9 | K100: 2.3 | L100: 0.0 | M100: 0.0 | N100: 1.5 | O100: 9.5 | P100: 1.1 | Q100: 0.0 | R100: 0.0 | S100: 0.1 | T100: 1.8 | U100: 422.9 | V100: 297.7 | W100: 12.3 | X100: 16.7 | Y100: 41.5 | Z100: 0.6 | AA100: 0.0 | AB100: 700.4 | AC100: 145.7 | AD100: 1.7 | AE100: 0.1 | AF100: 0.1 | AG100: 0.7 | AH100: 1.2 | AI100: 4.7 | AJ100: 0 | AK100: 31.51 | AL100: 37.23 | AM100: 80.27 | AN100: 42.78 | AO100: 15.7 | AP100: 36.01 | AQ100: 16.79 | AR100: 42.54 | AS100: 69.07 | AT100: 98.38 | AU100: 66.67 | AV100: 16.86 | AW100: 32.93 | AX100: 202.71 | AY100: 0 | AZ100: 44.67 | BA100: 39.63 | BB100: 30.32 | BC100: 13.5 | BD100: 0 | BE100: 0 | BF100: 0 | BG100: 0 | BH100: 0 | BI100: 0 | BJ100: 0 | BK100: 0.24 | BL100: 0 | BM100: 0.14 | BN100: 0.01 | BO100: 0.02 | BP100: 0 | BQ100: 0 | BR100: 0 | BS100: 0.84 | BT100: 0 | BU100: 0 | BV100: 2.24 | BW100: 0 | BX100: 0 | BY100: 0 | BZ100: 0 | CA100: 0 | CB100: 179.93 | CE100: 116.74 | CG100: 49.25 | CH100: 27.54 | CI100: 38.39 | CJ100: 694.26 | CK100: 394.27 | CL100: 544.26 | CM100: 38.31 | CN100: 18.54 | CO100: 28.42 | CP100: 0 | CQ100: 1.08
A101: ="292/17" -> 292/17 | B101: Жаркое из мясо бройлер-цыплят с овощами | C101: 180 | D101: 17.2 | E101: 15.2 | F101: 22.7 | G101: 7.3 | H101: 31.8 | I101: 332 | J101: 4.7 | K101: 4.7 | L101: 0.0 | M101: 0.0 | N101: 4.9 | O101: 8.7 | P101: 1.9 | Q101: 0.0 | R101: 0.0 | S101: 0.4 | T101: 2.5 | U101: 299.2 | V101: 634.7 | W101: 34.3 | X101: 42.7 | Y101: 190.0 | Z101: 2.3 | AA101: 59.6 | AB101: 3096.5 | AC101: 633.1 | AD101: 3.9 | AE101: 0.1 | AF101: 0.2 | AG101: 6.6 | AH101: 12.3 | AI101: 7.7 | AJ101: 0 | AK101: 758.59 | AL101: 611.62 | AM101: 1220.27 | AN101: 1365.64 | AO101: 401.58 | AP101: 746.07 | AQ101: 258.57 | AR101: 653.71 | AS101: 1010.64 | AT101: 1128.02 | AU101: 1439.5 | AV101: 417.84 | AW101: 1179.19 | AX101: 2347.98 | AY101: 126.08 | AZ101: 758.02 | BA101: 742.04 | BB101: 557.72 | BC101: 197.92 | BD101: 0 | BE101: 0 | BF101: 0 | BG101: 0 | BH101: 0 | BI101: 0 | BJ101: 0 | BK101: 0.48 | BL101: 0 | BM101: 0.3 | BN101: 0.02 | BO101: 0.05 | BP101: 0 | BQ101: 0 | BR101: 0 | BS101: 1.77 | BT101: 0 | BU101: 0 | BV101: 4.22 | BW101: 0 | BX101: 0 | BY101: 0 | BZ101: 0 | CA101: 0 | CB101: 142.41 | CE101: 575.72 | CG101: 13.6 | CH101: 7.45 | CI101: 10.53 | CJ101: 1301.1 | CK101: 804.24 | CL101: 1052.67 | CM101: 12 | CN101: 6.27 | CO101: 9.14 | CP101: 0 | CQ101: 0.6
B102: Итого за 'Обед' | C102: =SUM(C96:C101) -> 640 | D102: 23.6 | E102: 21.1 | F102: 34.0 | G102: 15.0 | H102: 86.4 | I102: 669 | J102: 7.1 | K102: 9.0 | L102: 0.0 | M102: 0.0 | N102: 25.1 | O102: 37.9 | P102: 7.0 | Q102: 0.0 | R102: 0.0 | S102: 1.2 | T102: 6.6 | U102: 1090.8 | V102: 1246.4 | W102: 73.7 | X102: 86.1 | Y102: 304.4 | Z102: 5.3 | AA102: 59.6 | AB102: 4269.2 | AC102: 873.1 | AD102: 7.4 | AE102: 0.3 | AF102: 0.3 | AG102: 7.8 | AH102: 14.8 | AI102: 15.8 | AJ102: 0 | AK102: 814.84 | AL102: 676.45 | AM102: 1238.45 | AN102: 1059.03 | AO102: 393.18 | AP102: 679.14 | AQ102: 259.19 | AR102: 792.49 | AS102: 944.74 | AT102: 1235.76 | AU102: 1452.35 | AV102: 413.35 | AW102: 1056.15 | AX102: 3167.52 | AY102: 65.64 | AZ102: 931.83 | BA102: 806.37 | BB102: 576.17 | BC102: 309.2 | BD102: 0.14 | BE102: 0.06 | BF102: 0.03 | BG102: 0.08 | BH102: 0.09 | BI102: 0.42 | BJ102: 0 | BK102: 1.85 | BL102: 0 | BM102: 0.64 | BN102: 0.03 | BO102: 0.04 | BP102: 0 | BQ102: 0.08 | BR102: 0.14 | BS102: 2.95 | BT102: 0.01 | BU102: 0 | BV102: 4.62 | BW102: 0.07 | BX102: 0 | BY102: 0 | BZ102: 0 | CA102: 0 | CB102: 659.47 | CD102: =$I$102/#REF!*100 ->  | CE102: 235.66 | CG102: 106.41 | CH102: 62.77 | CI102: 84.59 | CJ102: 5673.03 | CK102: 2917.59 | CL102: 4295.31 | CM102: 148.55 | CN102: 87.36 | CO102: 117.98 | CP102: 13.5 | CQ102: 2.06
B103: Уплотненный полдник
A104: ="14/12" -> 14/12 | B104: Булочка дорожная | C104: 70 | D104: 5.4 | E104: 0.9 | F104: 7.7 | G104: 0.6 | H104: 38.7 | I104: 244 | J104: 5.4 | K104: 0.2 | L104: 0.0 | M104: 0.0 | N104: 9.1 | O104: 28.1 | P104: 1.5 | Q104: 0.0 | R104: 0.0 | S104: 0.0 | T104: 1.0 | U104: 176.8 | V104: 81.5 | W104: 33.8 | X104: 9.2 | Y104: 55.1 | Z104: 0.6 | AA104: 27.9 | AB104: 26.9 | AC104: 52.2 | AD104: 0.8 | AE104: 0.1 | AF104: 0.1 | AG104: 0.5 | AH104: 1.6 | AI104: 0.1 | AJ104: 0 | AK104: 213.74 | AL104: 194.06 | AM104: 363.13 | AN104: 122.37 | AO104: 70.5 | AP104: 143.31 | AQ104: 48.51 | AR104: 223.28 | AS104: 152.28 | AT104: 180.77 | AU104: 163.57 | AV104: 93.72 | AW104: 158.55 | AX104: 1353.11 | AY104: 2.3 | AZ104: 425.26 | BA104: 224.98 | BB104: 115.67 | BC104: 88.47 | BD104: 0.25 | BE104: 0.11 | BF104: 0.06 | BG104: 0.14 | BH104: 0.16 | BI104: 0.73 | BJ104: 0 | BK104: 2.09 | BL104: 0 | BM104: 0.63 | BN104: 0 | BO104: 0 | BP104: 0 | BQ104: 0.14 | BR104: 0.22 | BS104: 1.7 | BT104: 0 | BU104: 0 | BV104: 0.31 | BW104: 0.02 | BX104: 0 | BY104: 0 | BZ104: 0 | CA104: 0 | CB104: 28.57 | CE104: 32.38 | CG104: 20.02 | CH104: 9.8 | CI104: 14.91 | CJ104: 1135.57 | CK104: 398.9 | CL104: 767.24 | CM104: 10.2 | CN104: 4.99 | CO104: 8.05 | CP104: 4.2 | CQ104: 0.42
A105: ="-" -> - | B105: Сок в ассортименте | C105: 180 | D105: 0.9 | E105: 0.0 | F105: 0.2 | G105: 0.0 | H105: 18.5 | I105: 78 | J105: 0.0 | K105: 0.0 | L105: 0.0 | M105: 0.0 | N105: 17.8 | O105: 0.4 | P105: 0.4 | Q105: 0.0 | R105: 0.0 | S105: 0.9 | T105: 0.5 | U105: 10.8 | V105: 216.0 | W105: 12.6 | X105: 7.2 | Y105: 12.6 | Z105: 2.5 | AA105: 0.0 | AB105: 0.0 | AC105: 0.0 | AD105: 0.2 | AE105: 0.0 | AF105: 0.0 | AG105: 0.2 | AH105: 0.4 | AI105: 3.6 | AJ105: 0.36 | AK105: 14.4 | AL105: 18 | AM105: 25.2 | AN105: 25.2 | AO105: 3.6 | AP105: 14.4 | AQ105: 3.6 | AR105: 12.6 | AS105: 23.4 | AT105: 14.4 | AU105: 104.4 | AV105: 9 | AW105: 19.8 | AX105: 57.6 | AY105: 0 | AZ105: 18 | BA105: 21.6 | BB105: 9 | BC105: 7.2 | BD105: 0 | BE105: 0 | BF105: 0 | BG105: 0 | BH105: 0 | BI105: 0 | BJ105: 0 | BK105: 0 | BL105: 0 | BM105: 0 | BN105: 0 | BO105: 0 | BP105: 0 | BQ105: 0 | BR105: 0 | BS105: 0 | BT105: 0 | BU105: 0 | BV105: 0 | BW105: 0 | BX105: 0 | BY105: 0 | BZ105: 0 | CA105: 0 | CB105: 158.58 | CE105: 0 | CG105: 3.6 | CH105: 3.6 | CI105: 3.6 | CJ105: 360 | CK105: 163.8 | CL105: 261.9 | CM105: 0.54 | CN105: 0.54 | CO105: 0.54 | CP105: 0 | CQ105: 0
A106: ="2/6" -> 2/6 | B106: Омлет запеченный или паровой | C106: 120 | D106: 12.6 | E106: 13.3 | F106: 17.1 | G106: 0.0 | H106: 2.3 | I106: 213 | J106: 8.4 | K106: 0.2 | L106: 0.0 | M106: 0.0 | N106: 2.3 | O106: 0.0 | P106: 0.0 | Q106: 0.0 | R106: 0.0 | S106: 0.0 | T106: 2.0 | U106: 380.5 | V106: 167.3 | W106: 88.6 | X106: 14.5 | Y106: 191.6 | Z106: 2.2 | AA106: 173.1 | AB106: 73.7 | AC106: 304.0 | AD106: 0.7 | AE106: 0.1 | AF106: 0.4 | AG106: 0.2 | AH106: 3.8 | AI106: 0.2 | AJ106: 0 | AK106: 700.73 | AL106: 542.71 | AM106: 982.87 | AN106: 819.23 | AO106: 384.27 | AP106: 555.02 | AQ106: 188.26 | AR106: 592.44 | AS106: 644.2 | AT106: 712.71 | AU106: 1114.58 | AV106: 310.21 | AW106: 377.73 | AX106: 1613.73 | AY106: 12.63 | AZ106: 362.01 | BA106: 842.67 | BB106: 433.62 | BC106: 265.37 | BD106: 0.24 | BE106: 0.11 | BF106: 0.06 | BG106: 0.14 | BH106: 0.16 | BI106: 0.72 | BJ106: 0 | BK106: 2.01 | BL106: 0 | BM106: 0.62 | BN106: 0 | BO106: 0 | BP106: 0 | BQ106: 0.14 | BR106: 0.21 | BS106: 1.64 | BT106: 0 | BU106: 0 | BV106: 0.09 | BW106: 0.01 | BX106: 0 | BY106: 0 | BZ106: 0 | CA106: 0 | CB106: 105.76 | CE106: 185.38 | CG106: 48.94 | CH106: 30.96 | CI106: 39.95 | CJ106: 209 | CK106: 77.6 | CL106: 143.3 | CM106: 14.28 | CN106: 7.8 | CO106: 11.04 | CP106: 0 | CQ106: 0.6
B107: Итого за 'Уплотненный полдник' | C107: =SUM(C104:C106) -> 370 | D107: =SUM(D104:D106) -> 18.9 | E107: 14.2 | F107: 25.0 | G107: 0.6 | H107: 59.5 | I107: 535 | J107: 13.8 | K107: 0.5 | L107: 0.0 | M107: 0.0 | N107: 29.2 | O107: 28.5 | P107: 1.8 | Q107: 0.0 | R107: 0.0 | S107: 1.0 | T107: 3.5 | U107: 568.1 | V107: 464.8 | W107: 135.0 | X107: 30.9 | Y107: 259.3 | Z107: 5.2 | AA107: 201.0 | AB107: 100.6 | AC107: 356.1 | AD107: 1.7 | AE107: 0.1 | AF107: 0.5 | AG107: 0.9 | AH107: 5.7 | AI107: 3.9 | AJ107: 0.36 | AK107: 928.87 | AL107: 754.77 | AM107: 1371.2 | AN107: 966.8 | AO107: 458.37 | AP107: 712.73 | AQ107: 240.38 | AR107: 828.32 | AS107: 819.88 | AT107: 907.88 | AU107: 1382.55 | AV107: 412.93 | AW107: 556.08 | AX107: 3024.44 | AY107: 14.94 | AZ107: 805.27 | BA107: 1089.25 | BB107: 558.29 | BC107: 361.05 | BD107: 0.49 | BE107: 0.23 | BF107: 0.12 | BG107: 0.28 | BH107: 0.32 | BI107: 1.45 | BJ107: 0 | BK107: 4.1 | BL107: 0 | BM107: 1.25 | BN107: 0 | BO107: 0 | BP107: 0 | BQ107: 0.28 | BR107: 0.43 | BS107: 3.34 | BT107: 0 | BU107: 0 | BV107: 0.41 | BW107: 0.03 | BX107: 0 | BY107: 0 | BZ107: 0 | CA107: 0 | CB107: 292.91 | CD107: =$I$107/#REF!*100 ->  | CE107: 217.76 | CG107: 72.55 | CH107: 44.36 | CI107: 58.46 | CJ107: 1704.57 | CK107: 640.3 | CL107: 1172.44 | CM107: 25.02 | CN107: 13.33 | CO107: 19.63 | CP107: 4.2 | CQ107: 1.02
B108: Итого за день | C108: =C91+C94+C102+C107 -> 1525 | D108: 60.4 | E108: 46.9 | F108: 72.9 | G108: 17.2 | H108: 211.7 | I108: 1662 | J108: 28.2 | K108: 9.5 | L108: 0.0 | M108: 0.0 | N108: 86.3 | O108: 98.8 | P108: 10.2 | Q108: 0.0 | R108: 0.0 | S108: 3.7 | T108: 14.1 | U108: 2101.7 | V108: 2181.8 | W108: 634.2 | X108: 188.2 | Y108: 939.1 | Z108: 11.9 | AA108: 328.8 | AB108: 4417.4 | AC108: 1319.7 | AD108: 9.3 | AE108: 0.6 | AF108: 1.2 | AG108: 9.6 | AH108: 25.6 | AI108: 21.2 | AJ108: 0.36 | AK108: 2481.83 | AL108: 2094.52 | AM108: 3996.53 | AN108: 2723 | AO108: 1159.5 | AP108: 1905.06 | AQ108: 729.79 | AR108: 2289.95 | AS108: 2462.29 | AT108: 2643.72 | AU108: 3646.04 | AV108: 1185.28 | AW108: 1929.96 | AX108: 8948.01 | AY108: 80.58 | AZ108: 2998.02 | BA108: 2638.97 | BB108: 1718.4 | BC108: 847.22 | BD108: 0.83 | BE108: 0.41 | BF108: 0.26 | BG108: 0.6 | BH108: 0.68 | BI108: 2.94 | BJ108: 0.07 | BK108: 8.08 | BL108: 0.03 | BM108: 2.62 | BN108: 0.09 | BO108: 0.04 | BP108: 0 | BQ108: 0.51 | BR108: 0.8 | BS108: 8.33 | BT108: 0.02 | BU108: 0 | BV108: 5.96 | BW108: 0.14 | BX108: 0.08 | BY108: 0 | BZ108: 0 | CA108: 0 | CB108: 1397.97 | CE108: 529.53 | CG108: 229.22 | CH108: 135.36 | CI108: 182.29 | CJ108: 11363.27 | CK108: 5408.78 | CL108: 8386.02 | CM108: 252.24 | CN108: 143.19 | CO108: 198.19 | CP108: 30.7 | CQ108: 3.58
B110: 5 ДЕНЬ
B111: Завтрак
A112: ="-" -> - | B112: Батон | C112: 30 | D112: 2.3 | E112: 0.0 | F112: 1.5 | G112: 0.9 | H112: 11.2 | I112: 66 | J112: 0.2 | K112: 0.0 | L112: 0.0 | M112: 0.0 | N112: 1.0 | O112: 9.2 | P112: 1.0 | Q112: 0.0 | R112: 0.0 | S112: 0.1 | T112: 0.5 | U112: 128.7 | V112: 39.3 | W112: 6.6 | X112: 9.9 | Y112: 25.5 | Z112: 0.6 | AA112: 0.0 | AB112: 0.0 | AC112: 0.0 | AD112: 0.5 | AE112: 0.1 | AF112: 0.0 | AG112: 0.5 | AH112: 0.9 | AI112: 0.0 | AJ112: 0 | AK112: 111.6 | AL112: 115.8 | AM112: 177.3 | AN112: 59.7 | AO112: 35.1 | AP112: 70.2 | AQ112: 26.4 | AR112: 126 | AS112: 78.3 | AT112: 108.9 | AU112: 90.3 | AV112: 48.3 | AW112: 84 | AX112: 697.5 | AY112: 0 | AZ112: 227.1 | BA112: 99.3 | BB112: 66.6 | BC112: 51.9 | BD112: 0 | BE112: 0 | BF112: 0 | BG112: 0 | BH112: 0 | BI112: 0.01 | BJ112: 0 | BK112: 0.1 | BL112: 0 | BM112: 0.05 | BN112: 0 | BO112: 0 | BP112: 0 | BQ112: 0 | BR112: 0 | BS112: 0.35 | BT112: 0 | BU112: 0 | BV112: 0.26 | BW112: 0.01 | BX112: 0 | BY112: 0 | BZ112: 0 | CA112: 0 | CB112: 10.23 | CE112: 0 | CG112: 0 | CH112: 0 | CI112: 0 | CJ112: 570 | CK112: 219.6 | CL112: 394.8 | CM112: 4.56 | CN112: 4.56 | CO112: 4.56 | CP112: 0 | CQ112: 0
A113: ="-" -> - | B113: Масло сливочное | C113: 5 | D113: 0.0 | E113: 0.0 | F113: 3.6 | G113: 0.0 | H113: 0.1 | I113: 33 | J113: 2.4 | K113: 0.1 | L113: 0.0 | M113: 0.0 | N113: 0.1 | O113: 0.0 | P113: 0.0 | Q113: 0.0 | R113: 0.0 | S113: 0.0 | T113: 0.1 | U113: 0.8 | V113: 1.5 | W113: 1.2 | X113: 0.0 | Y113: 1.5 | Z113: 0.0 | AA113: 20.0 | AB113: 15.0 | AC113: 22.5 | AD113: 0.1 | AE113: 0.0 | AF113: 0.0 | AG113: 0.0 | AH113: 0.0 | AI113: 0.0 | AJ113: 0 | AK113: 2.1 | AL113: 2.05 | AM113: 3.8 | AN113: 2.25 | AO113: 0.85 | AP113: 2.35 | AQ113: 2.15 | AR113: 2.1 | AS113: 1.8 | AT113: 1.3 | AU113: 2.85 | AV113: 1.75 | AW113: 1.2 | AX113: 7.1 | AY113: 0 | AZ113: 2.4 | BA113: 2.7 | BB113: 2.1 | BC113: 0.5 | BD113: 0.13 | BE113: 0.06 | BF113: 0.03 | BG113: 0.08 | BH113: 0.09 | BI113: 0.4 | BJ113: 0 | BK113: 1.1 | BL113: 0 | BM113: 0.34 | BN113: 0 | BO113: 0 | BP113: 0 | BQ113: 0.08 | BR113: 0.12 | BS113: 0.9 | BT113: 0 | BU113: 0 | BV113: 0.05 | BW113: 0 | BX113: 0 | BY113: 0 | BZ113: 0 | CA113: 0 | CB113: 1.25 | CE113: 22.5 | CG113: 0.2 | CH113: 0.05 | CI113: 0.13 | CJ113: 10 | CK113: 4.1 | CL113: 7.05 | CM113: 0.86 | CN113: 0.44 | CO113: 0.65 | CP113: 0 | CQ113: 0
A114: ="29/10" -> 29/10 | B114: Чай с лимоном | C114: 180 | D114: 0.2 | E114: 0.0 | F114: 0.1 | G114: 0.1 | H114: 8.9 | I114: 36 | J114: 0.0 | K114: 0.0 | L114: 0.0 | M114: 0.0 | N114: 8.8 | O114: 0.0 | P114: 0.2 | Q114: 0.0 | R114: 0.0 | S114: 0.3 | T114: 0.1 | U114: 0.6 | V114: 7.4 | W114: 2.0 | X114: 0.5 | Y114: 0.9 | Z114: 0.1 | AA114: 0.0 | AB114: 0.4 | AC114: 0.1 | AD114: 0.0 | AE114: 0.0 | AF114: 0.0 | AG114: 0.0 | AH114: 0.0 | AI114: 0.7 | AJ114: 0 | AK114: 0.6 | AL114: 0.69 | AM114: 0.56 | AN114: 1.03 | AO114: 0.26 | AP114: 1.08 | AQ114: 0 | AR114: 1.38 | AS114: 0 | AT114: 0 | AU114: 0 | AV114: 0.77 | AW114: 0 | AX114: 0 | AY114: 0 | AZ114: 0 | BA114: 0 | BB114: 0 | BC114: 0 | BD114: 0 | BE114: 0 | BF114: 0 | BG114: 0 | BH114: 0 | BI114: 0 | BJ114: 0 | BK114: 0 | BL114: 0 | BM114: 0 | BN114: 0 | BO114: 0 | BP114: 0 | BQ114: 0 | BR114: 0 | BS114: 0 | BT114: 0 | BU114: 0 | BV114: 0 | BW114: 0 | BX114: 0 | BY114: 0 | BZ114: 0 | CA114: 0 | CB114: 179.55 | CE114: 0.07 | CG114: 3.85 | CH114: 3.72 | CI114: 3.79 | CJ114: 434.63 | CK114: 165.16 | CL114: 299.9 | CM114: 39.92 | CN114: 23.87 | CO114: 31.9 | CP114: 8.78 | CQ114: 0
A115: ="15/4" -> 15/4 | B115: Каша ячневая молочная с маслом сливочным | C115: 200 | D115: 6.0 | E115: 2.4 | F115: 4.8 | G115: 0.5 | H115: 33.8 | I115: 197 | J115: 3.4 | K115: 0.1 | L115: 0.0 | M115: 0.0 | N115: 7.6 | O115: 23.2 | P115: 3.0 | Q115: 0.0 | R115: 0.0 | S115: 0.1 | T115: 1.6 | U115: 240.2 | V115: 176.2 | W115: 115.2 | X115: 27.2 | Y115: 183.4 | Z115: 0.7 | AA115: 19.2 | AB115: 16.0 | AC115: 35.6 | AD115: 0.6 | AE115: 0.1 | AF115: 0.1 | AG115: 0.9 | AH115: 2.5 | AI115: 0.4 | AJ115: 0 | AK115: 182.06 | AL115: 176.38 | AM115: 194.62 | AN115: 133.29 | AO115: 60.8 | AP115: 95.77 | AQ115: 46.74 | AR115: 197.1 | AS115: 153.63 | AT115: 185.22 | AU115: 240.9 | AV115: 87.8 | AW115: 155.06 | AX115: 905.86 | AY115: 0 | AZ115: 494.36 | BA115: 148.67 | BB115: 114.38 | BC115: 75.58 | BD115: 0.09 | BE115: 0.04 | BF115: 0.02 | BG115: 0.05 | BH115: 0.06 | BI115: 0.28 | BJ115: 0 | BK115: 0.78 | BL115: 0 | BM115: 0.24 | BN115: 0 | BO115: 0 | BP115: 0 | BQ115: 0.05 | BR115: 0.08 | BS115: 0.63 | BT115: 0 | BU115: 0 | BV115: 0.04 | BW115: 0 | BX115: 0 | BY115: 0 | BZ115: 0 | CA115: 0 | CB115: 177.81 | CE115: 21.87 | CG115: 34.24 | CH115: 14.52 | CI115: 24.38 | CJ115: 2147.67 | CK115: 982.95 | CL115: 1565.31 | CM115: 45.21 | CN115: 23.88 | CO115: 34.54 | CP115: 4 | CQ115: 0.5
B116: Итого за 'Завтрак' | C116: =SUM(C112:C115) -> 415 | D116: =SUM(D112:D115) -> 8.5 | E116: 2.4 | F116: 10.0 | G116: 1.5 | H116: 53.9 | I116: 332 | J116: 5.9 | K116: 0.2 | L116: 0.0 | M116: 0.0 | N116: 17.4 | O116: 32.5 | P116: 4.1 | Q116: 0.0 | R116: 0.0 | S116: 0.4 | T116: 2.2 | U116: 370.2 | V116: 224.3 | W116: 125.0 | X116: 37.6 | Y116: 211.3 | Z116: 1.4 | AA116: 39.2 | AB116: 31.4 | AC116: 58.2 | AD116: 1.2 | AE116: 0.2 | AF116: 0.2 | AG116: 1.4 | AH116: 3.5 | AI116: 1.1 | AJ116: 0 | AK116: 296.36 | AL116: 294.92 | AM116: 376.28 | AN116: 196.27 | AO116: 97.01 | AP116: 169.39 | AQ116: 75.29 | AR116: 326.58 | AS116: 233.73 | AT116: 295.42 | AU116: 334.05 | AV116: 138.62 | AW116: 240.26 | AX116: 1610.46 | AY116: 0 | AZ116: 723.86 | BA116: 250.67 | BB116: 183.08 | BC116: 127.98 | BD116: 0.23 | BE116: 0.1 | BF116: 0.06 | BG116: 0.13 | BH116: 0.15 | BI116: 0.68 | BJ116: 0 | BK116: 1.98 | BL116: 0 | BM116: 0.63 | BN116: 0 | BO116: 0 | BP116: 0 | BQ116: 0.13 | BR116: 0.2 | BS116: 1.89 | BT116: 0 | BU116: 0 | BV116: 0.35 | BW116: 0.01 | BX116: 0 | BY116: 0 | BZ116: 0 | CA116: 0 | CB116: 368.83 | CD116: =$I$116/#REF!*100 ->  | CE116: 44.43 | CG116: 38.29 | CH116: 18.29 | CI116: 28.29 | CJ116: 3162.3 | CK116: 1371.81 | CL116: 2267.05 | CM116: 90.55 | CN116: 52.74 | CO116: 71.64 | CP116: 12.78 | CQ116: 0.5
B117: Второй завтрак
A118: ="-" -> - | B118: Бананы | C118: 100 | D118: 2.0 | E118: 0.0 | F118: 1.0 | G118: 0.5 | H118: 15.0 | I118: 72 | J118: 0.0 | K118: 0.0 | L118: 0.0 | M118: 0.0 | N118: 11.0 | O118: 2.0 | P118: 2.0 | Q118: 0.0 | R118: 0.0 | S118: 0.4 | T118: 0.9 | U118: 31.0 | V118: 348.0 | W118: 8.0 | X118: 42.0 | Y118: 28.0 | Z118: 0.6 | AA118: 0.0 | AB118: 120.0 | AC118: 20.0 | AD118: 0.4 | AE118: 0.0 | AF118: 0.1 | AG118: 0.6 | AH118: 0.9 | AI118: 10.0 | AJ118: 0 | AK118: 0 | AL118: 0 | AM118: 0 | AN118: 0 | AO118: 0 | AP118: 0 | AQ118: 0 | AR118: 0 | AS118: 0 | AT118: 0 | AU118: 0 | AV118: 0 | AW118: 0 | AX118: 0 | AY118: 0 | AZ118: 0 | BA118: 0 | BB118: 0 | BC118: 0 | BD118: 0 | BE118: 0 | BF118: 0 | BG118: 0 | BH118: 0 | BI118: 0 | BJ118: 0 | BK118: 0 | BL118: 0 | BM118: 0 | BN118: 0 | BO118: 0 | BP118: 0 | BQ118: 0 | BR118: 0 | BS118: 0 | BT118: 0 | BU118: 0 | BV118: 0 | BW118: 0 | BX118: 0 | BY118: 0 | BZ118: 0 | CA118: 0 | CB118: 74 | CE118: 20 | CG118: 4 | CH118: 1 | CI118: 2.5 | CJ118: 200 | CK118: 82 | CL118: 141 | CM118: 0 | CN118: 0 | CO118: 0 | CP118: 0 | CQ118: 0
B119: Итого за 'Второй завтрак' | C119: =SUM(C118) -> 100 | D119: =SUM(D118) -> 2.0 | E119: 0.0 | F119: 1.0 | G119: 0.5 | H119: 15.0 | I119: 72 | J119: 0.0 | K119: 0.0 | L119: 0.0 | M119: 0.0 | N119: 11.0 | O119: 2.0 | P119: 2.0 | Q119: 0.0 | R119: 0.0 | S119: 0.4 | T119: 0.9 | U119: 31.0 | V119: 348.0 | W119: 8.0 | X119: 42.0 | Y119: 28.0 | Z119: 0.6 | AA119: 0.0 | AB119: 120.0 | AC119: 20.0 | AD119: 0.4 | AE119: 0.0 | AF119: 0.1 | AG119: 0.6 | AH119: 0.9 | AI119: 10.0 | AJ119: 0 | AK119: 0 | AL119: 0 | AM119: 0 | AN119: 0 | AO119: 0 | AP119: 0 | AQ119: 0 | AR119: 0 | AS119: 0 | AT119: 0 | AU119: 0 | AV119: 0 | AW119: 0 | AX119: 0 | AY119: 0 | AZ119: 0 | BA119: 0 | BB119: 0 | BC119: 0 | BD119: 0 | BE119: 0 | BF119: 0 | BG119: 0 | BH119: 0 | BI119: 0 | BJ119: 0 | BK119: 0 | BL119: 0 | BM119: 0 | BN119: 0 | BO119: 0 | BP119: 0 | BQ119: 0 | BR119: 0 | BS119: 0 | BT119: 0 | BU119: 0 | BV119: 0 | BW119: 0 | BX119: 0 | BY119: 0 | BZ119: 0 | CA119: 0 | CB119: 74 | CD119: =$I$119/#REF!*100 ->  | CE119: 20 | CG119: 4 | CH119: 1 | CI119: 2.5 | CJ119: 200 | CK119: 82 | CL119: 141 | CM119: 0 | CN119: 0 | CO119: 0 | CP119: 0 | CQ119: 0
B120: Обед
A121: ="-" -> - | B121: Хлеб пшеничный | C121: 20 | D121: 1.2 | E121: 0.0 | F121: 0.1 | G121: 0.1 | H121: 7.4 | I121: 36 | J121: 0.0 | K121: 0.0 | L121: 0.0 | M121: 0.0 | N121: 0.2 | O121: 7.1 | P121: 0.0 | Q121: 0.0 | R121: 0.0 | S121: 0.0 | T121: 0.4 | U121: 0.0 | V121: 0.0 | W121: 0.0 | X121: 0.0 | Y121: 0.0 | Z121: 0.0 | AA121: 0.0 | AB121: 0.0 | AC121: 0.0 | AD121: 0.0 | AE121: 0.0 | AF121: 0.0 | AG121: 0.0 | AH121: 0.0 | AI121: 0.0 | AJ121: 0 | AK121: 63.86 | AL121: 66.47 | AM121: 101.79 | AN121: 33.76 | AO121: 20.01 | AP121: 40.02 | AQ121: 15.14 | AR121: 72.38 | AS121: 44.89 | AT121: 62.64 | AU121: 51.68 | AV121: 27.14 | AW121: 48.02 | AX121: 401.59 | AY121: 0 | AZ121: 130.85 | BA121: 56.9 | BB121: 37.76 | BC121: 29.93 | BD121: 0 | BE121: 0 | BF121: 0 | BG121: 0 | BH121: 0 | BI121: 0 | BJ121: 0 | BK121: 0.02 | BL121: 0 | BM121: 0 | BN121: 0 | BO121: 0 | BP121: 0 | BQ121: 0 | BR121: 0 | BS121: 0.01 | BT121: 0 | BU121: 0 | BV121: 0.06 | BW121: 0 | BX121: 0 | BY121: 0 | BZ121: 0 | CA121: 0 | CB121: 7.82 | CE121: 0 | CG121: 0 | CH121: 0 | CI121: 0 | CJ121: 380 | CK121: 146.4 | CL121: 263.2 | CM121: 3.04 | CN121: 3.04 | CO121: 3.04 | CP121: 0 | CQ121: 0
A122: ="-" -> - | B122: Хлеб ржаной | C122: 30 | D122: 1.8 | E122: 0.0 | F122: 0.4 | G122: 0.4 | H122: 12.5 | I122: 57 | J122: 0.1 | K122: 0.0 | L122: 0.0 | M122: 0.0 | N122: 0.4 | O122: 9.7 | P122: 2.5 | Q122: 0.0 | R122: 0.0 | S122: 0.3 | T122: 0.8 | U122: 183.0 | V122: 73.5 | W122: 10.5 | X122: 14.1 | Y122: 47.4 | Z122: 1.2 | AA122: 0.0 | AB122: 1.5 | AC122: 0.3 | AD122: 0.4 | AE122: 0.1 | AF122: 0.0 | AG122: 0.2 | AH122: 0.6 | AI122: 0.0 | AJ122: 0 | AK122: 96.6 | AL122: 74.4 | AM122: 128.1 | AN122: 66.9 | AO122: 27.9 | AP122: 59.4 | AQ122: 24 | AR122: 111.3 | AS122: 89.1 | AT122: 87.3 | AU122: 139.2 | AV122: 37.2 | AW122: 93 | AX122: 467.7 | AY122: 0 | AZ122: 157.8 | BA122: 87.3 | BB122: 54 | BC122: 39 | BD122: 0 | BE122: 0 | BF122: 0 | BG122: 0 | BH122: 0 | BI122: 0 | BJ122: 0 | BK122: 0.04 | BL122: 0 | BM122: 0 | BN122: 0.01 | BO122: 0 | BP122: 0 | BQ122: 0 | BR122: 0 | BS122: 0.03 | BT122: 0 | BU122: 0 | BV122: 0.14 | BW122: 0.02 | BX122: 0 | BY122: 0 | BZ122: 0 | CA122: 0 | CB122: 14.1 | CE122: 0.25 | CG122: 4 | CH122: 4 | CI122: 4 | CJ122: 760 | CK122: 292.8 | CL122: 526.4 | CM122: 7.6 | CN122: 6.32 | CO122: 6.96 | CP122: 0 | CQ122: 0
A123: ="6/10" -> 6/10 | B123: Компот из сухофруктов | C123: 180 | D123: 0.9 | E123: 0.0 | F123: 0.1 | G123: 0.1 | H123: 20.9 | I123: 79 | J123: 0.0 | K123: 0.0 | L123: 0.0 | M123: 0.0 | N123: 17.3 | O123: 0.5 | P123: 3.1 | Q123: 0.0 | R123: 0.0 | S123: 0.3 | T123: 0.7 | U123: 3.1 | V123: 306.2 | W123: 28.2 | X123: 18.0 | Y123: 24.4 | Z123: 0.6 | AA123: 0.0 | AB123: 567.0 | AC123: 104.9 | AD123: 1.0 | AE123: 0.0 | AF123: 0.1 | AG123: 0.5 | AH123: 0.7 | AI123: 0.4 | AJ123: 0 | AK123: 0.01 | AL123: 0.01 | AM123: 0.01 | AN123: 0.02 | AO123: 0 | AP123: 0.01 | AQ123: 0 | AR123: 0.01 | AS123: 0.01 | AT123: 0.01 | AU123: 0.05 | AV123: 0 | AW123: 0.01 | AX123: 0.02 | AY123: 0 | AZ123: 0.01 | BA123: 0.01 | BB123: 0.01 | BC123: 0 | BD123: 0 | BE123: 0 | BF123: 0 | BG123: 0 | BH123: 0 | BI123: 0 | BJ123: 0 | BK123: 0 | BL123: 0 | BM123: 0 | BN123: 0 | BO123: 0 | BP123: 0 | BQ123: 0 | BR123: 0 | BS123: 0.01 | BT123: 0 | BU123: 0 | BV123: 0.01 | BW123: 0 | BX123: 0 | BY123: 0 | BZ123: 0 | CA123: 0 | CB123: 192.61 | CE123: 94.5 | CG123: 3.95 | CH123: 3.95 | CI123: 3.95 | CJ123: 454.5 | CK123: 172.98 | CL123: 313.74 | CM123: 41.94 | CN123: 24.93 | CO123: 33.44 | CP123: 9 | CQ123: 0
A124: ="4/2" -> 4/2 | B124: Борщ с картофелем на говяжьем бульоне | C124: 180 | D124: 2.1 | E124: 5.9 | F124: 6.2 | G124: 2.3 | H124: 9.5 | I124: 99 | J124: 1.6 | K124: 1.4 | L124: 0.0 | M124: 0.0 | N124: 6.0 | O124: 2.0 | P124: 1.5 | Q124: 0.0 | R124: 0.0 | S124: 0.2 | T124: 1.8 | U124: 436.1 | V124: 223.5 | W124: 24.3 | X124: 14.8 | Y124: 31.0 | Z124: 0.7 | AA124: 0.0 | AB124: 729.2 | AC124: 151.9 | AD124: 1.1 | AE124: 0.0 | AF124: 0.1 | AG124: 0.4 | AH124: 0.7 | AI124: 5.7 | AJ124: 0 | AK124: 28.5 | AL124: 30.8 | AM124: 36.55 | AN124: 43.86 | AO124: 10.36 | AP124: 28.02 | AQ124: 8.12 | AR124: 27.41 | AS124: 31.54 | AT124: 55.71 | AU124: 130.69 | AV124: 10.44 | AW124: 24.17 | AX124: 157.1 | AY124: 0 | AZ124: 26.8 | BA124: 30.93 | BB124: 25.59 | BC124: 9.34 | BD124: 0 | BE124: 0 | BF124: 0 | BG124: 0 | BH124: 0 | BI124: 0 | BJ124: 0 | BK124: 0.13 | BL124: 0 | BM124: 0.08 | BN124: 0.01 | BO124: 0.01 | BP124: 0 | BQ124: 0 | BR124: 0 | BS124: 0.47 | BT124: 0 | BU124: 0 | BV124: 1.29 | BW124: 0 | BX124: 0 | BY124: 0 | BZ124: 0 | CA124: 0 | CB124: 207.15 | CE124: 121.54 | CG124: 47.66 | CH124: 25.2 | CI124: 36.43 | CJ124: 545.04 | CK124: 170.64 | CL124: 357.84 | CM124: 6.8 | CN124: 3.82 | CO124: 5.31 | CP124: 1.8 | CQ124: 1.08
A125: ="17/4" -> 17/4 | B125: Каша молочная ассорти (рис, пшено) с маслом сливочным | C125: 150 | D125: 4.4 | E125: 2.3 | F125: 4.6 | G125: 0.6 | H125: 23.7 | I125: 153 | J125: 3.1 | K125: 0.1 | L125: 0.0 | M125: 0.0 | N125: 7.1 | O125: 15.8 | P125: 0.8 | Q125: 0.0 | R125: 0.0 | S125: 0.1 | T125: 1.2 | U125: 186.8 | V125: 135.8 | W125: 87.1 | X125: 24.6 | Y125: 104.7 | Z125: 0.5 | AA125: 18.2 | AB125: 17.4 | AC125: 34.1 | AD125: 0.1 | AE125: 0.1 | AF125: 0.1 | AG125: 0.4 | AH125: 1.7 | AI125: 0.4 | AJ125: 0 | AK125: 108.85 | AL125: 93.94 | AM125: 273.72 | AN125: 67.66 | AO125: 57.17 | AP125: 80.62 | AQ125: 36.2 | AR125: 118.3 | AS125: 186.51 | AT125: 111.78 | AU125: 146.18 | AV125: 54.04 | AW125: 74.87 | AX125: 429.27 | AY125: 0 | AZ125: 145.09 | BA125: 130.57 | BB125: 87.07 | BC125: 38.95 | BD125: 0.09 | BE125: 0.04 | BF125: 0.02 | BG125: 0.05 | BH125: 0.06 | BI125: 0.26 | BJ125: 0 | BK125: 0.78 | BL125: 0 | BM125: 0.24 | BN125: 0 | BO125: 0 | BP125: 0 | BQ125: 0.05 | BR125: 0.08 | BS125: 0.69 | BT125: 0 | BU125: 0 | BV125: 0.32 | BW125: 0.01 | BX125: 0 | BY125: 0 | BZ125: 0 | CA125: 0 | CB125: 125.1 | CE125: 21.08 | CG125: 24.06 | CH125: 11.09 | CI125: 17.57 | CJ125: 1506.05 | CK125: 674.52 | CL125: 1090.29 | CM125: 25.43 | CN125: 11.48 | CO125: 18.46 | CP125: 3.75 | CQ125: 0.38
A126: ="7" -> 7 | B126: Биточки (котлеты) из мяса бройлер-цыплят | C126: 70 | D126: 10.6 | E126: 9.0 | F126: 10.0 | G126: 2.8 | H126: 9.2 | I126: 168 | J126: 2.7 | K126: 2.3 | L126: 0.0 | M126: 0.0 | N126: 0.4 | O126: 8.2 | P126: 0.7 | Q126: 0.0 | R126: 0.0 | S126: 0.1 | T126: 1.2 | U126: 178.4 | V126: 105.1 | W126: 11.6 | X126: 14.9 | Y126: 94.1 | Z126: 1.3 | AA126: 29.0 | AB126: 5.5 | AC126: 37.4 | AD126: 2.0 | AE126: 0.1 | AF126: 0.1 | AG126: 3.9 | AH126: 7.0 | AI126: 0.2 | AJ126: 0 | AK126: 470.62 | AL126: 381.67 | AM126: 757.09 | AN126: 798.65 | AO126: 244.02 | AP126: 445.22 | AQ126: 153.44 | AR126: 410.38 | AS126: 595.33 | AT126: 641.13 | AU126: 834.22 | AV126: 255.76 | AW126: 705.51 | AX126: 1515.68 | AY126: 74.31 | AZ126: 511.58 | BA126: 457.51 | BB126: 338.52 | BC126: 128.53 | BD126: 0 | BE126: 0 | BF126: 0 | BG126: 0 | BH126: 0 | BI126: 0 | BJ126: 0 | BK126: 0.17 | BL126: 0 | BM126: 0.11 | BN126: 0.01 | BO126: 0.02 | BP126: 0 | BQ126: 0 | BR126: 0 | BS126: 0.63 | BT126: 0 | BU126: 0 | BV126: 1.58 | BW126: 0 | BX126: 0 | BY126: 0 | BZ126: 0 | CA126: 0 | CB126: 54.38 | CE126: 29.93 | CG126: 17.73 | CH126: 8.4 | CI126: 13.06 | CJ126: 1892.29 | CK126: 1155.41 | CL126: 1523.85 | CM126: 12.53 | CN126: 9.63 | CO126: 11.08 | CP126: 0 | CQ126: 0.35
B127: Итого за 'Обед' | C127: =SUM(C121:C126) -> 630 | D127: =SUM(D121:D126) -> 21.0 | E127: 17.1 | F127: 21.3 | G127: 6.2 | H127: 83.2 | I127: 592 | J127: 7.6 | K127: 3.8 | L127: 0.0 | M127: 0.0 | N127: 31.3 | O127: 43.4 | P127: 8.5 | Q127: 0.0 | R127: 0.0 | S127: 0.9 | T127: 6.1 | U127: 987.3 | V127: 844.1 | W127: 161.7 | X127: 86.3 | Y127: 301.6 | Z127: 4.3 | AA127: 47.2 | AB127: 1320.7 | AC127: 328.7 | AD127: 4.7 | AE127: 0.2 | AF127: 0.3 | AG127: 5.4 | AH127: 10.7 | AI127: 6.7 | AJ127: 0 | AK127: 768.43 | AL127: 647.28 | AM127: 1297.27 | AN127: 1010.84 | AO127: 359.45 | AP127: 653.28 | AQ127: 236.91 | AR127: 739.79 | AS127: 947.39 | AT127: 958.56 | AU127: 1302.02 | AV127: 384.58 | AW127: 945.58 | AX127: 2971.37 | AY127: 74.31 | AZ127: 972.14 | BA127: 763.22 | BB127: 542.94 | BC127: 245.75 | BD127: 0.09 | BE127: 0.04 | BF127: 0.02 | BG127: 0.05 | BH127: 0.06 | BI127: 0.26 | BJ127: 0 | BK127: 1.14 | BL127: 0 | BM127: 0.43 | BN127: 0.02 | BO127: 0.03 | BP127: 0 | BQ127: 0.05 | BR127: 0.08 | BS127: 1.85 | BT127: 0 | BU127: 0 | BV127: 3.39 | BW127: 0.03 | BX127: 0 | BY127: 0 | BZ127: 0 | CA127: 0 | CB127: 601.16 | CD127: =$I$127/#REF!*100 ->  | CE127: 267.3 | CG127: 97.4 | CH127: 52.64 | CI127: 75.02 | CJ127: 5537.87 | CK127: 2612.75 | CL127: 4075.31 | CM127: 97.34 | CN127: 59.22 | CO127: 78.28 | CP127: 14.55 | CQ127: 1.81
B128: Уплотненный полдник
A129: ="-" -> - | B129: Хлеб ржаной | C129: 20 | D129: 1.2 | E129: 0.0 | F129: 0.2 | G129: 0.2 | H129: 8.3 | I129: 38 | J129: 0.0 | K129: 0.0 | L129: 0.0 | M129: 0.0 | N129: 0.2 | O129: 6.4 | P129: 1.7 | Q129: 0.0 | R129: 0.0 | S129: 0.2 | T129: 0.5 | U129: 122.0 | V129: 49.0 | W129: 7.0 | X129: 9.4 | Y129: 31.6 | Z129: 0.8 | AA129: 0.0 | AB129: 1.0 | AC129: 0.2 | AD129: 0.3 | AE129: 0.0 | AF129: 0.0 | AG129: 0.1 | AH129: 0.4 | AI129: 0.0 | AJ129: 0 | AK129: 64.4 | AL129: 49.6 | AM129: 85.4 | AN129: 44.6 | AO129: 18.6 | AP129: 39.6 | AQ129: 16 | AR129: 74.2 | AS129: 59.4 | AT129: 58.2 | AU129: 92.8 | AV129: 24.8 | AW129: 62 | AX129: 311.8 | AY129: 0 | AZ129: 105.2 | BA129: 58.2 | BB129: 36 | BC129: 26 | BD129: 0 | BE129: 0 | BF129: 0 | BG129: 0 | BH129: 0 | BI129: 0 | BJ129: 0 | BK129: 0.03 | BL129: 0 | BM129: 0 | BN129: 0 | BO129: 0 | BP129: 0 | BQ129: 0 | BR129: 0 | BS129: 0.02 | BT129: 0 | BU129: 0 | BV129: 0.1 | BW129: 0.02 | BX129: 0 | BY129: 0 | BZ129: 0 | CA129: 0 | CB129: 9.4 | CE129: 0.17 | CG129: 3 | CH129: 3 | CI129: 3 | CJ129: 570 | CK129: 219.6 | CL129: 394.8 | CM129: 5.7 | CN129: 4.74 | CO129: 5.22 | CP129: 0 | CQ129: 0
A130: ="27/10" -> 27/10 | B130: Чай полусладкий | C130: 180 | D130: 0.2 | E130: 0.0 | F130: 0.0 | G130: 0.0 | H130: 4.5 | I130: 18 | J130: 0.0 | K130: 0.0 | L130: 0.0 | M130: 0.0 | N130: 4.4 | O130: 0.0 | P130: 0.1 | Q130: 0.0 | R130: 0.0 | S130: 0.0 | T130: 0.1 | U130: 0.0 | V130: 0.1 | W130: 0.1 | X130: 0.0 | Y130: 0.0 | Z130: 0.0 | AA130: 0.0 | AB130: 0.0 | AC130: 0.0 | AD130: 0.0 | AE130: 0.0 | AF130: 0.0 | AG130: 0.0 | AH130: 0.0 | AI130: 0.0 | AJ130: 0 | AK130: 0 | AL130: 0 | AM130: 0 | AN130: 0 | AO130: 0 | AP130: 0 | AQ130: 0 | AR130: 0 | AS130: 0 | AT130: 0 | AU130: 0 | AV130: 0 | AW130: 0 | AX130: 0 | AY130: 0 | AZ130: 0 | BA130: 0 | BB130: 0 | BC130: 0 | BD130: 0 | BE130: 0 | BF130: 0 | BG130: 0 | BH130: 0 | BI130: 0 | BJ130: 0 | BK130: 0 | BL130: 0 | BM130: 0 | BN130: 0 | BO130: 0 | BP130: 0 | BQ130: 0 | BR130: 0 | BS130: 0 | BT130: 0 | BU130: 0 | BV130: 0 | BW130: 0 | BX130: 0 | BY130: 0 | BZ130: 0 | CA130: 0 | CB130: 180.08 | CE130: 0 | CG130: 3.69 | CH130: 3.69 | CI130: 3.69 | CJ130: 398.25 | CK130: 156.6 | CL130: 277.43 | CM130: 39.61 | CN130: 23.41 | CO130: 31.51 | CP130: 4.5 | CQ130: 0
A131: ="10/150" -> 10/150 | B131: Сырники из творога со сметаной | C131: 120 | D131: 25.0 | E131: 23.2 | F131: 6.6 | G131: 4.8 | H131: 19.7 | I131: 240 | J131: 1.6 | K131: 3.1 | L131: 0.0 | M131: 0.0 | N131: 8.3 | O131: 10.8 | P131: 0.6 | Q131: 0.0 | R131: 0.0 | S131: 1.3 | T131: 1.7 | U131: 151.1 | V131: 143.4 | W131: 126.6 | X131: 26.7 | Y131: 196.4 | Z131: 0.6 | AA131: 16.0 | AB131: 4.3 | AC131: 17.6 | AD131: 2.4 | AE131: 0.1 | AF131: 0.3 | AG131: 0.6 | AH131: 5.0 | AI131: 0.3 | AJ131: 0 | AK131: 1126.11 | AL131: 1121.85 | AM131: 2076.03 | AN131: 1568.78 | AO131: 536.23 | AP131: 898.25 | AQ131: 209.94 | AR131: 1063.71 | AS131: 536.48 | AT131: 930.79 | AU131: 1136.31 | AV131: 621.98 | AW131: 341.59 | AX131: 3958.22 | AY131: 0.64 | AZ131: 2276.17 | BA131: 963.44 | BB131: 1015.79 | BC131: 147.88 | BD131: 0 | BE131: 0 | BF131: 0 | BG131: 0 | BH131: 0 | BI131: 0 | BJ131: 0 | BK131: 0.3 | BL131: 0 | BM131: 0.19 | BN131: 0.01 | BO131: 0.03 | BP131: 0 | BQ131: 0 | BR131: 0 | BS131: 1.1 | BT131: 0 | BU131: 0 | BV131: 2.77 | BW131: 0 | BX131: 0 | BY131: 0 | BZ131: 0 | CA131: 0 | CB131: 87.07 | CE131: 16.68 | CG131: 19.79 | CH131: 10.89 | CI131: 15.34 | CJ131: 1095.12 | CK131: 767.52 | CL131: 931.32 | CM131: 25.66 | CN131: 18.72 | CO131: 22.44 | CP131: 4.8 | CQ131: 0.29
A132: ="-" -> - | C132: 10 | D132: 0.2 | E132: 0.0 | F132: 1.3 | G132: 0.0 | H132: 0.3 | I132: 14 | J132: 0.9 | K132: 0.0 | L132: 0.0 | M132: 0.0 | N132: 0.3 | O132: 0.0 | P132: 0.0 | Q132: 0.0 | R132: 0.0 | S132: 0.1 | T132: 0.1 | U132: 4.0 | V132: 10.2 | W132: 7.7 | X132: 0.8 | Y132: 5.3 | Z132: 0.0 | AA132: 6.0 | AB132: 3.2 | AC132: 10.7 | AD132: 0.0 | AE132: 0.0 | AF132: 0.0 | AG132: 0.0 | AH132: 0.1 | AI132: 0.0 | AJ132: 0 | AK132: 97.29 | AL132: 73.51 | AM132: 155.76 | AN132: 157.17 | AO132: 48.41 | AP132: 80.75 | AQ132: 21.43 | AR132: 75.48 | AS132: 108.38 | AT132: 101.8 | AU132: 178.98 | AV132: 67.49 | AW132: 92.68 | AX132: 311.14 | AY132: 0 | AZ132: 80.75 | BA132: 82.91 | BB132: 65.71 | BC132: 27.82 | BD132: 0 | BE132: 0 | BF132: 0 | BG132: 0 | BH132: 0 | BI132: 0 | BJ132: 0 | BK132: 0 | BL132: 0 | BM132: 0 | BN132: 0 | BO132: 0 | BP132: 0 | BQ132: 0 | BR132: 0 | BS132: 0 | BT132: 0 | BU132: 0 | BV132: 0 | BW132: 0.01 | BX132: 0 | BY132: 0 | BZ132: 0 | CA132: 0 | CB132: 7.75 | CE132: 6.53 | CG132: 12.6 | CH132: 12.6 | CI132: 12.6 | CJ132: 360 | CK132: 147.6 | CL132: 253.8 | CM132: 0.54 | CN132: 0.54 | CO132: 0.54 | CP132: 0 | CQ132: 0
B133: Итого за 'Уплотненный полдник' | C133: =SUM(C129:C132) -> 330 | D133: =SUM(D129:D132) -> 26.6 | E133: 23.2 | F133: 8.2 | G133: 5.0 | H133: 32.9 | I133: 311 | J133: 2.6 | K133: 3.1 | L133: 0.0 | M133: 0.0 | N133: 13.3 | O133: 17.3 | P133: 2.3 | Q133: 0.0 | R133: 0.0 | S133: 1.6 | T133: 2.3 | U133: 277.2 | V133: 202.7 | W133: 141.5 | X133: 36.9 | Y133: 233.3 | Z133: 1.4 | AA133: 22.0 | AB133: 8.5 | AC133: 28.5 | AD133: 2.7 | AE133: 0.1 | AF133: 0.3 | AG133: 0.7 | AH133: 5.5 | AI133: 0.3 | AJ133: 0 | AK133: 1287.8 | AL133: 1244.96 | AM133: 2317.19 | AN133: 1770.54 | AO133: 603.24 | AP133: 1018.6 | AQ133: 247.37 | AR133: 1213.39 | AS133: 704.27 | AT133: 1090.79 | AU133: 1408.08 | AV133: 714.28 | AW133: 496.27 | AX133: 4581.16 | AY133: 0.64 | AZ133: 2462.12 | BA133: 1104.54 | BB133: 1117.49 | BC133: 201.7 | BD133: 0 | BE133: 0 | BF133: 0 | BG133: 0 | BH133: 0 | BI133: 0 | BJ133: 0 | BK133: 0.33 | BL133: 0 | BM133: 0.19 | BN133: 0.02 | BO133: 0.03 | BP133: 0 | BQ133: 0 | BR133: 0 | BS133: 1.12 | BT133: 0 | BU133: 0 | BV133: 2.86 | BW133: 0.03 | BX133: 0 | BY133: 0 | BZ133: 0 | CA133: 0 | CB133: 284.31 | CD133: =$I$133/#REF!*100 ->  | CE133: 23.38 | CG133: 39.07 | CH133: 30.18 | CI133: 34.63 | CJ133: 2423.37 | CK133: 1291.32 | CL133: 1857.34 | CM133: 71.51 | CN133: 47.41 | CO133: 59.71 | CP133: 9.3 | CQ133: 0.29
B134: Итого за день | C134: =C116+C119+C127+C133 -> 1475 | D134: =D116+D119+D127+D133 -> 58.1 | E134: 42.6 | F134: 40.4 | G134: 13.2 | H134: 185.0 | I134: 1307 | J134: 16.1 | K134: 7.1 | L134: 0.0 | M134: 0.0 | N134: 73.0 | O134: 95.1 | P134: 16.9 | Q134: 0.0 | R134: 0.0 | S134: 3.4 | T134: 11.5 | U134: 1665.7 | V134: 1619.1 | W134: 436.2 | X134: 202.9 | Y134: 774.2 | Z134: 7.7 | AA134: 108.4 | AB134: 1480.6 | AC134: 435.4 | AD134: 9.0 | AE134: 0.5 | AF134: 0.8 | AG134: 8.1 | AH134: 20.5 | AI134: 18.2 | AJ134: 0 | AK134: 2352.59 | AL134: 2187.16 | AM134: 3990.74 | AN134: 2977.65 | AO134: 1059.7 | AP134: 1841.27 | AQ134: 559.57 | AR134: 2279.76 | AS134: 1885.39 | AT134: 2344.77 | AU134: 3044.15 | AV134: 1237.48 | AW134: 1682.11 | AX134: 9162.99 | AY134: 74.95 | AZ134: 4158.12 | BA134: 2118.43 | BB134: 1843.51 | BC134: 575.43 | BD134: 0.32 | BE134: 0.14 | BF134: 0.08 | BG134: 0.18 | BH134: 0.21 | BI134: 0.94 | BJ134: 0 | BK134: 3.45 | BL134: 0 | BM134: 1.25 | BN134: 0.04 | BO134: 0.06 | BP134: =BP116+BP119+BP127+BP133 -> 0 | BQ134: 0.18 | BR134: 0.28 | BS134: 4.86 | BT134: 0 | BU134: 0 | BV134: 6.6 | BW134: 0.07 | BX134: 0 | BY134: 0 | BZ134: 0 | CA134: 0 | CB134: 1328.3 | CC134: 0 | CE134: 355.11 | CF134: 0 | CG134: 178.76 | CH134: 102.11 | CI134: 140.44 | CJ134: 11323.54 | CK134: 5357.88 | CL134: 8340.7 | CM134: 259.4 | CN134: 159.37 | CO134: 209.63 | CP134: 36.63 | CQ134: 2.6
B136: 6 ДЕНЬ
B137: Завтрак
A138: ="-" -> - | B138: Хлеб пшеничный | C138: 20 | D138: 1.2 | E138: 0.0 | F138: 0.1 | G138: 0.1 | H138: 7.4 | I138: 36 | J138: 0.0 | K138: 0.0 | L138: 0.0 | M138: 0.0 | N138: 0.2 | O138: 7.1 | P138: 0.0 | Q138: 0.0 | R138: 0.0 | S138: 0.0 | T138: 0.4 | U138: 0.0 | V138: 0.0 | W138: 0.0 | X138: 0.0 | Y138: 0.0 | Z138: 0.0 | AA138: 0.0 | AB138: 0.0 | AC138: 0.0 | AD138: 0.0 | AE138: 0.0 | AF138: 0.0 | AG138: 0.0 | AH138: 0.0 | AI138: 0.0 | AJ138: 0 | AK138: 63.86 | AL138: 66.47 | AM138: 101.79 | AN138: 33.76 | AO138: 20.01 | AP138: 40.02 | AQ138: 15.14 | AR138: 72.38 | AS138: 44.89 | AT138: 62.64 | AU138: 51.68 | AV138: 27.14 | AW138: 48.02 | AX138: 401.59 | AY138: 0 | AZ138: 130.85 | BA138: 56.9 | BB138: 37.76 | BC138: 29.93 | BD138: 0 | BE138: 0 | BF138: 0 | BG138: 0 | BH138: 0 | BI138: 0 | BJ138: 0 | BK138: 0.02 | BL138: 0 | BM138: 0 | BN138: 0 | BO138: 0 | BP138: 0 | BQ138: 0 | BR138: 0 | BS138: 0.01 | BT138: 0 | BU138: 0 | BV138: 0.06 | BW138: 0 | BX138: 0 | BY138: 0 | BZ138: 0 | CA138: 0 | CB138: 7.82 | CE138: 0 | CG138: 0 | CH138: 0 | CI138: 0 | CJ138: 570 | CK138: 219.6 | CL138: 394.8 | CM138: 4.56 | CN138: 4.56 | CO138: 4.56 | CP138: 0 | CQ138: 0
A139: ="1/6" -> 1/6 | B139: Яйцо отварное | C139: 60 | D139: 7.6 | E139: 7.6 | F139: 6.9 | G139: 0.0 | H139: 0.4 | I139: 94 | J139: 1.8 | K139: 0.0 | L139: 0.0 | M139: 0.0 | N139: 0.4 | O139: 0.0 | P139: 0.0 | Q139: 0.0 | R139: 0.0 | S139: 0.0 | T139: 0.6 | U139: 80.4 | V139: 84.0 | W139: 33.0 | X139: 7.2 | Y139: 115.2 | Z139: 1.5 | AA139: 150.0 | AB139: 36.0 | AC139: 156.0 | AD139: 0.4 | AE139: 0.0 | AF139: 0.3 | AG139: 0.1 | AH139: 2.2 | AI139: 0.0 | AJ139: 0 | AK139: 463.2 | AL139: 358.2 | AM139: 648.6 | AN139: 541.8 | AO139: 254.4 | AP139: 366 | AQ139: 122.4 | AR139: 391.2 | AS139: 426 | AT139: 472.2 | AU139: 737.4 | AV139: 204 | AW139: 249.6 | AX139: 1063.8 | AY139: 8.4 | AZ139: 237.6 | BA139: 556.8 | BB139: 285.6 | BC139: 175.8 | BD139: 0 | BE139: 0 | BF139: 0 | BG139: 0 | BH139: 0 | BI139: 0 | BJ139: 0 | BK139: 0 | BL139: 0 | BM139: 0 | BN139: 0 | BO139: 0 | BP139: 0 | BQ139: 0 | BR139: 0 | BS139: 0 | BT139: 0 | BU139: 0 | BV139: 0 | BW139: 0 | BX139: 0 | BY139: 0 | BZ139: 0 | CA139: 0 | CB139: 44.46 | CE139: 156 | CG139: 13.56 | CH139: 11.4 | CI139: 12.48 | CJ139: 0 | CK139: 0 | CL139: 0 | CM139: 6 | CN139: 4.2 | CO139: 5.1 | CP139: 0 | CQ139: 0
A140: ="31/10" -> 31/10 | B140: Чай с молоком (вариант 3) | C140: 180 | D140: 1.5 | E140: 1.3 | F140: 1.2 | G140: 0.0 | H140: 6.7 | I140: 41 | J140: 0.8 | K140: 0.0 | L140: 0.0 | M140: 0.0 | N140: 6.6 | O140: 0.0 | P140: 0.1 | Q140: 0.0 | R140: 0.0 | S140: 0.1 | T140: 0.4 | U140: 22.3 | V140: 65.2 | W140: 52.5 | X140: 6.0 | Y140: 37.7 | Z140: 0.1 | AA140: 9.0 | AB140: 4.1 | AC140: 9.9 | AD140: 0.0 | AE140: 0.0 | AF140: 0.1 | AG140: 0.0 | AH140: 0.4 | AI140: 0.2 | AJ140: 0 | AK140: 0 | AL140: 0 | AM140: 0 | AN140: 0 | AO140: 0 | AP140: 0 | AQ140: 0 | AR140: 0 | AS140: 0 | AT140: 0 | AU140: 0 | AV140: 0 | AW140: 0 | AX140: 0 | AY140: 0 | AZ140: 0 | BA140: 0 | BB140: 0 | BC140: 0 | BD140: 0 | BE140: 0 | BF140: 0 | BG140: 0 | BH140: 0 | BI140: 0 | BJ140: 0 | BK140: 0 | BL140: 0 | BM140: 0 | BN140: 0 | BO140: 0 | BP140: 0 | BQ140: 0 | BR140: 0 | BS140: 0 | BT140: 0 | BU140: 0 | BV140: 0 | BW140: 0 | BX140: 0 | BY140: 0 | BZ140: 0 | CA140: 0 | CB140: 175.13 | CE140: 9.68 | CG140: 6.84 | CH140: 3.69 | CI140: 5.26 | CJ140: 567 | CK140: 214.2 | CL140: 390.6 | CM140: 35.65 | CN140: 19 | CO140: 27.32 | CP140: 4.5 | CQ140: 0
A141: ="6/4" -> 6/4 | B141: Каша овсяная молочная с маслом сливочным | C141: 180 | D141: 6.9 | E141: 2.6 | F141: 7.6 | G141: 2.2 | H141: 30.8 | I141: 216 | J141: 4.2 | K141: 0.1 | L141: 0.0 | M141: 0.0 | N141: 8.2 | O141: 20.6 | P141: 2.1 | Q141: 0.0 | R141: 0.0 | S141: 0.1 | T141: 1.8 | U141: 224.8 | V141: 249.2 | W141: 125.7 | X141: 56.2 | Y141: 186.7 | Z141: 1.4 | AA141: 36.0 | AB141: 20.3 | AC141: 40.1 | AD141: 0.6 | AE141: 0.2 | AF141: 0.2 | AG141: 0.4 | AH141: 2.4 | AI141: 0.5 | AJ141: 0 | AK141: 199.42 | AL141: 142.22 | AM141: 227.38 | AN141: 150.16 | AO141: 43.79 | AP141: 136.14 | AQ141: 70.69 | AR141: 191.31 | AS141: 173.05 | AT141: 260.81 | AU141: 325.68 | AV141: 87.63 | AW141: 360.56 | AX141: 693.52 | AY141: 0 | AZ141: 228.26 | BA141: 183.72 | BB141: 158.14 | BC141: 99.93 | BD141: 0.12 | BE141: 0.05 | BF141: 0.03 | BG141: 0.07 | BH141: 0.08 | BI141: 0.36 | BJ141: 0 | BK141: 1.44 | BL141: 0 | BM141: 0.32 | BN141: 0 | BO141: 0 | BP141: 0 | BQ141: 0.07 | BR141: 0.1 | BS141: 1.55 | BT141: 0 | BU141: 0 | BV141: 0.84 | BW141: 0.02 | BX141: 0 | BY141: 0 | BZ141: 0 | CA141: 0 | CB141: 146.75 | CE141: 39.38 | CG141: 31.89 | CH141: 12.86 | CI141: 22.37 | CJ141: 1980.6 | CK141: 899.57 | CL141: 1440.09 | CM141: 32.08 | CN141: 15.9 | CO141: 23.99 | CP141: 3.6 | CQ141: 0.45
B142: Итого за 'Завтрак' | C142: =SUM(C138:C141) -> 440 | D142: =SUM(D138:D141) -> 17.2 | E142: 11.5 | F142: 15.8 | G142: 2.4 | H142: 45.3 | I142: 388 | J142: 6.7 | K142: 0.1 | L142: 0.0 | M142: 0.0 | N142: 15.4 | O142: 27.7 | P142: 2.2 | Q142: 0.0 | R142: 0.0 | S142: 0.1 | T142: 3.1 | U142: 327.6 | V142: 398.4 | W142: 211.2 | X142: 69.4 | Y142: 339.6 | Z142: 2.9 | AA142: 195.0 | AB142: 60.3 | AC142: 206.0 | AD142: 1.0 | AE142: 0.2 | AF142: 0.5 | AG142: 0.6 | AH142: 4.9 | AI142: 0.7 | AJ142: 0 | AK142: 726.48 | AL142: 566.89 | AM142: 977.77 | AN142: 725.72 | AO142: 318.2 | AP142: 542.16 | AQ142: 208.23 | AR142: 654.89 | AS142: 643.94 | AT142: 795.65 | AU142: 1114.76 | AV142: 318.77 | AW142: 658.19 | AX142: 2158.91 | AY142: 8.4 | AZ142: 596.71 | BA142: 797.42 | BB142: 481.5 | BC142: 305.66 | BD142: 0.12 | BE142: 0.05 | BF142: 0.03 | BG142: 0.07 | BH142: 0.08 | BI142: 0.36 | BJ142: 0 | BK142: 1.45 | BL142: 0 | BM142: 0.32 | BN142: 0 | BO142: 0 | BP142: 0 | BQ142: 0.07 | BR142: 0.1 | BS142: 1.56 | BT142: 0 | BU142: 0 | BV142: 0.9 | BW142: 0.02 | BX142: 0 | BY142: 0 | BZ142: 0 | CA142: 0 | CB142: 374.16 | CD142: =$I$142/#REF!*100 ->  | CE142: 205.05 | CG142: 52.29 | CH142: 27.94 | CI142: 40.12 | CJ142: 3117.6 | CK142: 1333.37 | CL142: 2225.49 | CM142: 78.29 | CN142: 43.66 | CO142: 60.98 | CP142: 8.1 | CQ142: 0.45
B143: Второй завтрак
A144: ="1" -> 1 | B144: Кисель из концентрата | C144: 100 | D144: 0.5 | E144: 0.0 | F144: 0.1 | G144: 0.0 | H144: 7.1 | I144: 32 | J144: 0.0 | K144: 0.0 | L144: 0.0 | M144: 0.0 | N144: 0.0 | O144: 7.1 | P144: 0.0 | Q144: 0.0 | R144: 0.0 | S144: 0.0 | T144: 0.0 | U144: 0.0 | V144: 0.0 | W144: 0.0 | X144: 0.0 | Y144: 0.0 | Z144: 0.0 | AA144: 0.0 | AB144: 0.0 | AC144: 0.0 | AD144: 0.0 | AE144: 0.0 | AF144: 0.0 | AG144: 0.0 | AH144: 0.0 | AI144: 0.0 | AJ144: 0 | AK144: 0 | AL144: 0 | AM144: 0 | AN144: 0 | AO144: 0 | AP144: 0 | AQ144: 0 | AR144: 0 | AS144: 0 | AT144: 0 | AU144: 0 | AV144: 0 | AW144: 0 | AX144: 0 | AY144: 0 | AZ144: 0 | BA144: 0 | BB144: 0 | BC144: 0 | BD144: 0 | BE144: 0 | BF144: 0 | BG144: 0 | BH144: 0 | BI144: 0 | BJ144: 0 | BK144: 0 | BL144: 0 | BM144: 0 | BN144: 0 | BO144: 0 | BP144: 0 | BQ144: 0 | BR144: 0 | BS144: 0 | BT144: 0 | BU144: 0 | BV144: 0 | BW144: 0 | BX144: 0 | BY144: 0 | BZ144: 0 | CA144: 0 | CB144: 95.11 | CE144: 0 | CG144: 0 | CH144: 0 | CI144: 0 | CJ144: 0 | CK144: 0 | CL144: 0 | CM144: 0 | CN144: 0 | CO144: 0 | CP144: 0 | CQ144: 0
A145: ="-" -> - | B145: Печенье | C145: 20 | D145: 0.4 | E145: 0.0 | F145: 2.6 | G145: 0.0 | H145: 11.5 | I145: 70 | J145: 0.4 | K145: 0.0 | L145: 0.0 | M145: 0.0 | N145: 5.0 | O145: 6.0 | P145: 0.5 | Q145: 0.0 | R145: 0.0 | S145: 0.1 | T145: 0.2 | U145: 66.0 | V145: 22.0 | W145: 5.8 | X145: 4.0 | Y145: 18.0 | Z145: 0.4 | AA145: 2.0 | AB145: 1.6 | AC145: 2.2 | AD145: 0.7 | AE145: 0.0 | AF145: 0.0 | AG145: 0.1 | AH145: 0.4 | AI145: 0.0 | AJ145: 0 | AK145: 0 | AL145: 0 | AM145: 0 | AN145: 0 | AO145: 0 | AP145: 0 | AQ145: 0 | AR145: 0 | AS145: 0 | AT145: 0 | AU145: 0 | AV145: 0 | AW145: 0 | AX145: 0 | AY145: 0 | AZ145: 0 | BA145: 0 | BB145: 0 | BC145: 0 | BD145: 0 | BE145: 0 | BF145: 0 | BG145: 0 | BH145: 0 | BI145: 0 | BJ145: 0 | BK145: 0 | BL145: 0 | BM145: 0 | BN145: 0 | BO145: 0 | BP145: 0 | BQ145: 0 | BR145: 0 | BS145: 0 | BT145: 0 | BU145: 0 | BV145: 0 | BW145: 0 | BX145: 0 | BY145: 0 | BZ145: 0 | CA145: 0 | CB145: 0.9 | CE145: 2.27 | CG145: 0 | CH145: 0 | CI145: 0 | CJ145: 0 | CK145: 0 | CL145: 0 | CM145: 0 | CN145: 0 | CO145: 0 | CP145: 0 | CQ145: 0
B146: Итого за 'Второй завтрак' | C146: =SUM(C144:C145) -> 120 | D146: =SUM(D144:D145) -> 0.9 | E146: 0.0 | F146: 2.7 | G146: 0.0 | H146: 18.5 | I146: 102 | J146: 0.4 | K146: 0.0 | L146: 0.0 | M146: 0.0 | N146: 5.0 | O146: 13.1 | P146: 0.5 | Q146: 0.0 | R146: 0.0 | S146: 0.1 | T146: 0.2 | U146: 66.0 | V146: 22.0 | W146: 5.8 | X146: 4.0 | Y146: 18.0 | Z146: 0.4 | AA146: 2.0 | AB146: 1.6 | AC146: 2.2 | AD146: 0.7 | AE146: 0.0 | AF146: 0.0 | AG146: 0.1 | AH146: 0.4 | AI146: 0.0 | AJ146: 0 | AK146: 0 | AL146: 0 | AM146: 0 | AN146: 0 | AO146: 0 | AP146: 0 | AQ146: 0 | AR146: 0 | AS146: 0 | AT146: 0 | AU146: 0 | AV146: 0 | AW146: 0 | AX146: 0 | AY146: 0 | AZ146: 0 | BA146: 0 | BB146: 0 | BC146: 0 | BD146: 0 | BE146: 0 | BF146: 0 | BG146: 0 | BH146: 0 | BI146: 0 | BJ146: 0 | BK146: 0 | BL146: 0 | BM146: 0 | BN146: 0 | BO146: 0 | BP146: 0 | BQ146: 0 | BR146: 0 | BS146: 0 | BT146: 0 | BU146: 0 | BV146: 0 | BW146: 0 | BX146: 0 | BY146: 0 | BZ146: 0 | CA146: 0 | CB146: 96.01 | CD146: =$I$146/#REF!*100 ->  | CE146: 2.27 | CG146: 0 | CH146: 0 | CI146: 0 | CJ146: 0 | CK146: 0 | CL146: 0 | CM146: 0 | CN146: 0 | CO146: 0 | CP146: 0 | CQ146: 0
B147: Обед
A148: ="-" -> - | B148: Хлеб пшеничный | C148: 20 | D148: 1.2 | E148: 0.0 | F148: 0.1 | G148: 0.1 | H148: 7.4 | I148: 36 | J148: 0.0 | K148: 0.0 | L148: 0.0 | M148: 0.0 | N148: 0.2 | O148: 7.1 | P148: 0.0 | Q148: 0.0 | R148: 0.0 | S148: 0.0 | T148: 0.4 | U148: 0.0 | V148: 0.0 | W148: 0.0 | X148: 0.0 | Y148: 0.0 | Z148: 0.0 | AA148: 0.0 | AB148: 0.0 | AC148: 0.0 | AD148: 0.0 | AE148: 0.0 | AF148: 0.0 | AG148: 0.0 | AH148: 0.0 | AI148: 0.0 | AJ148: 0 | AK148: 63.86 | AL148: 66.47 | AM148: 101.79 | AN148: 33.76 | AO148: 20.01 | AP148: 40.02 | AQ148: 15.14 | AR148: 72.38 | AS148: 44.89 | AT148: 62.64 | AU148: 51.68 | AV148: 27.14 | AW148: 48.02 | AX148: 401.59 | AY148: 0 | AZ148: 130.85 | BA148: 56.9 | BB148: 37.76 | BC148: 29.93 | BD148: 0 | BE148: 0 | BF148: 0 | BG148: 0 | BH148: 0 | BI148: 0 | BJ148: 0 | BK148: 0.02 | BL148: 0 | BM148: 0 | BN148: 0 | BO148: 0 | BP148: 0 | BQ148: 0 | BR148: 0 | BS148: 0.01 | BT148: 0 | BU148: 0 | BV148: 0.06 | BW148: 0 | BX148: 0 | BY148: 0 | BZ148: 0 | CA148: 0 | CB148: 7.82 | CE148: 0 | CG148: 0 | CH148: 0 | CI148: 0 | CJ148: 380 | CK148: 146.4 | CL148: 263.2 | CM148: 3.04 | CN148: 3.04 | CO148: 3.04 | CP148: 0 | CQ148: 0
A149: ="-" -> - | B149: Хлеб ржаной | C149: 30 | D149: 1.8 | E149: 0.0 | F149: 0.4 | G149: 0.4 | H149: 12.5 | I149: 57 | J149: 0.1 | K149: 0.0 | L149: 0.0 | M149: 0.0 | N149: 0.4 | O149: 9.7 | P149: 2.5 | Q149: 0.0 | R149: 0.0 | S149: 0.3 | T149: 0.8 | U149: 183.0 | V149: 73.5 | W149: 10.5 | X149: 14.1 | Y149: 47.4 | Z149: 1.2 | AA149: 0.0 | AB149: 1.5 | AC149: 0.3 | AD149: 0.4 | AE149: 0.1 | AF149: 0.0 | AG149: 0.2 | AH149: 0.6 | AI149: 0.0 | AJ149: 0 | AK149: 96.6 | AL149: 74.4 | AM149: 128.1 | AN149: 66.9 | AO149: 27.9 | AP149: 59.4 | AQ149: 24 | AR149: 111.3 | AS149: 89.1 | AT149: 87.3 | AU149: 139.2 | AV149: 37.2 | AW149: 93 | AX149: 467.7 | AY149: 0 | AZ149: 157.8 | BA149: 87.3 | BB149: 54 | BC149: 39 | BD149: 0 | BE149: 0 | BF149: 0 | BG149: 0 | BH149: 0 | BI149: 0 | BJ149: 0 | BK149: 0.04 | BL149: 0 | BM149: 0 | BN149: 0.01 | BO149: 0 | BP149: 0 | BQ149: 0 | BR149: 0 | BS149: 0.03 | BT149: 0 | BU149: 0 | BV149: 0.14 | BW149: 0.02 | BX149: 0 | BY149: 0 | BZ149: 0 | CA149: 0 | CB149: 14.1 | CE149: 0.25 | CG149: 4 | CH149: 4 | CI149: 4 | CJ149: 760 | CK149: 292.8 | CL149: 526.4 | CM149: 7.6 | CN149: 6.32 | CO149: 6.96 | CP149: 0 | CQ149: 0
A150: ="3/10" -> 3/10 | B150: Компот из яблок | C150: 180 | D150: 0.1 | E150: 0.0 | F150: 0.1 | G150: 0.1 | H150: 17.3 | I150: 67 | J150: 0.0 | K150: 0.0 | L150: 0.0 | M150: 0.0 | N150: 16.4 | O150: 0.3 | P150: 0.6 | Q150: 0.0 | R150: 0.0 | S150: 0.3 | T150: 0.2 | U150: 9.4 | V150: 99.5 | W150: 6.0 | X150: 3.1 | Y150: 3.7 | Z150: 0.8 | AA150: 0.0 | AB150: 9.7 | AC150: 1.8 | AD150: 0.1 | AE150: 0.0 | AF150: 0.0 | AG150: 0.1 | AH150: 0.1 | AI150: 1.4 | AJ150: 0 | AK150: 4.23 | AL150: 4.59 | AM150: 6.7 | AN150: 6.35 | AO150: 1.06 | AP150: 3.88 | AQ150: 1.06 | AR150: 3.18 | AS150: 6 | AT150: 3.53 | AU150: 27.52 | AV150: 2.47 | AW150: 4.94 | AX150: 14.82 | AY150: 0 | AZ150: 4.59 | BA150: 5.64 | BB150: 2.12 | BC150: 1.76 | BD150: 0 | BE150: 0 | BF150: 0 | BG150: 0 | BH150: 0 | BI150: 0 | BJ150: 0 | BK150: 0 | BL150: 0 | BM150: 0 | BN150: 0 | BO150: 0 | BP150: 0 | BQ150: 0 | BR150: 0 | BS150: 0 | BT150: 0 | BU150: 0 | BV150: 0 | BW150: 0 | BX150: 0 | BY150: 0 | BZ150: 0 | CA150: 0 | CB150: 220.08 | CE150: 1.62 | CG150: 4.5 | CH150: 4.5 | CI150: 4.5 | CJ150: 432 | CK150: 208.98 | CL150: 320.49 | CM150: 41.2 | CN150: 24.19 | CO150: 32.7 | CP150: 13.5 | CQ150: 0
A151: ="7/2" -> 7/2 | B151: Щи из свежей капусты и картофеля на говяжьем бульоне | C151: 180 | D151: 2.2 | E151: 5.9 | F151: 5.9 | G151: 1.9 | H151: 7.1 | I151: 87 | J151: 1.6 | K151: 1.2 | L151: 0.0 | M151: 0.0 | N151: 3.1 | O151: 2.5 | P151: 1.4 | Q151: 0.0 | R151: 0.0 | S151: 0.2 | T151: 1.8 | U151: 427.0 | V151: 235.1 | W151: 28.1 | X151: 13.9 | Y151: 29.7 | Z151: 0.5 | AA151: 0.0 | AB151: 874.1 | AC151: 181.9 | AD151: 0.9 | AE151: 0.1 | AF151: 0.1 | AG151: 0.5 | AH151: 0.9 | AI151: 10.0 | AJ151: 0 | AK151: 32.4 | AL151: 30.88 | AM151: 39.26 | AN151: 39.17 | AO151: 11.76 | AP151: 28.51 | AQ151: 8.29 | AR151: 33.25 | AS151: 43.91 | AT151: 66.51 | AU151: 96.03 | AV151: 15.41 | AW151: 29.27 | AX151: 173.44 | AY151: 0 | AZ151: 32.57 | BA151: 32.32 | BB151: 27.75 | BC151: 11.68 | BD151: 0 | BE151: 0 | BF151: 0 | BG151: 0 | BH151: 0 | BI151: 0 | BJ151: 0 | BK151: 0.11 | BL151: 0 | BM151: 0.07 | BN151: 0 | BO151: 0.01 | BP151: 0 | BQ151: 0 | BR151: 0 | BS151: 0.4 | BT151: 0 | BU151: 0 | BV151: 1.08 | BW151: 0 | BX151: 0 | BY151: 0 | BZ151: 0 | CA151: 0 | CB151: 212.57 | CE151: 145.68 | CG151: 51.31 | CH151: 26.95 | CI151: 39.13 | CJ151: 876.52 | CK151: 309.49 | CL151: 593.01 | CM151: 42.75 | CN151: 26.46 | CO151: 34.6 | CP151: 0 | CQ151: 1.08
A152: ="3/3" -> 3/3 | B152: Картофельное пюре с маслом сливочным | C152: 150 | D152: 3.1 | E152: 0.6 | F152: 3.5 | G152: 0.5 | H152: 22.1 | I152: 132 | J152: 2.2 | K152: 0.1 | L152: 0.0 | M152: 0.0 | N152: 2.2 | O152: 18.2 | P152: 1.7 | Q152: 0.0 | R152: 0.0 | S152: 0.3 | T152: 1.9 | U152: 77.8 | V152: 636.3 | W152: 34.0 | X152: 30.4 | Y152: 86.8 | Z152: 1.1 | AA152: 18.8 | AB152: 34.1 | AC152: 25.1 | AD152: 0.2 | AE152: 0.1 | AF152: 0.1 | AG152: 1.3 | AH152: 2.6 | AI152: 5.5 | AJ152: 0 | AK152: 33.56 | AL152: 52.76 | AM152: 66.83 | AN152: 78.55 | AO152: 13.43 | AP152: 52.97 | AQ152: 27.18 | AR152: 54.08 | AS152: 75.67 | AT152: 206.13 | AU152: 91.81 | AV152: 19.2 | AW152: 53.44 | AX152: 287.21 | AY152: 0 | AZ152: 40.19 | BA152: 36.55 | BB152: 39.97 | BC152: 17.03 | BD152: 0.1 | BE152: 0.04 | BF152: 0.02 | BG152: 0.05 | BH152: 0.06 | BI152: 0.29 | BJ152: 0 | BK152: 0.88 | BL152: 0 | BM152: 0.26 | BN152: 0 | BO152: 0 | BP152: 0 | BQ152: 0.05 | BR152: 0.09 | BS152: 0.85 | BT152: 0 | BU152: 0 | BV152: 0.14 | BW152: 0 | BX152: 0 | BY152: 0 | BZ152: 0 | CA152: 0 | CB152: 123.74 | CE152: 24.43 | CG152: 17.59 | CH152: 11.66 | CI152: 14.63 | CJ152: 602.06 | CK152: 529.2 | CL152: 565.63 | CM152: 24.41 | CN152: 3.59 | CO152: 14 | CP152: 0 | CQ152: 0.45
A153: ="12/7" -> 12/7 | B153: Биточки (котлеты) из рыбы минтай | C153: 70 | D153: 8.5 | E153: 7.0 | F153: 4.5 | G153: 4.1 | H153: 9.8 | I153: 114 | J153: 0.6 | K153: 2.7 | L153: 0.0 | M153: 0.0 | N153: 0.3 | O153: 8.9 | P153: 0.6 | Q153: 0.0 | R153: 0.0 | S153: 0.1 | T153: 1.4 | U153: 175.6 | V153: 159.4 | W153: 22.5 | X153: 30.3 | Y153: 125.9 | Z153: 0.8 | AA153: 4.6 | AB153: 0.3 | AC153: 4.7 | AD153: 2.2 | AE153: 0.1 | AF153: 0.1 | AG153: 0.9 | AH153: 2.6 | AI153: 0.2 | AJ153: 0 | AK153: 43.93 | AL153: 45.73 | AM153: 70.02 | AN153: 23.22 | AO153: 13.77 | AP153: 27.53 | AQ153: 10.41 | AR153: 49.8 | AS153: 30.88 | AT153: 43.09 | AU153: 35.55 | AV153: 18.67 | AW153: 33.04 | AX153: 276.27 | AY153: 0 | AZ153: 90.01 | BA153: 39.14 | BB153: 25.97 | BC153: 20.59 | BD153: 0 | BE153: 0 | BF153: 0 | BG153: 0 | BH153: 0 | BI153: 0 | BJ153: 0 | BK153: 0.25 | BL153: 0 | BM153: 0.16 | BN153: 0.01 | BO153: 0.03 | BP153: 0 | BQ153: 0 | BR153: 0 | BS153: 0.93 | BT153: 0 | BU153: 0 | BV153: 2.32 | BW153: 0 | BX153: 0 | BY153: 0 | BZ153: 0 | CA153: 0 | CB153: 60.19 | CE153: 4.67 | CG153: 86.1 | CH153: 17.64 | CI153: 51.87 | CJ153: 864.5 | CK153: 301.53 | CL153: 583.01 | CM153: 20.63 | CN153: 20.63 | CO153: 20.63 | CP153: 0 | CQ153: 0.42
B154: Итого за 'Обед' | C154: =SUM(C148:C153) -> 630 | D154: 17.0 | E154: 13.4 | F154: 14.5 | G154: 7.2 | H154: 76.2 | I154: 493 | J154: 4.6 | K154: 4.0 | L154: 0.0 | M154: 0.0 | N154: 22.6 | O154: 46.7 | P154: 6.9 | Q154: 0.0 | R154: 0.0 | S154: 1.2 | T154: 6.4 | U154: 872.8 | V154: 1203.8 | W154: 101.0 | X154: 91.7 | Y154: 293.5 | Z154: 4.4 | AA154: 23.4 | AB154: 919.7 | AC154: 213.7 | AD154: 3.7 | AE154: 0.3 | AF154: 0.3 | AG154: 3.0 | AH154: 6.8 | AI154: 17.1 | AJ154: 0 | AK154: 470.7 | AL154: 432.05 | AM154: 739.26 | AN154: 292.28 | AO154: 149.4 | AP154: 311.53 | AQ154: 108.84 | AR154: 513.96 | AS154: 376.17 | AT154: 457.66 | AU154: 516.9 | AV154: 198.97 | AW154: 378.83 | AX154: 2831.68 | AY154: 0 | AZ154: 887.81 | BA154: 465.78 | BB154: 270.37 | BC154: 200.15 | BD154: 0.09 | BE154: 0.04 | BF154: 0.02 | BG154: 0.05 | BH154: 0.06 | BI154: 0.26 | BJ154: 0 | BK154: 1.23 | BL154: 0 | BM154: 0.46 | BN154: 0.02 | BO154: 0.04 | BP154: 0 | BQ154: 0.05 | BR154: 0.09 | BS154: 1.97 | BT154: 0 | BU154: 0 | BV154: 3.85 | BW154: 0.04 | BX154: 0 | BY154: 0 | BZ154: 0 | CA154: 0 | CB154: 828.33 | CD154: =$I$154/#REF!*100 ->  | CE154: 162.72 | CG154: 161.82 | CH154: 61.39 | CI154: 111.61 | CJ154: 3682.85 | CK154: 1624.6 | CL154: 2653.73 | CM154: 124.58 | CN154: 85.4 | CO154: 104.99 | CP154: 13.5 | CQ154: 1.95
B155: Уплотненный полдник
A156: ="-" -> - | B156: Хлеб ржаной | C156: 20 | D156: 1.2 | E156: 0.0 | F156: 0.2 | G156: 0.2 | H156: 8.3 | I156: 38 | J156: 0.0 | K156: 0.0 | L156: 0.0 | M156: 0.0 | N156: 0.2 | O156: 6.4 | P156: 1.7 | Q156: 0.0 | R156: 0.0 | S156: 0.2 | T156: 0.5 | U156: 122.0 | V156: 49.0 | W156: 7.0 | X156: 9.4 | Y156: 31.6 | Z156: 0.8 | AA156: 0.0 | AB156: 1.0 | AC156: 0.2 | AD156: 0.3 | AE156: 0.0 | AF156: 0.0 | AG156: 0.1 | AH156: 0.4 | AI156: 0.0 | AJ156: 0 | AK156: 64.4 | AL156: 49.6 | AM156: 85.4 | AN156: 44.6 | AO156: 18.6 | AP156: 39.6 | AQ156: 16 | AR156: 74.2 | AS156: 59.4 | AT156: 58.2 | AU156: 92.8 | AV156: 24.8 | AW156: 62 | AX156: 311.8 | AY156: 0 | AZ156: 105.2 | BA156: 58.2 | BB156: 36 | BC156: 26 | BD156: 0 | BE156: 0 | BF156: 0 | BG156: 0 | BH156: 0 | BI156: 0 | BJ156: 0 | BK156: 0.03 | BL156: 0 | BM156: 0 | BN156: 0 | BO156: 0 | BP156: 0 | BQ156: 0 | BR156: 0 | BS156: 0.02 | BT156: 0 | BU156: 0 | BV156: 0.1 | BW156: 0.02 | BX156: 0 | BY156: 0 | BZ156: 0 | CA156: 0 | CB156: 9.4 | CE156: 0.17 | CG156: 2 | CH156: 2 | CI156: 2 | CJ156: 380 | CK156: 146.4 | CL156: 263.2 | CM156: 3.8 | CN156: 3.16 | CO156: 3.48 | CP156: 0 | CQ156: 0
A157: ="-" -> - | B157: Сок в ассортименте | C157: 180 | D157: 0.9 | E157: 0.0 | F157: 0.2 | G157: 0.0 | H157: 18.5 | I157: 78 | J157: 0.0 | K157: 0.0 | L157: 0.0 | M157: 0.0 | N157: 17.8 | O157: 0.4 | P157: 0.4 | Q157: 0.0 | R157: 0.0 | S157: 0.9 | T157: 0.5 | U157: 10.8 | V157: 216.0 | W157: 12.6 | X157: 7.2 | Y157: 12.6 | Z157: 2.5 | AA157: 0.0 | AB157: 0.0 | AC157: 0.0 | AD157: 0.2 | AE157: 0.0 | AF157: 0.0 | AG157: 0.2 | AH157: 0.4 | AI157: 3.6 | AJ157: 0.36 | AK157: 14.4 | AL157: 18 | AM157: 25.2 | AN157: 25.2 | AO157: 3.6 | AP157: 14.4 | AQ157: 3.6 | AR157: 12.6 | AS157: 23.4 | AT157: 14.4 | AU157: 104.4 | AV157: 9 | AW157: 19.8 | AX157: 57.6 | AY157: 0 | AZ157: 18 | BA157: 21.6 | BB157: 9 | BC157: 7.2 | BD157: 0 | BE157: 0 | BF157: 0 | BG157: 0 | BH157: 0 | BI157: 0 | BJ157: 0 | BK157: 0 | BL157: 0 | BM157: 0 | BN157: 0 | BO157: 0 | BP157: 0 | BQ157: 0 | BR157: 0 | BS157: 0 | BT157: 0 | BU157: 0 | BV157: 0 | BW157: 0 | BX157: 0 | BY157: 0 | BZ157: 0 | CA157: 0 | CB157: 158.58 | CE157: 0 | CG157: 3.6 | CH157: 3.6 | CI157: 3.6 | CJ157: 360 | CK157: 163.8 | CL157: 261.9 | CM157: 0.54 | CN157: 0.54 | CO157: 0.54 | CP157: 0 | CQ157: 0
A158: ="9/4" -> 9/4 | B158: Каша рисовая молочная вязкая с маслом сливочным | C158: 180 | D158: 4.7 | E158: 2.0 | F158: 5.2 | G158: 0.4 | H158: 36.5 | I158: 211 | J158: 3.4 | K158: 0.1 | L158: 0.0 | M158: 0.0 | N158: 7.9 | O158: 27.4 | P158: 1.1 | Q158: 0.0 | R158: 0.0 | S158: 0.1 | T158: 1.3 | U158: 211.3 | V158: 138.3 | W158: 84.4 | X158: 27.9 | Y158: 113.3 | Z158: 0.5 | AA158: 31.5 | AB158: 18.2 | AC158: 35.1 | AD158: 0.2 | AE158: 0.1 | AF158: 0.1 | AG158: 0.6 | AH158: 1.9 | AI158: 0.4 | AJ158: 0 | AK158: 164.85 | AL158: 129.87 | AM158: 243.96 | AN158: 102.89 | AO158: 62.84 | AP158: 95.21 | AQ158: 40.7 | AR158: 145.44 | AS158: 152.94 | AT158: 199.07 | AU158: 212.08 | AV158: 67.52 | AW158: 125.24 | AX158: 471.96 | AY158: 0 | AZ158: 130.18 | BA158: 130.45 | BB158: 114.4 | BC158: 53.61 | BD158: 0.12 | BE158: 0.05 | BF158: 0.03 | BG158: 0.07 | BH158: 0.08 | BI158: 0.35 | BJ158: 0 | BK158: 1.04 | BL158: 0 | BM158: 0.32 | BN158: 0 | BO158: 0 | BP158: 0 | BQ158: 0.07 | BR158: 0.1 | BS158: 0.92 | BT158: 0 | BU158: 0 | BV158: 0.11 | BW158: 0 | BX158: 0 | BY158: 0 | BZ158: 0 | CA158: 0 | CB158: 134.25 | CE158: 34.54 | CG158: 26.6 | CH158: 12.74 | CI158: 19.67 | CJ158: 2001.43 | CK158: 924.09 | CL158: 1462.76 | CM158: 28.03 | CN158: 12.22 | CO158: 20.13 | CP158: 4.5 | CQ158: 0.45
B159: Итого за 'Уплотненный полдник' | C159: =SUM(C156:C158) -> 380 | D159: =SUM(D156:D158) -> 6.8 | E159: 2.0 | F159: 5.7 | G159: 0.6 | H159: 63.3 | I159: 327 | J159: 3.4 | K159: 0.1 | L159: 0.0 | M159: 0.0 | N159: 26.0 | O159: 34.2 | P159: 3.2 | Q159: 0.0 | R159: 0.0 | S159: 1.2 | T159: 2.3 | U159: 344.1 | V159: 403.3 | W159: 104.0 | X159: 44.5 | Y159: 157.5 | Z159: 3.8 | AA159: 31.5 | AB159: 19.2 | AC159: 35.3 | AD159: 0.7 | AE159: 0.1 | AF159: 0.2 | AG159: 0.9 | AH159: 2.6 | AI159: 4.0 | AJ159: 0.36 | AK159: 146.43 | AL159: 129.43 | AM159: 226.44 | AN159: 106 | AO159: 44.27 | AP159: 98.84 | AQ159: 34.33 | AR159: 158.67 | AS159: 130.32 | AT159: 129.89 | AU159: 246.38 | AV159: 62.69 | AW159: 132.02 | AX159: 810.42 | AY159: 0 | AZ159: 262.17 | BA159: 151.81 | BB159: 81.16 | BC159: 61.81 | BD159: 0.07 | BE159: 0.01 | BF159: 0.01 | BG159: 0.03 | BH159: 0.04 | BI159: 0.14 | BJ159: 0 | BK159: 0.49 | BL159: 0 | BM159: 0.14 | BN159: 0 | BO159: 0 | BP159: 0 | BQ159: 0.01 | BR159: 0.05 | BS159: 0.42 | BT159: 0 | BU159: 0 | BV159: 0.17 | BW159: 0.02 | BX159: 0 | BY159: 0 | BZ159: 0 | CA159: 0 | CB159: 318.64 | CD159: =$I$159/#REF!*100 ->  | CE159: 38.9 | CG159: 7.04 | CH159: 6.15 | CI159: 6.6 | CJ159: 786.49 | CK159: 330.75 | CL159: 558.62 | CM159: 5.25 | CN159: 3.91 | CO159: 4.58 | CP159: 1.08 | CQ159: 0.36
B160: Итого за день | C160: =C142+C146+C154+C159 -> 1570 | D160: 41.9 | E160: 26.8 | F160: 38.7 | G160: 10.2 | H160: 203.3 | I160: 1309 | J160: 15.1 | K160: 4.2 | L160: 0.0 | M160: 0.0 | N160: 69.0 | O160: 121.7 | P160: 12.7 | Q160: 0.0 | R160: 0.0 | S160: 2.6 | T160: 12.0 | U160: 1610.4 | V160: 2027.4 | W160: 422.0 | X160: 209.5 | Y160: 808.6 | Z160: 11.6 | AA160: 251.9 | AB160: 1000.8 | AC160: 457.2 | AD160: 6.1 | AE160: 0.7 | AF160: 0.9 | AG160: 4.6 | AH160: 14.7 | AI160: 21.8 | AJ160: 0.36 | AK160: 1343.61 | AL160: 1128.36 | AM160: 1943.48 | AN160: 1123.99 | AO160: 511.87 | AP160: 952.53 | AQ160: 351.4 | AR160: 1327.52 | AS160: 1150.43 | AT160: 1383.2 | AU160: 1878.03 | AV160: 580.43 | AW160: 1169.04 | AX160: 5801 | AY160: 8.4 | AZ160: 1746.68 | BA160: 1415.01 | BB160: 833.03 | BC160: 567.62 | BD160: 0.27 | BE160: 0.11 | BF160: 0.06 | BG160: 0.15 | BH160: 0.18 | BI160: 0.76 | BJ160: 0 | BK160: 3.17 | BL160: 0 | BM160: 0.92 | BN160: 0.03 | BO160: 0.04 | BP160: 0 | BQ160: 0.13 | BR160: 0.25 | BS160: 3.96 | BT160: 0 | BU160: 0 | BV160: 4.92 | BW160: 0.08 | BX160: 0 | BY160: 0 | BZ160: 0 | CA160: 0 | CB160: 1617.14 | CE160: 408.94 | CG160: 221.15 | CH160: 95.49 | CI160: 158.32 | CJ160: 7586.94 | CK160: 3288.73 | CL160: 5437.83 | CM160: 208.13 | CN160: 132.98 | CO160: 170.55 | CP160: 22.68 | CQ160: 2.76
B162: 2 НЕДЕЛЯ
B163: 7 ДЕНЬ
B164: Завтрак
A165: ="-" -> - | B165: Хлеб пшеничный | C165: 25 | D165: 1.5 | E165: 0.0 | F165: 0.2 | G165: 0.2 | H165: 9.2 | I165: 45 | J165: 0.0 | K165: 0.0 | L165: 0.0 | M165: 0.0 | N165: 0.3 | O165: 8.9 | P165: 0.1 | Q165: 0.0 | R165: 0.0 | S165: 0.0 | T165: 0.5 | U165: 0.0 | V165: 0.0 | W165: 0.0 | X165: 0.0 | Y165: 0.0 | Z165: 0.0 | AA165: 0.0 | AB165: 0.0 | AC165: 0.0 | AD165: 0.0 | AE165: 0.0 | AF165: 0.0 | AG165: 0.0 | AH165: 0.0 | AI165: 0.0 | AJ165: 0 | AK165: 79.82 | AL165: 83.09 | AM165: 127.24 | AN165: 42.2 | AO165: 25.01 | AP165: 50.03 | AQ165: 18.92 | AR165: 90.48 | AS165: 56.12 | AT165: 78.3 | AU165: 64.6 | AV165: 33.93 | AW165: 60.03 | AX165: 501.99 | AY165: 0 | AZ165: 163.56 | BA165: 71.12 | BB165: 47.2 | BC165: 37.41 | BD165: 0 | BE165: 0 | BF165: 0 | BG165: 0 | BH165: 0 | BI165: 0 | BJ165: 0 | BK165: 0.02 | BL165: 0 | BM165: 0 | BN165: 0 | BO165: 0 | BP165: 0 | BQ165: 0 | BR165: 0 | BS165: 0.02 | BT165: 0 | BU165: 0 | BV165: 0.07 | BW165: 0 | BX165: 0 | BY165: 0 | BZ165: 0 | CA165: 0 | CB165: 9.78 | CE165: 0 | CG165: 0 | CH165: 0 | CI165: 0 | CJ165: 570 | CK165: 219.6 | CL165: 394.8 | CM165: 4.56 | CN165: 4.56 | CO165: 4.56 | CP165: 0 | CQ165: 0
A166: ="4/13" -> 4/13 | B166: Сыр (порциями) | C166: 10 | D166: 1.5 | E166: 2.6 | F166: 2.7 | G166: 0.0 | H166: 0.0 | I166: 31 | J166: 1.5 | K166: 0.0 | L166: 0.0 | M166: 0.0 | N166: 0.0 | O166: 0.0 | P166: 0.0 | Q166: 0.0 | R166: 0.0 | S166: 0.2 | T166: 0.4 | U166: 110.0 | V166: 10.0 | W166: 100.0 | X166: 5.5 | Y166: 60.0 | Z166: 0.1 | AA166: 21.0 | AB166: 17.0 | AC166: 23.8 | AD166: 0.0 | AE166: 0.0 | AF166: 0.0 | AG166: 0.0 | AH166: 0.7 | AI166: 0.1 | AJ166: 0 | AK166: 157 | AL166: 117 | AM166: 230 | AN166: 158 | AO166: 56 | AP166: 95 | AQ166: 70 | AR166: 134 | AS166: 76 | AT166: 87 | AU166: 156 | AV166: 70 | AW166: 51 | AX166: 517 | AY166: 0 | AZ166: 273 | BA166: 129 | BB166: 139 | BC166: 21.5 | BD166: 0 | BE166: 0.01 | BF166: 0.04 | BG166: 0.11 | BH166: 0.13 | BI166: 0.33 | BJ166: 0.04 | BK166: 0.7 | BL166: 0.01 | BM166: 0.16 | BN166: 0.01 | BO166: 0 | BP166: 0 | BQ166: 0.05 | BR166: 0.07 | BS166: 0.52 | BT166: 0 | BU166: 0 | BV166: 0.07 | BW166: 0 | BX166: 0 | BY166: 0 | BZ166: 0 | CA166: 0 | CB166: 4.08 | CE166: 23.83 | CG166: 0 | CH166: 0 | CI166: 0 | CJ166: 250 | CK166: 185 | CL166: 217.5 | CM166: 0.77 | CN166: 0.49 | CO166: 0.63 | CP166: 0 | CQ166: 0
A167: ="36/10" -> 36/10 | B167: Какао с молоком (вариант 2) | C167: 180 | D167: 3.4 | E167: 2.6 | F167: 2.4 | G167: 0.6 | H167: 13.5 | I167: 85 | J167: 1.9 | K167: 0.0 | L167: 0.0 | M167: 0.0 | N167: 12.1 | O167: 0.3 | P167: 1.2 | Q167: 0.0 | R167: 0.0 | S167: 0.2 | T167: 0.9 | U167: 45.6 | V167: 164.2 | W167: 99.4 | X167: 24.4 | Y167: 91.2 | Z167: 0.8 | AA167: 10.8 | AB167: 7.8 | AC167: 19.9 | AD167: 0.0 | AE167: 0.0 | AF167: 0.1 | AG167: 0.1 | AH167: 1.0 | AI167: 0.5 | AJ167: 0 | AK167: 0 | AL167: 0 | AM167: 0 | AN167: 0 | AO167: 0 | AP167: 0 | AQ167: 0 | AR167: 0 | AS167: 0 | AT167: 0 | AU167: 0 | AV167: 0 | AW167: 0 | AX167: 0 | AY167: 0 | AZ167: 0 | BA167: 0 | BB167: 0 | BC167: 0 | BD167: 0 | BE167: 0 | BF167: 0 | BG167: 0 | BH167: 0 | BI167: 0 | BJ167: 0 | BK167: 0 | BL167: 0 | BM167: 0 | BN167: 0 | BO167: 0 | BP167: 0 | BQ167: 0 | BR167: 0 | BS167: 0 | BT167: 0 | BU167: 0 | BV167: 0 | BW167: 0 | BX167: 0 | BY167: 0 | BZ167: 0 | CA167: 0 | CB167: 179.29 | CE167: 12.1 | CG167: 10.25 | CH167: 3.95 | CI167: 7.1 | CJ167: 792 | CK167: 288.18 | CL167: 540.09 | CM167: 34.53 | CN167: 16.62 | CO167: 25.58 | CP167: 9 | CQ167: 0
A168: ="5/4" -> 5/4 | B168: Каша манная молочная с маслом сливочным | C168: 200 | D168: 5.3 | E168: 2.4 | F168: 4.6 | G168: 0.3 | H168: 29.5 | I168: 179 | J168: 3.3 | K168: 0.1 | L168: 0.0 | M168: 0.0 | N168: 8.6 | O168: 20.0 | P168: 1.1 | Q168: 0.0 | R168: 0.0 | S168: 0.1 | T168: 1.3 | U168: 235.2 | V168: 140.6 | W168: 92.7 | X168: 14.9 | Y168: 87.7 | Z168: 0.4 | AA168: 19.2 | AB168: 16.0 | AC168: 35.6 | AD168: 0.5 | AE168: 0.1 | AF168: 0.1 | AG168: 0.4 | AH168: 1.6 | AI168: 0.4 | AJ168: 0 | AK168: 148.97 | AL168: 136.9 | AM168: 246.51 | AN168: 78.4 | AO168: 47.26 | AP168: 96.52 | AQ168: 34.7 | AR168: 164.01 | AS168: 103.63 | AT168: 142.35 | AU168: 116.45 | AV168: 64.48 | AW168: 110.69 | AX168: 967.9 | AY168: 0 | AZ168: 314.64 | BA168: 161.45 | BB168: 82.8 | BC168: 66.55 | BD168: 0.09 | BE168: 0.04 | BF168: 0.02 | BG168: 0.05 | BH168: 0.06 | BI168: 0.28 | BJ168: 0 | BK168: 0.78 | BL168: 0 | BM168: 0.24 | BN168: 0 | BO168: 0 | BP168: 0 | BQ168: 0.05 | BR168: 0.08 | BS168: 0.63 | BT168: 0 | BU168: 0 | BV168: 0.04 | BW168: 0 | BX168: 0 | BY168: 0 | BZ168: 0 | CA168: 0 | CB168: 180.69 | CE168: 21.87 | CG168: 33.38 | CH168: 14.46 | CI168: 23.92 | CJ168: 1875.37 | CK168: 844.23 | CL168: 1359.8 | CM168: 43.77 | CN168: 22.87 | CO168: 33.32 | CP168: 5 | CQ168: 0.5
B169: Итого за 'Завтрак' | C169: =SUM(C165:C168) -> 415 | D169: =SUM(D165:D168) -> 11.7 | E169: 7.6 | F169: 9.8 | G169: 1.0 | H169: 52.3 | I169: 340 | J169: 6.7 | K169: 0.1 | L169: 0.0 | M169: 0.0 | N169: 20.9 | O169: 29.1 | P169: 2.3 | Q169: 0.0 | R169: 0.0 | S169: 0.5 | T169: 3.0 | U169: 390.7 | V169: 314.8 | W169: 292.1 | X169: 44.8 | Y169: 238.9 | Z169: 1.3 | AA169: 51.0 | AB169: 40.8 | AC169: 79.3 | AD169: 0.6 | AE169: 0.1 | AF169: 0.3 | AG169: 0.5 | AH169: 3.3 | AI169: 1.0 | AJ169: 0 | AK169: 385.79 | AL169: 336.99 | AM169: 603.74 | AN169: 278.59 | AO169: 128.28 | AP169: 241.54 | AQ169: 123.63 | AR169: 388.49 | AS169: 235.74 | AT169: 307.65 | AU169: 337.04 | AV169: 168.41 | AW169: 221.72 | AX169: 1986.89 | AY169: 0 | AZ169: 751.2 | BA169: 361.58 | BB169: 268.99 | BC169: 125.46 | BD169: 0.09 | BE169: 0.05 | BF169: 0.06 | BG169: 0.16 | BH169: 0.19 | BI169: 0.61 | BJ169: 0.04 | BK169: 1.49 | BL169: 0.01 | BM169: 0.4 | BN169: 0.01 | BO169: 0 | BP169: 0 | BQ169: 0.1 | BR169: 0.15 | BS169: 1.17 | BT169: 0 | BU169: 0 | BV169: 0.17 | BW169: 0.01 | BX169: 0 | BY169: 0 | BZ169: 0 | CA169: 0 | CB169: 373.83 | CD169: =$I$169/#REF!*100 ->  | CE169: 57.8 | CG169: 43.63 | CH169: 18.41 | CI169: 31.02 | CJ169: 3487.37 | CK169: 1537.01 | CL169: 2512.19 | CM169: 83.63 | CN169: 44.54 | CO169: 64.08 | CP169: 14 | CQ169: 0.5
B170: Второй завтрак
A171: ="-" -> - | B171: Яблоки | C171: 100 | D171: 0.4 | E171: 0.0 | F171: 0.4 | G171: 0.4 | H171: 11.6 | I171: 50 | J171: 0.1 | K171: 0.0 | L171: 0.0 | M171: 0.0 | N171: 10.0 | O171: 0.8 | P171: 0.8 | Q171: 0.0 | R171: 0.0 | S171: 0.8 | T171: 0.5 | U171: 26.0 | V171: 278.0 | W171: 16.0 | X171: 9.0 | Y171: 11.0 | Z171: 2.2 | AA171: 0.0 | AB171: 30.0 | AC171: 5.0 | AD171: 0.2 | AE171: 0.0 | AF171: 0.0 | AG171: 0.3 | AH171: 0.4 | AI171: 10.0 | AJ171: 0 | AK171: 12 | AL171: 13 | AM171: 19 | AN171: 18 | AO171: 3 | AP171: 11 | AQ171: 3 | AR171: 9 | AS171: 17 | AT171: 10 | AU171: 78 | AV171: 7 | AW171: 14 | AX171: 42 | AY171: 0 | AZ171: 13 | BA171: 16 | BB171: 6 | BC171: 5 | BD171: 0 | BE171: 0 | BF171: 0 | BG171: 0 | BH171: 0 | BI171: 0 | BJ171: 0 | BK171: 0 | BL171: 0 | BM171: 0 | BN171: 0 | BO171: 0 | BP171: 0 | BQ171: 0 | BR171: 0 | BS171: 0 | BT171: 0 | BU171: 0 | BV171: 0 | BW171: 0 | BX171: 0 | BY171: 0 | BZ171: 0 | CA171: 0 | CB171: 86.3 | CE171: 5 | CG171: 2 | CH171: 2 | CI171: 2 | CJ171: 150 | CK171: 150 | CL171: 150 | CM171: 0 | CN171: 0 | CO171: 0 | CP171: 0 | CQ171: 0
B172: Итого за 'Второй завтрак' | C172: =SUM(C171) -> 100 | D172: =SUM(D171) -> 0.4 | E172: 0.0 | F172: 0.4 | G172: 0.4 | H172: 11.6 | I172: 50 | J172: 0.1 | K172: 0.0 | L172: 0.0 | M172: 0.0 | N172: 10.0 | O172: 0.8 | P172: 0.8 | Q172: 0.0 | R172: 0.0 | S172: 0.8 | T172: 0.5 | U172: 26.0 | V172: 278.0 | W172: 16.0 | X172: 9.0 | Y172: 11.0 | Z172: 2.2 | AA172: 0.0 | AB172: 30.0 | AC172: 5.0 | AD172: 0.2 | AE172: 0.0 | AF172: 0.0 | AG172: 0.3 | AH172: 0.4 | AI172: 10.0 | AJ172: 0 | AK172: 12 | AL172: 13 | AM172: 19 | AN172: 18 | AO172: 3 | AP172: 11 | AQ172: 3 | AR172: 9 | AS172: 17 | AT172: 10 | AU172: 78 | AV172: 7 | AW172: 14 | AX172: 42 | AY172: 0 | AZ172: 13 | BA172: 16 | BB172: 6 | BC172: 5 | BD172: 0 | BE172: 0 | BF172: 0 | BG172: 0 | BH172: 0 | BI172: 0 | BJ172: 0 | BK172: 0 | BL172: 0 | BM172: 0 | BN172: 0 | BO172: 0 | BP172: 0 | BQ172: 0 | BR172: 0 | BS172: 0 | BT172: 0 | BU172: 0 | BV172: 0 | BW172: 0 | BX172: 0 | BY172: 0 | BZ172: 0 | CA172: 0 | CB172: 86.3 | CD172: =$I$172/#REF!*100 ->  | CE172: 5 | CG172: 2 | CH172: 2 | CI172: 2 | CJ172: 150 | CK172: 150 | CL172: 150 | CM172: 0 | CN172: 0 | CO172: 0 | CP172: 0 | CQ172: 0
B173: Обед
A174: ="-" -> - | B174: Хлеб пшеничный | C174: 20 | D174: 1.2 | E174: 0.0 | F174: 0.1 | G174: 0.1 | H174: 7.4 | I174: 36 | J174: 0.0 | K174: 0.0 | L174: 0.0 | M174: 0.0 | N174: 0.2 | O174: 7.1 | P174: 0.0 | Q174: 0.0 | R174: 0.0 | S174: 0.0 | T174: 0.4 | U174: 0.0 | V174: 0.0 | W174: 0.0 | X174: 0.0 | Y174: 0.0 | Z174: 0.0 | AA174: 0.0 | AB174: 0.0 | AC174: 0.0 | AD174: 0.0 | AE174: 0.0 | AF174: 0.0 | AG174: 0.0 | AH174: 0.0 | AI174: 0.0 | AJ174: 0 | AK174: 63.86 | AL174: 66.47 | AM174: 101.79 | AN174: 33.76 | AO174: 20.01 | AP174: 40.02 | AQ174: 15.14 | AR174: 72.38 | AS174: 44.89 | AT174: 62.64 | AU174: 51.68 | AV174: 27.14 | AW174: 48.02 | AX174: 401.59 | AY174: 0 | AZ174: 130.85 | BA174: 56.9 | BB174: 37.76 | BC174: 29.93 | BD174: 0 | BE174: 0 | BF174: 0 | BG174: 0 | BH174: 0 | BI174: 0 | BJ174: 0 | BK174: 0.02 | BL174: 0 | BM174: 0 | BN174: 0 | BO174: 0 | BP174: 0 | BQ174: 0 | BR174: 0 | BS174: 0.01 | BT174: 0 | BU174: 0 | BV174: 0.06 | BW174: 0 | BX174: 0 | BY174: 0 | BZ174: 0 | CA174: 0 | CB174: 7.82 | CE174: 0 | CG174: 0 | CH174: 0 | CI174: 0 | CJ174: 380 | CK174: 146.4 | CL174: 263.2 | CM174: 3.04 | CN174: 3.04 | CO174: 3.04 | CP174: 0 | CQ174: 0
A175: ="-" -> - | B175: Хлеб ржаной | C175: 30 | D175: 1.8 | E175: 0.0 | F175: 0.4 | G175: 0.4 | H175: 12.5 | I175: 57 | J175: 0.1 | K175: 0.0 | L175: 0.0 | M175: 0.0 | N175: 0.4 | O175: 9.7 | P175: 2.5 | Q175: 0.0 | R175: 0.0 | S175: 0.3 | T175: 0.8 | U175: 183.0 | V175: 73.5 | W175: 10.5 | X175: 14.1 | Y175: 47.4 | Z175: 1.2 | AA175: 0.0 | AB175: 1.5 | AC175: 0.3 | AD175: 0.4 | AE175: 0.1 | AF175: 0.0 | AG175: 0.2 | AH175: 0.6 | AI175: 0.0 | AJ175: 0 | AK175: 96.6 | AL175: 74.4 | AM175: 128.1 | AN175: 66.9 | AO175: 27.9 | AP175: 59.4 | AQ175: 24 | AR175: 111.3 | AS175: 89.1 | AT175: 87.3 | AU175: 139.2 | AV175: 37.2 | AW175: 93 | AX175: 467.7 | AY175: 0 | AZ175: 157.8 | BA175: 87.3 | BB175: 54 | BC175: 39 | BD175: 0 | BE175: 0 | BF175: 0 | BG175: 0 | BH175: 0 | BI175: 0 | BJ175: 0 | BK175: 0.04 | BL175: 0 | BM175: 0 | BN175: 0.01 | BO175: 0 | BP175: 0 | BQ175: 0 | BR175: 0 | BS175: 0.03 | BT175: 0 | BU175: 0 | BV175: 0.14 | BW175: 0.02 | BX175: 0 | BY175: 0 | BZ175: 0 | CA175: 0 | CB175: 14.1 | CE175: 0.25 | CG175: 4 | CH175: 4 | CI175: 4 | CJ175: 760 | CK175: 292.8 | CL175: 526.4 | CM175: 7.6 | CN175: 6.32 | CO175: 6.96 | CP175: 0 | CQ175: 0
A176: ="6/10" -> 6/10 | B176: Компот из сухофруктов | C176: 180 | D176: 0.9 | E176: 0.0 | F176: 0.1 | G176: 0.1 | H176: 20.9 | I176: 79 | J176: 0.0 | K176: 0.0 | L176: 0.0 | M176: 0.0 | N176: 17.3 | O176: 0.5 | P176: 3.1 | Q176: 0.0 | R176: 0.0 | S176: 0.3 | T176: 0.7 | U176: 3.1 | V176: 306.2 | W176: 28.2 | X176: 18.0 | Y176: 24.4 | Z176: 0.6 | AA176: 0.0 | AB176: 567.0 | AC176: 104.9 | AD176: 1.0 | AE176: 0.0 | AF176: 0.1 | AG176: 0.5 | AH176: 0.7 | AI176: 0.4 | AJ176: 0 | AK176: 0.01 | AL176: 0.01 | AM176: 0.01 | AN176: 0.02 | AO176: 0 | AP176: 0.01 | AQ176: 0 | AR176: 0.01 | AS176: 0.01 | AT176: 0.01 | AU176: 0.05 | AV176: 0 | AW176: 0.01 | AX176: 0.02 | AY176: 0 | AZ176: 0.01 | BA176: 0.01 | BB176: 0.01 | BC176: 0 | BD176: 0 | BE176: 0 | BF176: 0 | BG176: 0 | BH176: 0 | BI176: 0 | BJ176: 0 | BK176: 0 | BL176: 0 | BM176: 0 | BN176: 0 | BO176: 0 | BP176: 0 | BQ176: 0 | BR176: 0 | BS176: 0.01 | BT176: 0 | BU176: 0 | BV176: 0.01 | BW176: 0 | BX176: 0 | BY176: 0 | BZ176: 0 | CA176: 0 | CB176: 192.61 | CE176: 94.5 | CG176: 3.95 | CH176: 3.95 | CI176: 3.95 | CJ176: 454.5 | CK176: 172.98 | CL176: 313.74 | CM176: 41.94 | CN176: 24.93 | CO176: 33.44 | CP176: 9 | CQ176: 0
A177: ="3/1" -> 3/1 | B177: Салат из белокочанной капусты с растительным маслом | C177: 50 | D177: 0.8 | E177: 0.0 | F177: 3.0 | G177: 3.0 | H177: 4.5 | I177: 46 | J177: 0.4 | K177: 2.0 | L177: 0.0 | M177: 0.0 | N177: 3.5 | O177: 0.0 | P177: 0.9 | Q177: 0.0 | R177: 0.0 | S177: 0.1 | T177: 0.6 | U177: 100.7 | V177: 133.8 | W177: 22.4 | X177: 7.2 | Y177: 14.1 | Z177: 0.3 | AA177: 0.0 | AB177: 8.9 | AC177: 1.4 | AD177: 1.4 | AE177: 0.0 | AF177: 0.0 | AG177: 0.3 | AH177: 0.4 | AI177: 20.1 | AJ177: 0 | AK177: 25.86 | AL177: 22.3 | AM177: 28.54 | AN177: 27.2 | AO177: 9.81 | AP177: 20.07 | AQ177: 4.46 | AR177: 24.97 | AS177: 31.66 | AT177: 37.9 | AU177: 76.69 | AV177: 12.49 | AW177: 20.96 | AX177: 122.62 | AY177: 0 | AZ177: 26.31 | BA177: 26.31 | BB177: 22.3 | BC177: 8.92 | BD177: 0 | BE177: 0 | BF177: 0 | BG177: 0 | BH177: 0 | BI177: 0 | BJ177: 0 | BK177: 0.18 | BL177: 0 | BM177: 0.12 | BN177: 0.01 | BO177: 0.02 | BP177: 0 | BQ177: 0 | BR177: 0 | BS177: 0.7 | BT177: 0 | BU177: 0 | BV177: 1.73 | BW177: 0 | BX177: 0 | BY177: 0 | BZ177: 0 | CA177: 0 | CB177: 41.14 | CE177: 1.49 | CG177: 5.52 | CH177: 2.39 | CI177: 3.95 | CJ177: 162.53 | CK177: 38.92 | CL177: 100.73 | CM177: 2.98 | CN177: 2.88 | CO177: 2.93 | CP177: 1.5 | CQ177: 0.25
A178: ="14/2" -> 14/2 | B178: Суп картофельный с пшенной крупой на говяжьем бульоне | C178: 180 | D178: 2.5 | E178: 5.9 | F178: 7.6 | G178: 4.0 | H178: 12.2 | I178: 126 | J178: 1.9 | K178: 2.3 | L178: 0.0 | M178: 0.0 | N178: 1.5 | O178: 9.5 | P178: 1.1 | Q178: 0.0 | R178: 0.0 | S178: 0.1 | T178: 1.8 | U178: 422.9 | V178: 297.7 | W178: 12.3 | X178: 16.7 | Y178: 41.5 | Z178: 0.6 | AA178: 0.0 | AB178: 700.4 | AC178: 145.7 | AD178: 1.7 | AE178: 0.1 | AF178: 0.1 | AG178: 0.7 | AH178: 1.2 | AI178: 4.7 | AJ178: 0 | AK178: 31.51 | AL178: 37.23 | AM178: 80.27 | AN178: 42.78 | AO178: 15.7 | AP178: 36.01 | AQ178: 16.79 | AR178: 42.54 | AS178: 69.07 | AT178: 98.38 | AU178: 66.67 | AV178: 16.86 | AW178: 32.93 | AX178: 202.71 | AY178: 0 | AZ178: 44.67 | BA178: 39.63 | BB178: 30.32 | BC178: 13.5 | BD178: 0 | BE178: 0 | BF178: 0 | BG178: 0 | BH178: 0 | BI178: 0 | BJ178: 0 | BK178: 0.24 | BL178: 0 | BM178: 0.14 | BN178: 0.01 | BO178: 0.02 | BP178: 0 | BQ178: 0 | BR178: 0 | BS178: 0.84 | BT178: 0 | BU178: 0 | BV178: 2.24 | BW178: 0 | BX178: 0 | BY178: 0 | BZ178: 0 | CA178: 0 | CB178: 179.93 | CE178: 116.74 | CG178: 49.25 | CH178: 27.54 | CI178: 38.39 | CJ178: 694.26 | CK178: 394.27 | CL178: 544.26 | CM178: 38.31 | CN178: 18.54 | CO178: 28.42 | CP178: 0 | CQ178: 1.08
A179: ="46/3" -> 46/3 | B179: Макаронные изделия отварные с маслом сливочным | C179: 150 | D179: 5.3 | E179: 0.0 | F179: 3.0 | G179: 0.7 | H179: 34.1 | I179: 184 | J179: 1.9 | K179: 0.1 | L179: 0.0 | M179: 0.0 | N179: 1.0 | O179: 31.4 | P179: 1.7 | Q179: 0.0 | R179: 0.0 | S179: 0.0 | T179: 0.7 | U179: 147.3 | V179: 56.2 | W179: 10.5 | X179: 7.2 | Y179: 39.8 | Z179: 0.7 | AA179: 9.0 | AB179: 9.0 | AC179: 16.9 | AD179: 0.8 | AE179: 0.1 | AF179: 0.0 | AG179: 0.5 | AH179: 1.5 | AI179: 0.0 | AJ179: 0 | AK179: 229.67 | AL179: 209.98 | AM179: 393.39 | AN179: 122.87 | AO179: 74.91 | AP179: 152.19 | AQ179: 49.94 | AR179: 244.06 | AS179: 161.39 | AT179: 194.59 | AU179: 166.92 | AV179: 98.07 | AW179: 170.55 | AX179: 1497.86 | AY179: 0 | AZ179: 471.98 | BA179: 244.48 | BB179: 122.77 | BC179: 97.19 | BD179: 0.09 | BE179: 0.04 | BF179: 0.02 | BG179: 0.05 | BH179: 0.06 | BI179: 0.26 | BJ179: 0 | BK179: 0.81 | BL179: 0 | BM179: 0.23 | BN179: 0 | BO179: 0 | BP179: 0 | BQ179: 0.05 | BR179: 0.08 | BS179: 0.6 | BT179: 0 | BU179: 0 | BV179: 0.24 | BW179: 0.01 | BX179: 0 | BY179: 0 | BZ179: 0 | CA179: 0 | CB179: 313.57 | CE179: 10.5 | CG179: 15.92 | CH179: 8.3 | CI179: 12.11 | CJ179: 369.83 | CK179: 365.4 | CL179: 367.62 | CM179: 9.36 | CN179: 4.76 | CO179: 7.06 | CP179: 0 | CQ179: 0.45
A180: ="1/27" -> 1/27 | B180: Котлеты "Крестьянские" из мясо говядины и птиц | C180: 70 | D180: 11.1 | E180: 10.3 | F180: 12.9 | G180: 4.4 | H180: 9.6 | I180: 198 | J180: 4.3 | K180: 24.4 | L180: 0.0 | M180: 0.0 | N180: 0.6 | O180: 7.9 | P180: 1.1 | Q180: 0.0 | R180: 0.0 | S180: 0.1 | T180: 1.2 | U180: 203.2 | V180: 164.2 | W180: 12.6 | X180: 16.7 | Y180: 113.8 | Z180: 1.6 | AA180: 25.0 | AB180: 3.5 | AC180: 25.8 | AD180: 2.3 | AE180: 0.1 | AF180: 0.1 | AG180: 3.5 | AH180: 6.7 | AI180: 0.4 | AJ180: 0 | AK180: 567.21 | AL180: 450.68 | AM180: 872.53 | AN180: 1125 | AO180: 272.04 | AP180: 495.14 | AQ180: 156.72 | AR180: 475.02 | AS180: 663.01 | AT180: 689.9 | AU180: 979.84 | AV180: 338.15 | AW180: 710.27 | AX180: 1809.83 | AY180: 114.5 | AZ180: 535.04 | BA180: 502.3 | BB180: 388.01 | BC180: 152.33 | BD180: 0 | BE180: 0 | BF180: 0 | BG180: 0 | BH180: 0 | BI180: 0 | BJ180: 0 | BK180: 0.27 | BL180: 0 | BM180: 0.17 | BN180: 0.01 | BO180: 0.03 | BP180: 0 | BQ180: 0 | BR180: 0 | BS180: 0.99 | BT180: 0 | BU180: 0 | BV180: 2.47 | BW180: 0 | BX180: 0 | BY180: 0 | BZ180: 0 | CA180: 0 | CB180: 56.16 | CE180: 25.57 | CG180: 18.26 | CH180: 9.65 | CI180: 13.96 | CJ180: 2109.43 | CK180: 1279.73 | CL180: 1694.58 | CM180: 14.61 | CN180: 10.31 | CO180: 12.46 | CP180: 0 | CQ180: 0.35
B181: Итого за 'Обед' | C181: =SUM(C174:C180) -> 680 | D181: =SUM(D174:D180) -> 23.6 | E181: 16.2 | F181: 27.0 | G181: 12.5 | H181: 101.1 | I181: 726 | J181: 8.5 | K181: 28.8 | L181: 0.0 | M181: 0.0 | N181: 24.5 | O181: 66.1 | P181: 10.4 | Q181: 0.0 | R181: 0.0 | S181: 0.9 | T181: 6.2 | U181: 1060.1 | V181: 1031.7 | W181: 96.4 | X181: 79.8 | Y181: 281.0 | Z181: 5.0 | AA181: 34.0 | AB181: 1290.3 | AC181: 295.0 | AD181: 7.6 | AE181: 0.3 | AF181: 0.3 | AG181: 5.6 | AH181: 11.2 | AI181: 25.6 | AJ181: 0 | AK181: 836.01 | AL181: 719.42 | AM181: 1282.58 | AN181: 1381.78 | AO181: 359.61 | AP181: 711.79 | AQ181: 245.04 | AR181: 795.63 | AS181: 960.15 | AT181: 1194.32 | AU181: 1409.07 | AV181: 456.26 | AW181: 972.88 | AX181: 3432.87 | AY181: 114.5 | AZ181: 975.39 | BA181: 760.49 | BB181: 575.88 | BC181: 268.61 | BD181: 0.1 | BE181: 0.04 | BF181: 0.02 | BG181: 0.05 | BH181: 0.06 | BI181: 0.29 | BJ181: 0 | BK181: 1.52 | BL181: 0 | BM181: 0.62 | BN181: 0.03 | BO181: 0.06 | BP181: 0 | BQ181: 0.05 | BR181: 0.1 | BS181: 3 | BT181: 0 | BU181: 0 | BV181: 5.45 | BW181: 0.03 | BX181: 0 | BY181: 0 | BZ181: 0 | CA181: 0 | CB181: 623.05 | CD181: =$I$181/#REF!*100 ->  | CE181: 303.27 | CG181: 98.48 | CH181: 59.18 | CI181: 78.83 | CJ181: 5093.69 | CK181: 2835.28 | CL181: 3964.49 | CM181: 133.37 | CN181: 70.09 | CO181: 101.73 | CP181: 10.5 | CQ181: 2.13
B182: Уплотненный полдник
A183: ="-" -> - | B183: Хлеб ржаной | C183: 10 | D183: 0.6 | E183: 0.0 | F183: 0.1 | G183: 0.1 | H183: 4.2 | I183: 19 | J183: 0.0 | K183: 0.0 | L183: 0.0 | M183: 0.0 | N183: 0.1 | O183: 3.2 | P183: 0.8 | Q183: 0.0 | R183: 0.0 | S183: 0.1 | T183: 0.3 | U183: 61.0 | V183: 24.5 | W183: 3.5 | X183: 4.7 | Y183: 15.8 | Z183: 0.4 | AA183: 0.0 | AB183: 0.5 | AC183: 0.1 | AD183: 0.1 | AE183: 0.0 | AF183: 0.0 | AG183: 0.1 | AH183: 0.2 | AI183: 0.0 | AJ183: 0 | AK183: 32.2 | AL183: 24.8 | AM183: 42.7 | AN183: 22.3 | AO183: 9.3 | AP183: 19.8 | AQ183: 8 | AR183: 37.1 | AS183: 29.7 | AT183: 29.1 | AU183: 46.4 | AV183: 12.4 | AW183: 31 | AX183: 155.9 | AY183: 0 | AZ183: 52.6 | BA183: 29.1 | BB183: 18 | BC183: 13 | BD183: 0 | BE183: 0 | BF183: 0 | BG183: 0 | BH183: 0 | BI183: 0 | BJ183: 0 | BK183: 0.01 | BL183: 0 | BM183: 0 | BN183: 0 | BO183: 0 | BP183: 0 | BQ183: 0 | BR183: 0 | BS183: 0.01 | BT183: 0 | BU183: 0 | BV183: 0.05 | BW183: 0.01 | BX183: 0 | BY183: 0 | BZ183: 0 | CA183: 0 | CB183: 4.7 | CE183: 0.08 | CG183: 15 | CH183: 15 | CI183: 15 | CJ183: 2850 | CK183: 1098 | CL183: 1974 | CM183: 28.5 | CN183: 23.7 | CO183: 26.1 | CP183: 0 | CQ183: 0
A184: ="27/12" -> 27/12 | B184: Оладьи | C184: 70 | D184: 3.8 | E184: 0.4 | F184: 4.3 | G184: 4.6 | H184: 23.3 | I184: 147 | J184: 0.7 | K184: 2.7 | L184: 0.0 | M184: 0.0 | N184: 1.4 | O184: 20.8 | P184: 1.1 | Q184: 0.0 | R184: 0.0 | S184: 0.0 | T184: 0.8 | U184: 247.8 | V184: 41.2 | W184: 8.4 | X184: 5.2 | Y184: 30.2 | Z184: 0.4 | AA184: 2.7 | AB184: 0.8 | AC184: 4.7 | AD184: 2.4 | AE184: 0.0 | AF184: 0.0 | AG184: 0.4 | AH184: 1.2 | AI184: 0.0 | AJ184: 0 | AK184: 172.68 | AL184: 154.06 | AM184: 287.43 | AN184: 108.79 | AO184: 59.86 | AP184: 115.98 | AQ184: 36.97 | AR184: 175.94 | AS184: 126.28 | AT184: 149 | AU184: 144.56 | AV184: 75.28 | AW184: 126.43 | AX184: 1033.3 | AY184: 3.45 | AZ184: 321.17 | BA184: 181.03 | BB184: 93.08 | BC184: 70.65 | BD184: 0 | BE184: 0 | BF184: 0 | BG184: 0 | BH184: 0 | BI184: 0 | BJ184: 0 | BK184: 0.27 | BL184: 0 | BM184: 0.15 | BN184: 0.01 | BO184: 0.03 | BP184: 0 | BQ184: 0 | BR184: 0 | BS184: 0.91 | BT184: 0 | BU184: 0 | BV184: 2.64 | BW184: 0.01 | BX184: 0 | BY184: 0 | BZ184: 0 | CA184: 0 | CB184: 40.34 | CE184: 2.83 | CG184: 26.12 | CH184: 13.46 | CI184: 19.79 | CJ184: 687.55 | CK184: 249.84 | CL184: 468.7 | CM184: 3.8 | CN184: 2.14 | CO184: 3.31 | CP184: 1.19 | CQ184: 0.63
A185: ="27/10" -> 27/10 | B185: Чай полусладкий | C185: 180 | D185: 0.2 | E185: 0.0 | F185: 0.0 | G185: 0.0 | H185: 4.5 | I185: 18 | J185: 0.0 | K185: 0.0 | L185: 0.0 | M185: 0.0 | N185: 4.4 | O185: 0.0 | P185: 0.1 | Q185: 0.0 | R185: 0.0 | S185: 0.0 | T185: 0.1 | U185: 0.0 | V185: 0.1 | W185: 0.1 | X185: 0.0 | Y185: 0.0 | Z185: 0.0 | AA185: 0.0 | AB185: 0.0 | AC185: 0.0 | AD185: 0.0 | AE185: 0.0 | AF185: 0.0 | AG185: 0.0 | AH185: 0.0 | AI185: 0.0 | AJ185: 0 | AK185: 0 | AL185: 0 | AM185: 0 | AN185: 0 | AO185: 0 | AP185: 0 | AQ185: 0 | AR185: 0 | AS185: 0 | AT185: 0 | AU185: 0 | AV185: 0 | AW185: 0 | AX185: 0 | AY185: 0 | AZ185: 0 | BA185: 0 | BB185: 0 | BC185: 0 | BD185: 0 | BE185: 0 | BF185: 0 | BG185: 0 | BH185: 0 | BI185: 0 | BJ185: 0 | BK185: 0 | BL185: 0 | BM185: 0 | BN185: 0 | BO185: 0 | BP185: 0 | BQ185: 0 | BR185: 0 | BS185: 0 | BT185: 0 | BU185: 0 | BV185: 0 | BW185: 0 | BX185: 0 | BY185: 0 | BZ185: 0 | CA185: 0 | CB185: 180.08 | CE185: 0 | CG185: 3.69 | CH185: 3.69 | CI185: 3.69 | CJ185: 398.25 | CK185: 156.6 | CL185: 277.43 | CM185: 39.61 | CN185: 23.41 | CO185: 31.51 | CP185: 4.5 | CQ185: 0
A186: ="2/6" -> 2/6 | B186: Омлет запеченный или паровой | C186: 120 | D186: 12.6 | E186: 13.3 | F186: 17.1 | G186: 0.0 | H186: 2.3 | I186: 213 | J186: 8.4 | K186: 0.2 | L186: 0.0 | M186: 0.0 | N186: 2.3 | O186: 0.0 | P186: 0.0 | Q186: 0.0 | R186: 0.0 | S186: 0.0 | T186: 2.0 | U186: 380.5 | V186: 167.3 | W186: 88.6 | X186: 14.5 | Y186: 191.6 | Z186: 2.2 | AA186: 173.1 | AB186: 73.7 | AC186: 304.0 | AD186: 0.7 | AE186: 0.1 | AF186: 0.4 | AG186: 0.2 | AH186: 3.8 | AI186: 0.2 | AJ186: 0 | AK186: 700.73 | AL186: 542.71 | AM186: 982.87 | AN186: 819.23 | AO186: 384.27 | AP186: 555.02 | AQ186: 188.26 | AR186: 592.44 | AS186: 644.2 | AT186: 712.71 | AU186: 1114.58 | AV186: 310.21 | AW186: 377.73 | AX186: 1613.73 | AY186: 12.63 | AZ186: 362.01 | BA186: 842.67 | BB186: 433.62 | BC186: 265.37 | BD186: 0.24 | BE186: 0.11 | BF186: 0.06 | BG186: 0.14 | BH186: 0.16 | BI186: 0.72 | BJ186: 0 | BK186: 2.01 | BL186: 0 | BM186: 0.62 | BN186: 0 | BO186: 0 | BP186: 0 | BQ186: 0.14 | BR186: 0.21 | BS186: 1.64 | BT186: 0 | BU186: 0 | BV186: 0.09 | BW186: 0.01 | BX186: 0 | BY186: 0 | BZ186: 0 | CA186: 0 | CB186: 105.76 | CE186: 185.38 | CG186: 48.94 | CH186: 30.96 | CI186: 39.95 | CJ186: 209 | CK186: 77.6 | CL186: 143.3 | CM186: 14.28 | CN186: 7.8 | CO186: 11.04 | CP186: 0 | CQ186: 0.6
B187: Итого за 'Уплотненный полдник' | C187: =SUM(C183:C186) -> 380 | D187: 17.2 | E187: 13.7 | F187: 21.6 | G187: 4.8 | H187: 34.3 | I187: 397 | J187: 9.0 | K187: 3.0 | L187: 0.0 | M187: 0.0 | N187: 8.2 | O187: 24.0 | P187: 2.0 | Q187: 0.0 | R187: 0.0 | S187: 0.1 | T187: 3.1 | U187: 689.3 | V187: 233.1 | W187: 100.6 | X187: 24.5 | Y187: 237.6 | Z187: 3.0 | AA187: 175.8 | AB187: 75.0 | AC187: 308.7 | AD187: 3.2 | AE187: 0.1 | AF187: 0.4 | AG187: 0.6 | AH187: 5.1 | AI187: 0.2 | AJ187: 0 | AK187: 369.72 | AL187: 308.74 | AM187: 574.09 | AN187: 233.97 | AO187: 132.01 | AP187: 230.99 | AQ187: 85.68 | AR187: 358.48 | AS187: 308.92 | AT187: 377.17 | AU187: 403.03 | AV187: 155.2 | AW187: 282.67 | AX187: 1661.16 | AY187: 3.45 | AZ187: 503.95 | BA187: 340.58 | BB187: 225.48 | BC187: 137.26 | BD187: 0.12 | BE187: 0.05 | BF187: 0.03 | BG187: 0.07 | BH187: 0.08 | BI187: 0.35 | BJ187: 0 | BK187: 1.33 | BL187: 0 | BM187: 0.47 | BN187: 0.01 | BO187: 0.03 | BP187: 0 | BQ187: 0.07 | BR187: 0.11 | BS187: 1.84 | BT187: 0 | BU187: 0 | BV187: 2.8 | BW187: 0.02 | BX187: 0 | BY187: 0 | BZ187: 0 | CA187: 0 | CB187: 359.37 | CD187: =$I$187/#REF!*100 ->  | CE187: 37.45 | CG187: 62.54 | CH187: 40.64 | CI187: 51.59 | CJ187: 5270.09 | CK187: 2120.5 | CL187: 3695.3 | CM187: 90.6 | CN187: 57.39 | CO187: 74.33 | CP187: 10.19 | CQ187: 1.08
B188: Итого за день | C188: =C169+C172+C181+C187 -> 1575 | D188: 52.9 | E188: 37.5 | F188: 58.7 | G188: 18.7 | H188: 199.2 | I188: 1513 | J188: 24.3 | K188: 31.9 | L188: 0.0 | M188: 0.0 | N188: 63.7 | O188: 120.1 | P188: 15.5 | Q188: 0.0 | R188: 0.0 | S188: 2.4 | T188: 12.8 | U188: 2166.1 | V188: 1857.6 | W188: 505.1 | X188: 158.0 | Y188: 768.5 | Z188: 11.4 | AA188: 260.8 | AB188: 1436.1 | AC188: 688.0 | AD188: 11.6 | AE188: 0.5 | AF188: 1.0 | AG188: 7.0 | AH188: 19.9 | AI188: 36.8 | AJ188: 0 | AK188: 1603.52 | AL188: 1378.14 | AM188: 2479.42 | AN188: 1912.34 | AO188: 622.89 | AP188: 1195.32 | AQ188: 457.34 | AR188: 1551.61 | AS188: 1521.8 | AT188: 1889.15 | AU188: 2227.15 | AV188: 786.88 | AW188: 1491.27 | AX188: 7122.92 | AY188: 117.95 | AZ188: 2243.54 | BA188: 1478.64 | BB188: 1076.35 | BC188: 536.33 | BD188: 0.31 | BE188: 0.15 | BF188: 0.11 | BG188: 0.28 | BH188: 0.33 | BI188: 1.25 | BJ188: 0.04 | BK188: 4.34 | BL188: 0.01 | BM188: 1.49 | BN188: 0.05 | BO188: 0.09 | BP188: 0 | BQ188: 0.23 | BR188: 0.36 | BS188: 6.01 | BT188: 0 | BU188: 0 | BV188: 8.43 | BW188: 0.06 | BX188: 0 | BY188: 0 | BZ188: 0 | CA188: 0 | CB188: 1442.55 | CE188: 403.52 | CG188: 206.65 | CH188: 120.23 | CI188: 163.44 | CJ188: 14001.15 | CK188: 6642.78 | CL188: 10321.97 | CM188: 307.6 | CN188: 172.02 | CO188: 240.15 | CP188: 34.69 | CQ188: 3.71
B190: 8 ДЕНЬ
B191: Завтрак
A192: ="-" -> - | B192: Батон | C192: 30 | D192: 2.3 | E192: 0.0 | F192: 1.5 | G192: 0.9 | H192: 11.2 | I192: 66 | J192: 0.2 | K192: 0.0 | L192: 0.0 | M192: 0.0 | N192: 1.0 | O192: 9.2 | P192: 1.0 | Q192: 0.0 | R192: 0.0 | S192: 0.1 | T192: 0.5 | U192: 128.7 | V192: 39.3 | W192: 6.6 | X192: 9.9 | Y192: 25.5 | Z192: 0.6 | AA192: 0.0 | AB192: 0.0 | AC192: 0.0 | AD192: 0.5 | AE192: 0.1 | AF192: 0.0 | AG192: 0.5 | AH192: 0.9 | AI192: 0.0 | AJ192: 0 | AK192: 111.6 | AL192: 115.8 | AM192: 177.3 | AN192: 59.7 | AO192: 35.1 | AP192: 70.2 | AQ192: 26.4 | AR192: 126 | AS192: 78.3 | AT192: 108.9 | AU192: 90.3 | AV192: 48.3 | AW192: 84 | AX192: 697.5 | AY192: 0 | AZ192: 227.1 | BA192: 99.3 | BB192: 66.6 | BC192: 51.9 | BD192: 0 | BE192: 0 | BF192: 0 | BG192: 0 | BH192: 0 | BI192: 0.01 | BJ192: 0 | BK192: 0.1 | BL192: 0 | BM192: 0.05 | BN192: 0 | BO192: 0 | BP192: 0 | BQ192: 0 | BR192: 0 | BS192: 0.35 | BT192: 0 | BU192: 0 | BV192: 0.26 | BW192: 0.01 | BX192: 0 | BY192: 0 | BZ192: 0 | CA192: 0 | CB192: 10.23 | CE192: 0 | CG192: 0 | CH192: 0 | CI192: 0 | CJ192: 570 | CK192: 219.6 | CL192: 394.8 | CM192: 4.56 | CN192: 4.56 | CO192: 4.56 | CP192: 0 | CQ192: 0
A193: ="-" -> - | B193: Масло сливочное | C193: 5 | D193: 0.0 | E193: 0.0 | F193: 3.6 | G193: 0.0 | H193: 0.1 | I193: 33 | J193: 2.4 | K193: 0.1 | L193: 0.0 | M193: 0.0 | N193: 0.1 | O193: 0.0 | P193: 0.0 | Q193: 0.0 | R193: 0.0 | S193: 0.0 | T193: 0.1 | U193: 0.8 | V193: 1.5 | W193: 1.2 | X193: 0.0 | Y193: 1.5 | Z193: 0.0 | AA193: 20.0 | AB193: 15.0 | AC193: 22.5 | AD193: 0.1 | AE193: 0.0 | AF193: 0.0 | AG193: 0.0 | AH193: 0.0 | AI193: 0.0 | AJ193: 0 | AK193: 2.1 | AL193: 2.05 | AM193: 3.8 | AN193: 2.25 | AO193: 0.85 | AP193: 2.35 | AQ193: 2.15 | AR193: 2.1 | AS193: 1.8 | AT193: 1.3 | AU193: 2.85 | AV193: 1.75 | AW193: 1.2 | AX193: 7.1 | AY193: 0 | AZ193: 2.4 | BA193: 2.7 | BB193: 2.1 | BC193: 0.5 | BD193: 0.13 | BE193: 0.06 | BF193: 0.03 | BG193: 0.08 | BH193: 0.09 | BI193: 0.4 | BJ193: 0 | BK193: 1.1 | BL193: 0 | BM193: 0.34 | BN193: 0 | BO193: 0 | BP193: 0 | BQ193: 0.08 | BR193: 0.12 | BS193: 0.9 | BT193: 0 | BU193: 0 | BV193: 0.05 | BW193: 0 | BX193: 0 | BY193: 0 | BZ193: 0 | CA193: 0 | CB193: 1.25 | CE193: 22.5 | CG193: 0.2 | CH193: 0.05 | CI193: 0.13 | CJ193: 10 | CK193: 4.1 | CL193: 7.05 | CM193: 0.86 | CN193: 0.44 | CO193: 0.65 | CP193: 0 | CQ193: 0
A194: ="29/10" -> 29/10 | B194: Чай с лимоном | C194: 180 | D194: 0.2 | E194: 0.0 | F194: 0.1 | G194: 0.1 | H194: 8.9 | I194: 36 | J194: 0.0 | K194: 0.0 | L194: 0.0 | M194: 0.0 | N194: 8.8 | O194: 0.0 | P194: 0.2 | Q194: 0.0 | R194: 0.0 | S194: 0.3 | T194: 0.1 | U194: 0.6 | V194: 7.4 | W194: 2.0 | X194: 0.5 | Y194: 0.9 | Z194: 0.1 | AA194: 0.0 | AB194: 0.4 | AC194: 0.1 | AD194: 0.0 | AE194: 0.0 | AF194: 0.0 | AG194: 0.0 | AH194: 0.0 | AI194: 0.7 | AJ194: 0 | AK194: 0.6 | AL194: 0.69 | AM194: 0.56 | AN194: 1.03 | AO194: 0.26 | AP194: 1.08 | AQ194: 0 | AR194: 1.38 | AS194: 0 | AT194: 0 | AU194: 0 | AV194: 0.77 | AW194: 0 | AX194: 0 | AY194: 0 | AZ194: 0 | BA194: 0 | BB194: 0 | BC194: 0 | BD194: 0 | BE194: 0 | BF194: 0 | BG194: 0 | BH194: 0 | BI194: 0 | BJ194: 0 | BK194: 0 | BL194: 0 | BM194: 0 | BN194: 0 | BO194: 0 | BP194: 0 | BQ194: 0 | BR194: 0 | BS194: 0 | BT194: 0 | BU194: 0 | BV194: 0 | BW194: 0 | BX194: 0 | BY194: 0 | BZ194: 0 | CA194: 0 | CB194: 179.55 | CE194: 0.07 | CG194: 3.85 | CH194: 3.72 | CI194: 3.79 | CJ194: 434.63 | CK194: 165.16 | CL194: 299.9 | CM194: 39.92 | CN194: 23.87 | CO194: 31.9 | CP194: 8.78 | CQ194: 0
A195: ="17/4" -> 17/4 | B195: Каша молочная ассорти (рис, пшено) с маслом сливочным | C195: 200 | D195: 5.9 | E195: 3.0 | F195: 6.1 | G195: 0.8 | H195: 31.6 | I195: 203 | J195: 4.2 | K195: 0.1 | L195: 0.0 | M195: 0.0 | N195: 9.4 | O195: 21.1 | P195: 1.0 | Q195: 0.0 | R195: 0.0 | S195: 0.1 | T195: 1.6 | U195: 249.1 | V195: 181.0 | W195: 116.1 | X195: 32.8 | Y195: 139.6 | Z195: 0.7 | AA195: 24.2 | AB195: 23.2 | AC195: 45.5 | AD195: 0.2 | AE195: 0.1 | AF195: 0.1 | AG195: 0.5 | AH195: 2.2 | AI195: 0.5 | AJ195: 0 | AK195: 145.14 | AL195: 125.26 | AM195: 364.96 | AN195: 90.21 | AO195: 76.22 | AP195: 107.49 | AQ195: 48.27 | AR195: 157.73 | AS195: 248.68 | AT195: 149.04 | AU195: 194.91 | AV195: 72.05 | AW195: 99.83 | AX195: 572.37 | AY195: 0 | AZ195: 193.45 | BA195: 174.09 | BB195: 116.09 | BC195: 51.94 | BD195: 0.12 | BE195: 0.05 | BF195: 0.03 | BG195: 0.07 | BH195: 0.08 | BI195: 0.35 | BJ195: 0 | BK195: 1.04 | BL195: 0 | BM195: 0.31 | BN195: 0 | BO195: 0 | BP195: 0 | BQ195: 0.07 | BR195: 0.1 | BS195: 0.92 | BT195: 0 | BU195: 0 | BV195: 0.42 | BW195: 0.01 | BX195: 0 | BY195: 0 | BZ195: 0 | CA195: 0 | CB195: 166.8 | CE195: 28.11 | CG195: 32.08 | CH195: 14.79 | CI195: 23.43 | CJ195: 2008.07 | CK195: 899.37 | CL195: 1453.72 | CM195: 33.91 | CN195: 15.31 | CO195: 24.61 | CP195: 5 | CQ195: 0.5
B196: Итого за 'Завтрак' | C196: =SUM(C192:C195) -> 415 | D196: =SUM(D192:D195) -> 8.4 | E196: 3.0 | F196: 11.3 | G196: 1.7 | H196: 51.8 | I196: 338 | J196: 6.7 | K196: 0.2 | L196: 0.0 | M196: 0.0 | N196: 19.3 | O196: 30.4 | P196: 2.2 | Q196: 0.0 | R196: 0.0 | S196: 0.4 | T196: 2.2 | U196: 379.1 | V196: 229.2 | W196: 125.9 | X196: 43.2 | Y196: 167.5 | Z196: 1.4 | AA196: 44.2 | AB196: 38.6 | AC196: 68.1 | AD196: 0.7 | AE196: 0.2 | AF196: 0.2 | AG196: 1.0 | AH196: 3.1 | AI196: 1.2 | AJ196: 0 | AK196: 259.44 | AL196: 243.79 | AM196: 546.62 | AN196: 153.19 | AO196: 112.43 | AP196: 181.11 | AQ196: 76.82 | AR196: 287.21 | AS196: 328.78 | AT196: 259.24 | AU196: 288.06 | AV196: 122.88 | AW196: 185.03 | AX196: 1276.97 | AY196: 0 | AZ196: 422.95 | BA196: 276.09 | BB196: 184.79 | BC196: 104.34 | BD196: 0.25 | BE196: 0.12 | BF196: 0.06 | BG196: 0.14 | BH196: 0.16 | BI196: 0.76 | BJ196: 0 | BK196: 2.24 | BL196: 0 | BM196: 0.7 | BN196: 0.01 | BO196: 0 | BP196: 0 | BQ196: 0.14 | BR196: 0.22 | BS196: 2.17 | BT196: 0 | BU196: 0 | BV196: 0.73 | BW196: 0.02 | BX196: 0 | BY196: 0 | BZ196: 0 | CA196: 0 | CB196: 357.82 | CD196: =$I$196/#REF!*100 ->  | CE196: 50.67 | CG196: 36.13 | CH196: 18.56 | CI196: 27.34 | CJ196: 3022.7 | CK196: 1288.23 | CL196: 2155.46 | CM196: 79.24 | CN196: 44.18 | CO196: 61.71 | CP196: 13.78 | CQ196: 0.5
B197: Второй завтрак
A198: ="-" -> - | B198: Ряженка | C198: 100 | D198: 3.0 | E198: 0.0 | F198: 2.5 | G198: 0.3 | H198: 4.2 | I198: 51 | J198: 0.1 | K198: 0.0 | L198: 0.0 | M198: 0.0 | N198: 4.2 | O198: 0.0 | P198: 0.0 | Q198: 0.0 | R198: 0.0 | S198: 0.1 | T198: 0.4 | U198: 2.0 | V198: 238.0 | W198: 15.0 | X198: 9.0 | Y198: 12.0 | Z198: 0.4 | AA198: 0.0 | AB198: 30.0 | AC198: 5.0 | AD198: 0.1 | AE198: 0.0 | AF198: 0.0 | AG198: 0.6 | AH198: 0.7 | AI198: 15.0 | AJ198: 0 | AK198: 0 | AL198: 0 | AM198: 450 | AN198: 387 | AO198: 115 | AP198: 216 | AQ198: 72 | AR198: 225 | AS198: 160 | AT198: 174 | AU198: 344 | AV198: 156 | AW198: 93 | AX198: 897 | AY198: 0 | AZ198: 518 | BA198: 278 | BB198: 242 | BC198: 50 | BD198: 0.1 | BE198: 0.07 | BF198: 0.04 | BG198: 0.08 | BH198: 0.09 | BI198: 0.45 | BJ198: 0.03 | BK198: 0.56 | BL198: 0.02 | BM198: 0.31 | BN198: 0.04 | BO198: 0 | BP198: 0 | BQ198: 0.04 | BR198: 0.08 | BS198: 0.69 | BT198: 0.01 | BU198: 0 | BV198: 0.02 | BW198: 0.03 | BX198: 0.08 | BY198: 0 | BZ198: 0 | CA198: 0 | CB198: 93 | CE198: 5 | CG198: 0 | CH198: 0 | CI198: 0 | CJ198: 0 | CK198: 0 | CL198: 0 | CM198: 0 | CN198: 0 | CO198: 0 | CP198: 0 | CQ198: 0
A199: ="-" -> - | B199: Печенье | C199: 20 | D199: 0.4 | E199: 0.0 | F199: 2.6 | G199: 0.0 | H199: 11.5 | I199: 70 | J199: 0.4 | K199: 0.0 | L199: 0.0 | M199: 0.0 | N199: 5.0 | O199: 6.0 | P199: 0.5 | Q199: 0.0 | R199: 0.0 | S199: 0.1 | T199: 0.2 | U199: 66.0 | V199: 22.0 | W199: 5.8 | X199: 4.0 | Y199: 18.0 | Z199: 0.4 | AA199: 2.0 | AB199: 1.6 | AC199: 2.2 | AD199: 0.7 | AE199: 0.0 | AF199: 0.0 | AG199: 0.1 | AH199: 0.4 | AI199: 0.0 | AJ199: 0 | AK199: 0 | AL199: 0 | AM199: 0 | AN199: 0 | AO199: 0 | AP199: 0 | AQ199: 0 | AR199: 0 | AS199: 0 | AT199: 0 | AU199: 0 | AV199: 0 | AW199: 0 | AX199: 0 | AY199: 0 | AZ199: 0 | BA199: 0 | BB199: 0 | BC199: 0 | BD199: 0 | BE199: 0 | BF199: 0 | BG199: 0 | BH199: 0 | BI199: 0 | BJ199: 0 | BK199: 0 | BL199: 0 | BM199: 0 | BN199: 0 | BO199: 0 | BP199: 0 | BQ199: 0 | BR199: 0 | BS199: 0 | BT199: 0 | BU199: 0 | BV199: 0 | BW199: 0 | BX199: 0 | BY199: 0 | BZ199: 0 | CA199: 0 | CB199: 0.9 | CE199: 2.27 | CG199: 0 | CH199: 0 | CI199: 0 | CJ199: 0 | CK199: 0 | CL199: 0 | CM199: 0 | CN199: 0 | CO199: 0 | CP199: 0 | CQ199: 0
B200: Итого за 'Второй завтрак' | C200: =SUM(C198:C199) -> 120 | D200: =SUM(D198:D199) -> 3.4 | E200: 0.0 | F200: 5.1 | G200: 0.3 | H200: 15.7 | I200: 121 | J200: 0.5 | K200: 0.0 | L200: 0.0 | M200: 0.0 | N200: 9.2 | O200: 6.0 | P200: 0.5 | Q200: 0.0 | R200: 0.0 | S200: 0.2 | T200: 0.6 | U200: 68.0 | V200: 260.0 | W200: 20.8 | X200: 13.0 | Y200: 30.0 | Z200: 0.8 | AA200: 2.0 | AB200: 31.6 | AC200: 7.2 | AD200: 0.8 | AE200: 0.1 | AF200: 0.0 | AG200: 0.7 | AH200: 1.1 | AI200: 15.0 | AJ200: 0 | AK200: 0 | AL200: 0 | AM200: 450 | AN200: 387 | AO200: 115 | AP200: 216 | AQ200: 72 | AR200: 225 | AS200: 160 | AT200: 174 | AU200: 344 | AV200: 156 | AW200: 93 | AX200: 897 | AY200: 0 | AZ200: 518 | BA200: 278 | BB200: 242 | BC200: 50 | BD200: 0.1 | BE200: 0.07 | BF200: 0.04 | BG200: 0.08 | BH200: 0.09 | BI200: 0.45 | BJ200: 0.03 | BK200: 0.56 | BL200: 0.02 | BM200: 0.31 | BN200: 0.04 | BO200: 0 | BP200: 0 | BQ200: 0.04 | BR200: 0.08 | BS200: 0.69 | BT200: 0.01 | BU200: 0 | BV200: 0.02 | BW200: 0.03 | BX200: 0.08 | BY200: 0 | BZ200: 0 | CA200: 0 | CB200: 93.9 | CD200: =$I$200/#REF!*100 ->  | CE200: 7.27 | CG200: 0 | CH200: 0 | CI200: 0 | CJ200: 0 | CK200: 0 | CL200: 0 | CM200: 0 | CN200: 0 | CO200: 0 | CP200: 0 | CQ200: 0
B201: Обед
A202: ="-" -> - | B202: Хлеб пшеничный | C202: 20 | D202: 1.2 | E202: 0.0 | F202: 0.1 | G202: 0.1 | H202: 7.4 | I202: 36 | J202: 0.0 | K202: 0.0 | L202: 0.0 | M202: 0.0 | N202: 0.2 | O202: 7.1 | P202: 0.0 | Q202: 0.0 | R202: 0.0 | S202: 0.0 | T202: 0.4 | U202: 0.0 | V202: 0.0 | W202: 0.0 | X202: 0.0 | Y202: 0.0 | Z202: 0.0 | AA202: 0.0 | AB202: 0.0 | AC202: 0.0 | AD202: 0.0 | AE202: 0.0 | AF202: 0.0 | AG202: 0.0 | AH202: 0.0 | AI202: 0.0 | AJ202: 0 | AK202: 63.86 | AL202: 66.47 | AM202: 101.79 | AN202: 33.76 | AO202: 20.01 | AP202: 40.02 | AQ202: 15.14 | AR202: 72.38 | AS202: 44.89 | AT202: 62.64 | AU202: 51.68 | AV202: 27.14 | AW202: 48.02 | AX202: 401.59 | AY202: 0 | AZ202: 130.85 | BA202: 56.9 | BB202: 37.76 | BC202: 29.93 | BD202: 0 | BE202: 0 | BF202: 0 | BG202: 0 | BH202: 0 | BI202: 0 | BJ202: 0 | BK202: 0.02 | BL202: 0 | BM202: 0 | BN202: 0 | BO202: 0 | BP202: 0 | BQ202: 0 | BR202: 0 | BS202: 0.01 | BT202: 0 | BU202: 0 | BV202: 0.06 | BW202: 0 | BX202: 0 | BY202: 0 | BZ202: 0 | CA202: 0 | CB202: 7.82 | CE202: 0 | CG202: 0 | CH202: 0 | CI202: 0 | CJ202: 380 | CK202: 146.4 | CL202: 263.2 | CM202: 3.04 | CN202: 3.04 | CO202: 3.04 | CP202: 0 | CQ202: 0
A203: ="-" -> - | B203: Хлеб ржаной | C203: 30 | D203: 1.8 | E203: 0.0 | F203: 0.4 | G203: 0.4 | H203: 12.5 | I203: 57 | J203: 0.1 | K203: 0.0 | L203: 0.0 | M203: 0.0 | N203: 0.4 | O203: 9.7 | P203: 2.5 | Q203: 0.0 | R203: 0.0 | S203: 0.3 | T203: 0.8 | U203: 183.0 | V203: 73.5 | W203: 10.5 | X203: 14.1 | Y203: 47.4 | Z203: 1.2 | AA203: 0.0 | AB203: 1.5 | AC203: 0.3 | AD203: 0.4 | AE203: 0.1 | AF203: 0.0 | AG203: 0.2 | AH203: 0.6 | AI203: 0.0 | AJ203: 0 | AK203: 96.6 | AL203: 74.4 | AM203: 128.1 | AN203: 66.9 | AO203: 27.9 | AP203: 59.4 | AQ203: 24 | AR203: 111.3 | AS203: 89.1 | AT203: 87.3 | AU203: 139.2 | AV203: 37.2 | AW203: 93 | AX203: 467.7 | AY203: 0 | AZ203: 157.8 | BA203: 87.3 | BB203: 54 | BC203: 39 | BD203: 0 | BE203: 0 | BF203: 0 | BG203: 0 | BH203: 0 | BI203: 0 | BJ203: 0 | BK203: 0.04 | BL203: 0 | BM203: 0 | BN203: 0.01 | BO203: 0 | BP203: 0 | BQ203: 0 | BR203: 0 | BS203: 0.03 | BT203: 0 | BU203: 0 | BV203: 0.14 | BW203: 0.02 | BX203: 0 | BY203: 0 | BZ203: 0 | CA203: 0 | CB203: 14.1 | CE203: 0.25 | CG203: 4 | CH203: 4 | CI203: 4 | CJ203: 760 | CK203: 292.8 | CL203: 526.4 | CM203: 7.6 | CN203: 6.32 | CO203: 6.96 | CP203: 0 | CQ203: 0
A204: ="3/10" -> 3/10 | B204: Компот из яблок | C204: 180 | D204: 0.1 | E204: 0.0 | F204: 0.1 | G204: 0.1 | H204: 17.3 | I204: 67 | J204: 0.0 | K204: 0.0 | L204: 0.0 | M204: 0.0 | N204: 16.4 | O204: 0.3 | P204: 0.6 | Q204: 0.0 | R204: 0.0 | S204: 0.3 | T204: 0.2 | U204: 9.4 | V204: 99.5 | W204: 6.0 | X204: 3.1 | Y204: 3.7 | Z204: 0.8 | AA204: 0.0 | AB204: 9.7 | AC204: 1.8 | AD204: 0.1 | AE204: 0.0 | AF204: 0.0 | AG204: 0.1 | AH204: 0.1 | AI204: 1.4 | AJ204: 0 | AK204: 4.23 | AL204: 4.59 | AM204: 6.7 | AN204: 6.35 | AO204: 1.06 | AP204: 3.88 | AQ204: 1.06 | AR204: 3.18 | AS204: 6 | AT204: 3.53 | AU204: 27.52 | AV204: 2.47 | AW204: 4.94 | AX204: 14.82 | AY204: 0 | AZ204: 4.59 | BA204: 5.64 | BB204: 2.12 | BC204: 1.76 | BD204: 0 | BE204: 0 | BF204: 0 | BG204: 0 | BH204: 0 | BI204: 0 | BJ204: 0 | BK204: 0 | BL204: 0 | BM204: 0 | BN204: 0 | BO204: 0 | BP204: 0 | BQ204: 0 | BR204: 0 | BS204: 0 | BT204: 0 | BU204: 0 | BV204: 0 | BW204: 0 | BX204: 0 | BY204: 0 | BZ204: 0 | CA204: 0 | CB204: 220.08 | CE204: 1.62 | CG204: 4.5 | CH204: 4.5 | CI204: 4.5 | CJ204: 432 | CK204: 208.98 | CL204: 320.49 | CM204: 41.2 | CN204: 24.19 | CO204: 32.7 | CP204: 13.5 | CQ204: 0
A205: ="6/40" -> 6/40 | B205: Салат картофельный с морковью и зеленым горошком | C205: 50 | D205: 0.9 | E205: 0.0 | F205: 3.1 | G205: 3.1 | H205: 6.1 | I205: 60 | J205: 0.4 | K205: 2.0 | L205: 0.0 | M205: 0.0 | N205: 1.4 | O205: 3.6 | P205: 1.1 | Q205: 0.0 | R205: 0.0 | S205: 0.1 | T205: 0.8 | U205: 128.3 | V205: 145.7 | W205: 8.7 | X205: 12.5 | Y205: 26.3 | Z205: 0.4 | AA205: 0.0 | AB205: 1693.5 | AC205: 338.0 | AD205: 1.4 | AE205: 0.0 | AF205: 0.0 | AG205: 0.4 | AH205: 0.7 | AI205: 2.0 | AJ205: 0 | AK205: 25.81 | AL205: 26.4 | AM205: 37.62 | AN205: 39.01 | AO205: 6.22 | AP205: 26.77 | AQ205: 8.89 | AR205: 25.18 | AS205: 32.6 | AT205: 72.17 | AU205: 76.37 | AV205: 10.76 | AW205: 27.37 | AX205: 116.79 | AY205: 0 | AZ205: 24.38 | BA205: 24.98 | BB205: 18.1 | BC205: 7.3 | BD205: 0 | BE205: 0 | BF205: 0 | BG205: 0 | BH205: 0 | BI205: 0 | BJ205: 0 | BK205: 0.2 | BL205: 0 | BM205: 0.12 | BN205: 0.01 | BO205: 0.02 | BP205: 0 | BQ205: 0 | BR205: 0 | BS205: 0.73 | BT205: 0 | BU205: 0 | BV205: 1.75 | BW205: 0 | BX205: 0 | BY205: 0 | BZ205: 0 | CA205: 0 | CB205: 41.44 | CE205: 282.25 | CG205: 43.93 | CH205: 25.61 | CI205: 34.77 | CJ205: 858.09 | CK205: 455.73 | CL205: 656.91 | CM205: 18.05 | CN205: 3.88 | CO205: 10.96 | CP205: 0 | CQ205: 0.25
A206: ="4/2" -> 4/2 | B206: Борщ с картофелем на говяжьем бульоне | C206: 180 | D206: 2.1 | E206: 5.9 | F206: 6.2 | G206: 2.3 | H206: 9.5 | I206: 99 | J206: 1.6 | K206: 1.4 | L206: 0.0 | M206: 0.0 | N206: 6.0 | O206: 2.0 | P206: 1.5 | Q206: 0.0 | R206: 0.0 | S206: 0.2 | T206: 1.8 | U206: 436.1 | V206: 223.5 | W206: 24.3 | X206: 14.8 | Y206: 31.0 | Z206: 0.7 | AA206: 0.0 | AB206: 729.2 | AC206: 151.9 | AD206: 1.1 | AE206: 0.0 | AF206: 0.1 | AG206: 0.4 | AH206: 0.7 | AI206: 5.7 | AJ206: 0 | AK206: 28.5 | AL206: 30.8 | AM206: 36.55 | AN206: 43.86 | AO206: 10.36 | AP206: 28.02 | AQ206: 8.12 | AR206: 27.41 | AS206: 31.54 | AT206: 55.71 | AU206: 130.69 | AV206: 10.44 | AW206: 24.17 | AX206: 157.1 | AY206: 0 | AZ206: 26.8 | BA206: 30.93 | BB206: 25.59 | BC206: 9.34 | BD206: 0 | BE206: 0 | BF206: 0 | BG206: 0 | BH206: 0 | BI206: 0 | BJ206: 0 | BK206: 0.13 | BL206: 0 | BM206: 0.08 | BN206: 0.01 | BO206: 0.01 | BP206: 0 | BQ206: 0 | BR206: 0 | BS206: 0.47 | BT206: 0 | BU206: 0 | BV206: 1.29 | BW206: 0 | BX206: 0 | BY206: 0 | BZ206: 0 | CA206: 0 | CB206: 207.15 | CE206: 121.54 | CG206: 47.66 | CH206: 25.2 | CI206: 36.43 | CJ206: 545.04 | CK206: 170.64 | CL206: 357.84 | CM206: 6.8 | CN206: 3.82 | CO206: 5.31 | CP206: 1.8 | CQ206: 1.08
A207: ="3/8" -> 3/8 | B207: Мясо говядины тушеное с овощами | C207: 180 | D207: 11.9 | E207: 13.4 | F207: 10.8 | G207: 5.9 | H207: 20.9 | I207: 223 | J207: 8.0 | K207: 75.5 | L207: 0.0 | M207: 0.0 | N207: 2.5 | O207: 15.4 | P207: 3.0 | Q207: 0.0 | R207: 0.0 | S207: 0.3 | T207: 2.5 | U207: 227.2 | V207: 767.7 | W207: 20.6 | X207: 36.5 | Y207: 167.3 | Z207: 2.5 | AA207: 0.0 | AB207: 18.0 | AC207: 3.4 | AD207: 2.8 | AE207: 0.1 | AF207: 0.1 | AG207: 3.4 | AH207: 8.0 | AI207: 9.6 | AJ207: 0 | AK207: 684.9 | AL207: 539.81 | AM207: 993.17 | AN207: 1710.56 | AO207: 293.68 | AP207: 553.17 | AQ207: 154.75 | AR207: 549.13 | AS207: 752.24 | AT207: 832.77 | AU207: 1200.73 | AV207: 466.53 | AW207: 639.48 | AX207: 2187.69 | AY207: 184.5 | AZ207: 467.52 | BA207: 524.79 | BB207: 450.34 | BC207: 178.52 | BD207: 0 | BE207: 0 | BF207: 0 | BG207: 0 | BH207: 0 | BI207: 0 | BJ207: 0 | BK207: 0.37 | BL207: 0 | BM207: 0.21 | BN207: 0.01 | BO207: 0.03 | BP207: 0 | BQ207: 0 | BR207: 0 | BS207: 1.29 | BT207: 0 | BU207: 0 | BV207: 3.29 | BW207: 0 | BX207: 0 | BY207: 0 | BZ207: 0 | CA207: 0 | CB207: 193.03 | CE207: 3 | CG207: 30.38 | CH207: 21.22 | CI207: 25.8 | CJ207: 2970.15 | CK207: 1968.83 | CL207: 2469.49 | CM207: 46.82 | CN207: 19.03 | CO207: 32.92 | CP207: 0 | CQ207: 0.9
... 106 more rows

Sheet Dop
A1: Дата составления | B1: 2026-01-01
A2: Дата печати | B2: 2025-12-15T16:20:55
A3: Группа | B3: Сад
A4: Физ.Норма | B4: СанПиН 2.3/2.4.3590-20 3-7 лет
B5: 1
B6: 12.01.2026
